Workbook

Sheet Base 1
A1: GOBERNACIÓN DE CUNDINAMARCA
A8: SISTEMAS GENERAL DEL REGALÍAS-BASE DE PROYECTOS APROBADOS
A9: N° | B9: EJECUTOR (Dpto / Entidad) | C9: EJECUTOR INTERNO | D9: BPIN | E9: PROYECTO | F9: SECTOR | G9: VALOR PROYECTO | H9: VALOR SGR | I9: OTRAS FUENTES | J9: FECHA DE APROBACIÓN OCAD | K9: AÑO DE APROBACIÓN | L9: ACUERDO DE APROBACIÓN | M9: ESTADO | N9: AVANCE FÍSICO | O9: AVANCE FINANCIERO
A10: 1 | B10: CUNDINAMARCA | C10: SECRETARIA DE AMBIENTE | D10: 2012000050005 | E10: ESTUDIOS Y DISEÑOS DE DETALLE EMBALSE CALANDAIMA MUNICIPIO DE EL COLEGIO DEPARTAMENTO DE CUNDINAMARCA | F10: AMBIENTE Y DESARROLLO SOSTENIBLE | G10: 4000000000 | H10: 1000000000 | I10: =G10-H10 -> 3000000000 | J10: 41271 | K10: 2012 | L10: 004 DE 2012 | M10: CERRADO | N10: 1 | O10: 1
A11: 2 | B11: CUNDINAMARCA | C11: ICCU - GESPROY GB | D11: 2012000050006 | E11: CONSTRUCCIÓN CUBIERTA COLISEO DEL CENTRO AGROTECNOLOGICO DE EXPOSICIONES Y COMERCIALIZACION DE LA REGION DEL SUMAPAZ EN EL MUNICIPIO DE FUSAGASUGA - CUNDINAMARCA | F11: AGRICULTURA | G11: 6352617736 | H11: 3581530801 | I11: 2771086935 | J11: 41271 | K11: 2012 | L11: 004 DE 2012 | M11: CERRADO | N11: 1 | O11: 0.9954
A12: 3 | B12: CUNDINAMARCA | C12: SECRETARIA DE AGRICULTURA | D12: 2012000050007 | E12: FORTALECIMIENTO DE LAS CADENAS HORTIFRUTICOLA Y AROMATICAS EN CUNDINAMARCA | F12: AGRICULTURA | G12: 2490400000 | H12: 1300000000 | I12: 1190400000 | J12: 41271 | K12: 2012 | L12: 004 DE 2012 | M12: CERRADO | N12: 1 | O12: 1
A13: 4 | B13: CUNDINAMARCA | C13: SECRETARIA DE AGRICULTURA | D13: 2012000050009 | E13: FORTALECIMIENTO DE LA PRODUCTIVIDAD Y COMPETITIVIDAD DEL SECTOR CACAOTERO EN EL DEPARTAMENTO DE CUNDINAMARCA | F13: AGRICULTURA | G13: 2334689275 | H13: 1200000000 | I13: 1134689275 | J13: 41271 | K13: 2012 | L13: 004 DE 2012 | M13: CERRADO | N13: 1 | O13: 0.9634
A14: 5 | B14: CUNDINAMARCA | C14: SECRETARIA GENERAL | D14: 2012000050010 | E14: ESTUDIOS Y DISEÑOS PARA LA RECUPERACIÓN Y ADECUACION DEL PATRIMONIO HISTORICO CULTURAL PALACIO DE SAN FRANCISCO EN BOGOTA D.C. DEPARTAMENTO DE CUNDINAMARCA | F14: CULTURA | G14: 1000000000 | H14: 1000000000 | I14: 0 | J14: 41271 | K14: 2012 | L14: 004 DE 2012 | M14: TERMINADO | N14: 1 | O14: 0.9464
A15: 6 | B15: CUNDINAMARCA | C15: SECRETARIA DE EDUCACIÓN | D15: 2012000050011 | E15: FORTALECIMIENTO DE LA PERMANENCIA DE LOS ESTUDIANTES EN LOS MUNICIPIOS DEL DEPARTAMENTO DE CUNDINAMARCA DEPARTAMENTO DE CUNDINAMARCA | F15: EDUCACIÓN | G15: 6000000000 | H15: 6000000000 | I15: 0 | J15: 41187 | K15: 2012 | L15: 003 DE 2012 | M15: CERRADO | N15: 1 | O15: 0.5819
A16: 7 | B16: CUNDINAMARCA | C16: SECRETARIA DE DESARROLLO E INCLUSIÓN SOCIAL | D16: 2012000050012 | E16: IMPLEMENTACIÓN DEL PROGRAMA DE COMPLEMENTACION ALIMENTARIA Y NUTRICIONAL EN MENORES DE 5 AÑOS, MUJERES GESTANTES Y LACTANTES EN TODO EL DEPARTAMENTO DE CUNDINAMARCA | F16: SALUD Y PROTECCIÓN SOCIAL | G16: 4531022720 | H16: 3000000000 | I16: 1531022720 | J16: 41187 | K16: 2012 | L16: 003 DE 2012 | M16: CERRADO | N16: 0.9904 | O16: 0.9972
A17: 8 | B17: CUNDINAMARCA | C17: SECRETARIA DE TRANSPORTE Y MOVILIDAD | D17: 2012000050013 | E17: ACTUALIZACION Y FORMULACION DE LOS ESTUDIOS Y DISEÑOS FASE II Y III DE LA EXTENCION NORTE - QUITO - SUR DEL SISTEMA TRANSMILENIO AL MUNICIPIO DE SOACHA DEPARTAMENTO DE CUNDINAMARCA | F17: SALUD Y PROTECCIÓN SOCIAL | G17: 4026917304 | H17: 3130787355 | I17: 896129949 | J17: 41187 | K17: 2012 | L17: 003 DE 2012 | M17: CERRADO | N17: 0.9622 | O17: 0.9703
A18: 9 | B18: CUNDINAMARCA | C18: SECRETARIA DE AGRICULTURA | D18: 2012000050014 | E18: MEJORAMIENTO DE LA COMPETITIVIDAD Y SOSTENIBILIDAD DEL SUB SECTOR PANELERO DE CUNDINAMARCA | F18: AGRICULTURA | G18: 1559272190 | H18: 1300000000 | I18: 259272190 | J18: 41271 | K18: 2012 | L18: 004 DE 2012 | M18: CERRADO | N18: 1 | O18: 1
A19: 10 | B19: CUNDINAMARCA | C19: SECRETARIA DE AGRICULTURA | D19: 2012000050023 | E19: FORTALECIMIENTO DE LA ACTIVIDAD CAFETERA COMO ALTERNATIVA SOSTENIBLE DE DESARROLLO REGIONAL EN EL DEPARTAMENTO DE CUNDINAMARCA | F19: AGRICULTURA | G19: 77168795512 | H19: 1300000000 | I19: 75868795512 | J19: 41271 | K19: 2012 | L19: 004 DE 2012 | M19: CERRADO | N19: 1 | O19: 0.9999
A20: 11 | B20: CUNDINAMARCA | C20: SECRETARIA DE AGRICULTURA | D20: 2012000050024 | E20: IMPLEMENTACION DE UN MODELO DE PRODUCCION EN SISTEMAS DE DOBLE PROPOSITO EN PEQUEÑOS PRODUCTORES DEL DEPARTAMENTO DE CUNDINAMARCA | F20: AGRICULTURA | G20: 3371686373 | H20: 1823985000 | I20: 1547701373 | J20: 41271 | K20: 2012 | L20: 004 DE 2012 | M20: CERRADO | N20: 1 | O20: 0.9944
A21: 12 | B21: CUNDINAMARCA | C21: SECRETARIA DE GOBIERNO | D21: 2012000050025 | E21: ESTUDIOS Y DISEÑOS PARA LA CONSTRUCCIÓN DE UN CENTRO ESPECIALIZADO AL SERVICIO DE ADOLESCENTES INFRACTORES DE LA LEY EN EL DEPARTAMENTO DE CUNDINAMARCA | F21: DEFENSA | G21: 200000000 | H21: 200000000 | I21: 0 | J21: 41271 | K21: 2012 | L21: 004 DE 2012 | M21: CERRADO | N21: 1 | O21: 1
A22: 13 | B22: ENTIDAD APORTANTE RECURSOS | C22: MUNICIPIO DE COGUA | D22: 2012000050026 | E22: MEJORAMIENTO DE LA VA COGUA-SAN CAYETANO (SECTOR LAS MARGARITAS K8+300 SECTOR LAS MARGARITAS HASTA K10+300) CON K0+00 EN COGUA DEPARTAMENTO DE CUNDINAMARCA | F22: TRANSPORTE | G22: 2000000000 | H22: 2000000000 | I22: 0 | J22: 41271 | K22: 2012 | L22: 005 DE 2012 | M22: CERRADO | N22: 1 | O22: 1
A23: 14 | B23: ENTIDAD APORTANTE RECURSOS | C23: ICCU - GESPROY GB | D23: 2012000050027 | E23: MEJORAMIENTO DE LA VA UBALA-PALOMAS-MAMBITA (K0+00 UBICADO EN EL SITIO PROFESIONALES MUNICIPIO DE UBALA), DEPARTAMENTO DE CUNDINAMARCA | F23: TRANSPORTE | G23: 3359160462 | H23: 3000000000 | I23: 359160462 | J23: 41271 | K23: 2012 | L23: 04 DE 2012 | M23: CERRADO | N23: 1 | O23: 0.9866
A24: 15 | B24: ENTIDAD APORTANTE RECURSOS | C24: ICCU - GESPROY GB | D24: 2012000050028 | E24: MEJORAMIENTO Y MANTENIMIENTO DE LA RED VIAL SECUNDARIA Y TERCIARIA MEDIANTE LA DOTACIÓN DE MAQUINARIA A LOS MUNICIPIOS DEL DEPARTAMENTO DE CUNDINAMARCA | F24: TRANSPORTE | G24: 19769772343 | H24: 8103535586 | I24: 11666236757 | J24: 41271 | K24: 2012 | L24: 004 DE 2012 | M24: CERRADO | N24: 1 | O24: 0.9318
A25: 16 | B25: ENTIDAD APORTANTE RECURSOS | C25: SECRETARIA DE MINAS, ENERGIA Y GAS | D25: 2012000050029 | E25: IMPLEMENTACIÓN Y MASIFICACION DEL SERVICIO DE GAS COMBUSTIBLE POR REDES PARA MUNICIPIOS DE ANOLAIMA, CACHIPAY, CHOACHI, FOMEQUE, UBAQUE Y VIOTA CUNDINAMARCA | F25: MINAS Y ENERGÍA | G25: 15253036000 | H25: 2199142000 | I25: 13053894000 | J25: 41271 | K25: 2012 | L25: 004 DE 2012 | M25: CERRADO | N25: 1 | O25: 0.945
A26: 17 | B26: CUNDINAMARCA | C26: SECRETARIA DE COMPETITIVIDAD | D26: 2012000050030 | E26: DESARROLLO CREACION Y FORTALECIMIENTO DE NUEVE (9) CENTROS DE EMPREDIMIENTO Y FORTALECIMIENTO EMPRESARIAL EN EL DEPARTAMENTO DE CUNDINAMARCA | F26: COMERCIO, INDUSTRIA Y TURISMO | G26: 1752501814 | H26: 1708104361 | I26: 44397453 | J26: 41271 | K26: 2012 | L26: 004 DE 2012 | M26: PARA CIERRE | N26: 1 | O26: 0.9507
A27: 18 | B27: ENTIDAD APORTANTE RECURSOS | C27: MUNICIPIO DE MOSQUERA | D27: 2012000050039 | E27: MEJORAMIENTO DE LA VIA CALLE 23 ENTRE CRA 3 Y 9B EN MOSQUERA CLL 7 ENTRE CRA 13 Y 24 EN FUNZA DEPARTAMENTO DE CUNDINAMARCA | F27: TRANSPORTE | G27: 2816415712 | H27: 1000000000 | I27: 1816415712 | J27: 41271 | K27: 2012 | L27: 004 DE 2012 | M27: CERRADO | N27: 1 | O27: 1
A28: 19 | B28: ENTIDAD APORTANTE RECURSOS | C28: MUNICIPIO DE SOACHA | D28: 2012000050044 | E28: REHABILITACIÓN Y MEJORAMIENTO DE LA VIA PARALELA ( TRANSVERSAL 8 Y CARRERA 7) ENTRE CARRERA 13 CON AUTOPISTA SUR BARRIO LA DESPENSA, HASTA LA CALLE 27 DEL CENTRO DEL MUNICIPIO DE SOACHA CUNDINAMARCA (TRAMO N 1 - K0+000 HASTA K0+262) | F28: TRANSPORTE | G28: 1000000000 | H28: 1000000000 | I28: 0 | J28: 41271 | K28: 2012 | L28: 004 DE 2012 | M28: CERRADO | N28: 1 | O28: 1
A29: 20 | B29: CUNDINAMARCA | C29: ICCU - GESPROY GB | D29: 2012000050051 | E29: MEJORAMIENTO DEL PUENTE GUATIMBOL SOBRE EL RIO SUMAPAZ EN LA VA VENECIA - ICONONZO DEPARTAMENTO DE CUNDINAMARCA | F29: TRANSPORTE | G29: 827195639 | H29: 620304130 | I29: 206891509 | J29: 41271 | K29: 2012 | L29: 004 DE 2012 | M29: CERRADO | N29: 1 | O29: 0.9809
A30: 21 | B30: CUNDINAMARCA | C30: ICCU - GESPROY GB | D30: 2012000050052 | E30: FORMULACIÓN Y ACTUALIZACION DE LOS ESTUDIOS Y DISEÑOS DE LA VIA UBAQUE - LOS CEREZOS - CHIPAQUE DEPARTAMENTO DE CUNDINAMARCA | F30: TRANSPORTE | G30: 257457261 | H30: 250000000 | I30: 7457261 | J30: 41271 | K30: 2012 | L30: 004 DE 2012 | M30: CERRADO | N30: 1 | O30: 0.9996
A31: 22 | B31: CUNDINAMARCA | C31: ICCU - GESPROY GB | D31: 2012000050054 | E31: FORMULACIÓN Y ACTUALIZACION DE LOS ESTUDIOS Y DISEÑOS PARA EL MEJORAMIENTO DE LA TRONCAL DEL CARBON EN LONGITUD DE 43 KMS (K0+00 LOCALIZADO EN TIERRA NEGRA) DEPARTAMENTO DE CUNDINAMARCA | F31: TRANSPORTE | G31: 777429075 | H31: 755000000 | I31: 22429075 | J31: 41271 | K31: 2012 | L31: 004 DE 2012 | M31: CERRADO | N31: 1 | O31: 0.9984
A32: 23 | B32: CUNDINAMARCA | C32: SECRETARIA DE CIENCIA, TECNOLOGIA E INNOVACIÓN | D32: 2012000100010 | E32: FORTALECIMIENTO DE LAS REGIONES COLOMBIANAS EN SUS CAPACIDADES DE CTI - CUNDINAMARCA | F32: CTEL | G32: 8721806744 | H32: 8721806744 | I32: 0 | J32: 41263 | K32: 2012 | L32: 001 DE 2012 | M32: CONTRATADO EN EJECUCIÓN | N32: 0.8453 | O32: 0.9729
A33: 24 | B33: CUNDINAMARCA | C33: SECRETARIA DE CIENCIA, TECNOLOGIA E INNOVACIÓN | D33: 2012000100056 | E33: INVESTIGACIÓN ESTRATEGIAS DE VALORACION Y APROPIACION DE LOS RECURSOS NATURALES MECANISMOS DE ADAPTACION A CAMBIO CLIMATICO. REGION DEL BAJO MAGDALENA | F33: CTEL | G33: 7184175232 | H33: 4100000000 | I33: 3084175232 | J33: 41263 | K33: 2012 | L33: 001 DE 2012 | M33: CERRADO | N33: 1 | O33: 0.9997
A34: 25 | B34: CUNDINAMARCA | C34: SECRETARIA DE CIENCIA, TECNOLOGIA E INNOVACIÓN | D34: 2012000100063 | E34: FORTALECIMIENTO DE LAS CAPACIDADES DE INNOVACIÓN SOCIAL POR MEDIO DEL PARQUE CIENTIFICO EN BOGOTA - CUNDINAMARCA | F34: CTEL | G34: 16942704000 | H34: 8250704000 | I34: 8692000000 | J34: 41263 | K34: 2012 | L34: 001 DE 2012 | M34: CERRADO | N34: 1 | O34: 0.9473
A35: 26 | B35: CAR | C35: SECRETARIA DE CIENCIA, TECNOLOGIA E INNOVACIÓN | D35: 2012000100118 | E35: FORMACION EN CIENCIA, TECNOLOGIA E INNOVACION EN LA COMUNIDAD EDUCATIVA DE LAS INSTITUCIONES EDUCATIVAS OFICIALES DE LOS MUNICIPIOS NO CERTIFICADOS DEL DEPARTAMENTO | F35: CTEL | G35: 22788739251 | H35: 17739839251 | I35: 5048900000 | J35: 41295 | K35: 2013 | L35: 001 DE 2012 | M35: CERRADO | N35: 0.9818 | O35: 0.9481
A36: 27 | B36: CUNDINAMARCA | C36: SECRETARIA DE CIENCIA, TECNOLOGIA E INNOVACIÓN | D36: 2012000100144 | E36: INVESTIGACIÓN INVESTIGACION, DESARROLLO Y TRANSFERENCIA TECNOLOGICA EN EL SECTOR AGROPECUARIO Y AGROINDUSTRIAL CON EL FIN DE MEJORAR L TODO EL DEPARTAMENTO, CUNDINAMARCA, CENTRO ORIENTE | F36: CTEL | G36: 50514736439 | H36: 34707000000 | I36: 15807736439 | J36: 41263 | K36: 2012 | L36: 001 DE 2012 | M36: CONTRATADO EN EJECUCIÓN | N36: 0.8236 | O36: 0.8217
A37: 28 | B37: CUNDINAMARCA | C37: SECRETARIA DE CIENCIA, TECNOLOGIA E INNOVACIÓN | D37: 2012000100156 | E37: CONSTRUCCIÓN DEL ECOSISTEMA DE INNOVACION TIC PARA EL DEPTO DE CUNDINAMARCA | F37: CTEL | G37: 7088000000 | H37: 5000000000 | I37: 2088000000 | J37: 41263 | K37: 2012 | L37: 001 DE 2012 | M37: CERRADO | N37: 0.9898 | O37: 0.9318
A38: 29 | B38: ENTIDAD APORTANTE RECURSOS | C38: ICCU - GESPROY GB | D38: 2013000050003 | E38: ESTUDIOS Y DISEÑOS PARA EL MEJORAMIENTO DE LA VA VILLAPINZON-TURMEQUE EN LONGITUD DE 11 KMS (K0+00 LOCALIZADO EN VILLAPINZON DEPARTAMENTO DE CUNDINAMARCA | F38: TRANSPORTE | G38: 245000000 | H38: 245000000 | I38: 0 | J38: 41400 | K38: 2013 | L38: 006 DE 2013 | M38: CERRADO | N38: 1 | O38: 0.7347
A39: 30 | B39: ENTIDAD APORTANTE RECURSOS | C39: ICCU - GESPROY GB | D39: 2013000050004 | E39: ESTUDIOS Y DISEÑOS PARA EL MEJORAMIENTO DE LA VA YACOPI - LA VICTORIA CON K0+00 EN YACOPI DEPARTAMENTO DE CUNDINAMARCA | F39: TRANSPORTE | G39: 250000000 | H39: 250000000 | I39: 0 | J39: 41400 | K39: 2013 | L39: 006 DE 2013 | M39: CERRADO | N39: 1 | O39: 0.7491
A40: 31 | B40: CUNDINAMARCA | C40: SECRETARIA DE DESARROLLO E INCLUSIÓN SOCIAL | D40: 2013000050005 | E40: IMPLEMENTACIÓN DEL PROGRAMA DE COMPLEMENTACION ALIMENTARIA Y NUTRICIONAL PARA MENORES DE CINCO AÑOS Y MUJERES GESTANTES Y LACTANTES EN TODO EL DEPARTAMENTO DE CUNDINAMARCA | F40: EDUCACIÓN | G40: 6189832118 | H40: 6000000000 | I40: 189832118 | J40: 41400 | K40: 2013 | L40: 006 DE 2013 | M40: CERRADO | N40: 0.9982 | O40: 0.9899
A41: 32 | B41: CUNDINAMARCA | C41: SECRETARIA DE EDUCACIÓN | D41: 2013000050011 | E41: FORTALECIMIENTO DE LA PERMANENCIA DE LOS ESTUDIANTES EN LOS MUNICIPIOS DEL DEPARTAMENTO DE CUNDINAMARCA 2013-2014 CUNDINAMARCA, CENTRO ORIENTE | F41: EDUCACIÓN | G41: 13360387595 | H41: 13360387595 | I41: 0 | J41: 41400 | K41: 2013 | L41: 006 DE 2013 | M41: CERRADO | N41: 0.998 | O41: 0.9234
A42: 33 | B42: CUNDINAMARCA | C42: SECRETARIA DE MINAS, ENERGIA Y GAS | D42: 2013000050026 | E42: CONSTRUCCIÓN REDES ELECTRICAS EN LA ZONA RURAL DE LOS MUNICIPIOS DE PARATEBUENO Y GUTIERREZ EN EL DEPARTAMENTO DE CUNDINAMARCA | F42: MINAS Y ENERGÍA | G42: 1068319227 | H42: 1045119227 | I42: 23200000 | J42: 41502 | K42: 2013 | L42: 007 DE 2013 | M42: TERMINADO | N42: 0.4493 | O42: 0.9791
A43: 34 | B43: U CATOLICA | C43: SECRETARIA DE AGRICULTURA | D43: 2013000050027 | E43: FORTALECIMIENTO DE LA ACTIVIDAD CAFETERA COMO ESTRATEGIA DE MEJORAMIENTO DE LA PRODUCTIVIDAD Y LA COMPETITIVIDAD EN EL DEPARTAMENTO DE CUNDINAMARCA, CENTRO ORIENTE | F43: AGRICULTURA | G43: 18756930869 | H43: 3000000000 | I43: 15756930869 | J43: 41502 | K43: 2013 | L43: 025 DE 2014 | M43: CERRADO | N43: 1 | O43: 0.9949
A44: 35 | B44: UNIVERSIDAD MILITAR NUEVA GRANADA | C44: SECRETARIA DE AGRICULTURA | D44: 2013000050028 | E44: FORTALECIMIENTO DEL SUBSECTOR PANELERO EN EL DEPARTAMENTO DE CUNDINAMARCA | F44: AGRICULTURA | G44: 3427279826 | H44: 2599564478 | I44: 827715348 | J44: 41502 | K44: 2013 | L44: 007 DE 2013 | M44: CERRADO | N44: 1 | O44: 0.9996
A45: 36 | B45: ENTIDAD APORTANTE RECURSOS | C45: ICCU - GESPROY GB | D45: 2013000050043 | E45: MEJORAMIENTO Y REHABILITACION DE LA VIA GUACHETA - CAPELLANIA (SECTOR K0+780 AL K2+240) K0+000 LOCALIZADO EN EL RIO UBATE GUACHET, CUNDINAMARCA, CENTRO ORIENTE | F45: TRANSPORTE | G45: 1019047619 | H45: 1000000000 | I45: 19047619 | J45: 41639 | K45: 2013 | L45: 015 DE 2013 | M45: CERRADO | N45: 1 | O45: 0.9806
A46: 37 | B46: ENTIDAD APORTANTE RECURSOS | C46: BANCO AGRARIO DE COLOMBIA | D46: 2013000050044 | E46: CONSTRUCCIÓN CUNDINAMARCA VISR 2013 TODO EL DEPARTAMENTO, CUNDINAMARCA, CENTRO ORIENTE | F46: AGRICULTURA | G46: 60041780218 | H46: 15888838218 | I46: 44152942000 | J46: 41569 | K46: 2013 | L46: 005 DE 2015 | M46: CONTRATADO EN EJECUCIÓN | N46: 0.8102 | O46: 0.8529
A47: 38 | B47: ENTIDAD APORTANTE RECURSOS | C47: ICCU - GESPROY GB | D47: 2013000050045 | E47: MEJORAMIENTO Y PAVIMENTACIÓN DE LA VIA FOSCA - GUTIERREZ, DESDE EL KM 2+000 AL KM 3+000 (K0+000 LOCALIZADO EN FOSCA), DEPARTAMENTO DE CUNDINAMARCA | F47: TRANSPORTE | G47: 2534999997 | H47: 2000000000 | I47: 534999997 | J47: 41579 | K47: 2013 | L47: 012 DE 2013 | M47: CERRADO | N47: 1 | O47: 0.9745
A48: 39 | B48: CUNDINAMARCA | C48: SECRETARIA DE MINAS, ENERGIA Y GAS | D48: 2013000050046 | E48: IMPLEMENTACIÓN Y MASIFICACION DEL SERVICIO DE GAS COMBUSTIBLE POR REDES PARA LOS MUNICIPIOS DE CAPARRAPI, EL PEÑON, LA PALMA, PAIME, TOPAIPI Y VILLAGOMEZ CUNDINAMARCA | F48: MINAS Y ENERGÍA | G48: 6609136508 | H48: 2118963154 | I48: 4490173354 | J48: 41579 | K48: 2013 | L48: 012 DE 2013 | M48: CERRADO | N48: 1 | O48: 1
A49: 40 | B49: ENTIDAD APORTANTE RECURSOS | C49: ICCU - GESPROY GB | D49: 2013000050047 | E49: MEJORAMIENTO Y PAVIMENTACIÓN VIA GUANACAS - EL PEÑON DESDE EL K0+000 AL K2+000 (K0+000 UBICADO EN GUANACAS) MUNICIPIO EL PEÑON, CUNDINAMARCA | F49: TRANSPORTE | G49: 3000000000 | H49: 3000000000 | I49: 0 | J49: 41808 | K49: 2014 | L49: 022 DE 2014 | M49: CERRADO | N49: 1 | O49: 0.9964
A50: 41 | B50: ENTIDAD APORTANTE RECURSOS | C50: ICCU - GESPROY GB | D50: 2013000050049 | E50: MEJORAMIENTO Y MANTENIMIENTO DE LA RE VIAL MEDIANTE LA ADQUISICION DE MAQUINARIA AÑO 2013-2014 PARA LOS MUNICIPIOS DEL DEPARTAMENTO DE CUNDINAMARCA | F50: TRANSPORTE | G50: 14330854376 | H50: 12431431552 | I50: 1899422824 | J50: 41609 | K50: 2013 | L50: 012 DE 2013 | M50: CERRADO | N50: 1 | O50: 0.9996
A51: 42 | B51: ENTIDAD APORTANTE RECURSOS | C51: ICCU - GESPROY GB | D51: 2013000050050 | E51: MEJORAMIENTO Y PAVIMENTACIÓN DE LA VIA SANAME - PUENTE QUETAME DESDE K0+000 AL K1+500 (K0+000 LOCALIZADO EN PUENTE QUEMADO) MUNICIPIO FOSCA, CUNDINAMARCA | F51: TRANSPORTE | G51: 6000000000 | H51: 6000000000 | I51: 0 | J51: 41639 | K51: 2013 | L51: 015 DE 2013 | M51: CERRADO | N51: 1 | O51: 0.4921
A52: 43 | B52: CUNDINAMARCA | C52: SECRETARIA DE AMBIENTE | D52: 2013000050051 | E52: FORTALECIMIENTO DE LA GESTION INTEGRAL DE RESIDUOS SOLIDOS, A TRAVES DE SISTEMAS RECIONALES EN LAS PROVINCIAS DE UBATE Y RIONEGRO EN EL DEPARTAMENTO DE CUNDINAMARCA | F52: VIVIENDA, CIUDAD Y TERRITORIO | G52: 3000000000 | H52: 3000000000 | I52: 0 | J52: 41579 | K52: 2013 | L52: 012 DE 2013 | M52: CERRADO | N52: 0.4828 | O52: 0.474
A53: 44 | B53: CUNDINAMARCA | C53: SECRETARIA DE AGRICULTURA | D53: 2013000050054 | E53: MEJORAMIENTO DE LA PRODUCTIVIDAD Y COMPETITIVIDAD DEL SECTOR CAUCHERO EN EL DEPARTAMENTO DE CUNDINAMARCA | F53: AGRICULTURA | G53: 3765860000 | H53: 2459000000 | I53: 1306860000 | J53: 41639 | K53: 2013 | L53: 015 DE 2013 | M53: CERRADO | N53: 1 | O53: 1
A54: 45 | B54: CUNDINAMARCA | C54: SECRETARIA DE GOBIERNO | D54: 2013000050056 | E54: PREVENCIN DE INCENDIOS FORESTALES CON LA ADQUISICION DE VEHICULOS 4X4 ACCION RAPIDA TIPO FORESTAL PARA EL DEPARTAMENTO DE CUNDINAMARCA | F54: AMBIENTE Y DESARROLLO SOSTENIBLE | G54: 4000000000 | H54: 4000000000 | I54: 0 | J54: 41579 | K54: 2013 | L54: 012 DE 2013 | M54: CERRADO | N54: 1 | O54: 0.9999
A55: 46 | B55: CUNDINAMARCA | C55: SECRETARIA DE AGRICULTURA | D55: 2013000050081 | E55: MEJORAMIENTO DE LA PRODUCTIVIDAD, CALIDAD, POSCOSECHA Y MERCADEO DE LAS CADENAS HORTIFRUTCOLA Y AROMATICAS DE CUNDINAMARCA | F55: AGRICULTURA | G55: 4900400000 | H55: 2600000000 | I55: 2300400000 | J55: 41808 | K55: 2014 | L55: 022 DE 2014 | M55: CERRADO | N55: 1 | O55: 1
A56: 47 | B56: CUNDINAMARCA | C56: SECRETARIA DE AGRICULTURA | D56: 2013000050083 | E56: IMPLEMENTACIÓN Y PUESTA EN MARCHA DE UNA PLANTA HOMOGENIZADORA DE MIELES PARA LA PRODUCCION DE PANELA EN CAPARRAPI CUNDINAMARCA, CENTRO ORIENTE | F56: AGRICULTURA | G56: 3322683076 | H56: 3126242524 | I56: 196440552 | J56: 41808 | K56: 2014 | L56: 022 DE 2014 | M56: CERRADO | N56: 1 | O56: 1
A57: 48 | B57: ENTIDAD APORTANTE RECURSOS | C57: ICCU - GESPROY GB | D57: 2013000050094 | E57: MEJORAMIENTO Y REHABILITACION DE LA VIA TABIO - CHIA DEL K1+100 AL K3+200 | F57: TRANSPORTE | G57: 2000000000 | H57: 2000000000 | I57: 0 | J57: 41639 | K57: 2013 | L57: 015 DE 2013 | M57: DESAPROBADO | N57: 0 | O57: 0
A58: 49 | B58: CUNDINAMARCA | C58: SECRETARIA DE CIENCIA, TECNOLOGIA E INNOVACIÓN | D58: 2013000100129 | E58: INCREMENTO EN LAS ESTRATEGIAS SUSTENTABLES EN EL USO DEL RECURSO DE ENERGA ELECTRICA PARA LA POBLACION VULNERABLE EN EL DPTO. DE CUNDINAMARCA | F58: CTEL | G58: 5170002961 | H58: 4097083299 | I58: 1072919662 | J58: 41789 | K58: 2014 | L58: 025 DE 2014 | M58: CONTRATADO EN EJECUCIÓN | N58: 0.7645 | O58: 0.6976
A59: 50 | B59: CUNDINAMARCA | C59: SECRETARIA DE CIENCIA, TECNOLOGIA E INNOVACIÓN | D59: 2013000100131 | E59: INVESTIGACIÓN ESTIMAR VULNERABILIDAD AL CAMBIO CLIMATICO DE SISTEMAS CAFETEROS Y DISEÑO DE ARREGLOS AGROFORESTALES CON BIOTECNOLOGIA PACHO, TIBACUY, SAN JUAN DE RIO SECO, CUNDINAMARCA | F59: AGRICULTURA | G59: 3287867000 | H59: 2622860000 | I59: 665007000 | J59: 41474 | K59: 2013 | L59: 005 DE 2013 | M59: CERRADO | N59: 0.9845 | O59: 0.8904
A60: 51 | B60: CUNDINAMARCA | C60: SECRETARIA DE CIENCIA, TECNOLOGIA E INNOVACIÓN | D60: 2013000100149 | E60: INNOVACIÓN EN EL MODELO DE GESTION DE MEDICAMENTO EN EL DEPARTAMENTO DE CUNDINAMARCA FASE II | F60: CTEL | G60: 3079583047 | H60: 2490946916 | I60: 588636131 | J60: 41474 | K60: 2013 | L60: 005 DE 2013 | M60: CERRADO | N60: 1 | O60: 1
A61: 52 | B61: CUNDINAMARCA | C61: SECRETARIA DE CIENCIA, TECNOLOGIA E INNOVACIÓN | D61: 2013000100176 | E61: INNOVACIÓN SISTEMA DE PRODUCCION DE FRUTAS/HORTALIZAS FRESCAS/PROCESADAS TIPO EXPORTACION CON TECNOLOGIA BIOLOGICA /INTEGRAL INOCUA SUBACHOQUE, CUNDINAMARCA, CENTRO ORIENTE | F61: CTEL | G61: 9285096292 | H61: 6556945302 | I61: 2728150990 | J61: 41474 | K61: 2013 | L61: 005 DE 2013 | M61: CONTRATADO EN EJECUCIÓN | N61: 0.9138 | O61: 0.6728
A62: 53 | B62: CUNDINAMARCA | C62: SECRETARIA DE CIENCIA, TECNOLOGIA E INNOVACIÓN | D62: 2013000100180 | E62: DISEÑO SMART TON: TALENTO E INNOVACION APLICADA AL TERRITORIO | F62: CTEL | G62: 3089954000 | H62: 2497510000 | I62: 592444000 | J62: 41509 | K62: 2013 | L62: 008 DE 2013 | M62: CERRADO | N62: 1 | O62: 0.8654
A63: 54 | B63: CUNDINAMARCA | C63: SECRETARIA DE CIENCIA, TECNOLOGIA E INNOVACIÓN | D63: 2013000100215 | E63: FORTALECIMIENTO DE LA GESTIN COMUNITARIA DEL RECURSO HIDRICO, POR MEDIO DE LA DISMINUCION DEL CONSUMO DE ESTE, UTILIZANDO TP Y TICS , CUNDINAMARCA, CENTRO ORIENTE | F63: CTEL | G63: 1811292700 | H63: 1608461700 | I63: 202831000 | J63: 41565 | K63: 2013 | L63: 011 DE 2013 | M63: CERRADO | N63: 1 | O63: 0.9074
A64: 55 | B64: CUNDINAMARCA | C64: SECRETARIA DE CIENCIA, TECNOLOGIA E INNOVACIÓN | D64: 2013000100217 | E64: FORTALECIMIENTO DE LA COMPETITIVIDAD DEL SECTOR FLORICULTOR COLOMBIANO MEDIANTE EL USO DE CIENCIA, TECNOLOGA E INNOVACION APLICADAS EN EL DEPARTAMENTO DE CUNDINAMARCA | F64: CTEL | G64: 7204002875 | H64: 4618409839 | I64: 2585593036 | J64: 41789 | K64: 2014 | L64: 025 DE 2014 | M64: CERRADO | N64: 1 | O64: 0.9859
A65: 56 | B65: CUNDINAMARCA | C65: SECRETARIA DE CIENCIA, TECNOLOGIA E INNOVACIÓN | D65: 2013000100247 | E65: INVESTIGACIÓN E INNOVACIÓN TECNOLÓGICA Y APROPIACIÓN SOCIAL DE CONOCIMIENTO CIENTÍFICO DE ORQUÍDEAS NATIVAS DE CUNDINAMARCA | F65: CTEL | G65: 3400306874 | H65: 2551931927 | I65: 848374947 | J65: 41856 | K65: 2014 | L65: 027 DE 2014 | M65: CERRADO | N65: 0.967 | O65: 0.9526
A66: 57 | B66: CUNDINAMARCA | C66: SECRETARIA DE CIENCIA, TECNOLOGIA E INNOVACIÓN | D66: 2013000100248 | E66: INNOVACIÓN , CIENCIA Y TECNOLOGIA PARA PRODUCTORES DE LECHE EN LA PROVINCIA DE UBATE, CUNDINAMARCA. | F66: CTEL | G66: 11619725567 | H66: 9380319099 | I66: 2239406468 | J66: 41565 | K66: 2013 | L66: 011 DE 2013 | M66: CONTRATADO EN EJECUCIÓN | N66: 0.6528 | O66: 0.8197
A67: 58 | B67: ENTIDAD APORTANTE RECURSOS | C67: MUNICIPIO DE MADRID | D67: 2013000050048 | E67: MEJORAMIENTO Y PAVIMENTACIÓN DE LA VIA AJOVER-SANTA CRUZ EN 2 KILOMETROS, MUNICIPIO DE MADRID, CUNDINAMARCA | F67: TRANSPORTE | G67: 8946944399 | H67: 8700000000 | I67: 246944399 | J67: 41689 | K67: 2014 | L67: 017 DE 2014 | M67: CERRADO | N67: 1 | O67: 1
A68: 59 | B68: ENTIDAD APORTANTE RECURSOS | C68: CORMAGDALENA | D68: 20132401060001 | E68: MANTENIMIENTO Y RECUPERACIÓN DE LA NAVEGABILIDAD DEL RIO MAGDALENA | F68: TRANSPORTE | G68: 3527443454052 | H68: 117000000000 | I68: 3410443454052 | J68: 41514 | K68: 2013 | L68: 001 DE 2013 | M68: CERRADO | N68: 0.045 | O68: 0.0383
A69: 60 | B69: ENTIDAD APORTANTE RECURSOS | C69: ICCU - GESPROY GB | D69: 2014000050033 | E69: MEJORAMIENTO Y REHABILITACIÓN DE LA VIA TABIO - CHIA DEL K0+000 AL K1+800 | F69: TRANSPORTE | G69: 2570000000 | H69: 2000000000 | I69: 570000000 | J69: 41893 | K69: 2014 | L69: 026 DE 2014 | M69: CERRADO | N69: 1 | O69: 1
A70: 61 | B70: ENTIDAD APORTANTE RECURSOS | C70: ICCU - GESPROY GB | D70: 2014257720001 | E70: MEJORAMIENTO Y PAVIMENTACIÓN DE LA VIA SUESCA LA PLAYA - SESQUILE DEPARTAMENTO DE CUNDINAMARCA | F70: TRANSPORTE | G70: 4191000000 | H70: 1391000000 | I70: 2800000000 | J70: 41743 | K70: 2014 | L70: 001 DE 2014 | M70: CERRADO | N70: 1 | O70: 0.9867
A71: 62 | B71: CUNDINAMARCA | C71: SECRETARIA DE GOBIERNO | D71: 2014000050010 | E71: CONSTRUCCIÓN DE UN CENTRO DE ATENCION ESPECIALIZADA AL SERVICIO DE ADOLESCENTES INFRACTORES DE LA LEY PENAL EN EL DEPARTAMENTO DE CUNDINAMARCA | F71: JUSTICIA Y DEL DERECHO | G71: 9260000000 | H71: 8500000000 | I71: 760000000 | J71: 41808 | K71: 2014 | L71: 022 DE 2014 | M71: PARA CIERRE | N71: 1 | O71: 1
A72: 63 | B72: ENTIDAD APORTANTE RECURSOS | C72: MUNICIPIO DE VILLETA | D72: 2014000050048 | E72: MEJORAMIENTO Y PAVIMENTACIÓN DE LA VIA VILLETA-PANTANILLO-CORREDOR CHUGUACAL -CAMBAO DEL K0+360 AL K1+060 VILLETA, CUNDINAMARCA, CENTRO ORIENTE | F72: TRANSPORTE | G72: 1701612797 | H72: 1489209370 | I72: 212403426.8 | J72: 42089 | K72: 2015 | L72: 033 DE 2015 | M72: CERRADO | N72: 1 | O72: 1
A73: 64 | B73: ENTIDAD APORTANTE RECURSOS | C73: ICCU - GESPROY GB | D73: 2015000050010 | E73: MEJORAMIENTO DE LA VA SAN CAYETANO - COGUA SECTOR K6+670 - K8+366 (K0+000 LOCALIZADO EN EL CASCO URBANO DEL MUNICIPIO DE SAN CAYETANO) CUNDINAMARCA | F73: TRANSPORTE | G73: 3796247522 | H73: 3000000000 | I73: 796247522 | J73: 42158 | K73: 2015 | L73: 036 DE 2015 | M73: CERRADO | N73: 1 | O73: 0.9876
A74: 65 | B74: ENTIDAD APORTANTE RECURSOS | C74: ICCU - GESPROY GB | D74: 2015000050013 | E74: MEJORAMIENTO DE LA VA UBAQUE - LOS CEREZOS - CHIPAQUE SECTORES DEL K0+000 AL K2+040 Y DEL K16+000 AL K18+260 (K0+000 LOCALIZADO EN UBAQUE) DEPARTAMENTO DE CUNDINAMARCA | F74: TRANSPORTE | G74: 8000000000 | H74: 8000000000 | I74: =G74-H74 -> 0 | J74: 42159 | K74: 2015 | L74: 036 de 2015 | M74: CERRADO | N74: 0.9971 | O74: 0.9875
A75: 66 | B75: CUNDINAMARCA | C75: SECRETARIA DE HABITAT Y VIVIENDA | D75: 2015000050014 | E75: CONSTRUCCIÓN DE VIVIENDAS NUEVAS RURALES VISR 2015 EN EL DEPARTAMENTO DE CUNDINAMARCA-SGR | F75: AGRICULTURA | G75: 7588896000 | H75: 6840269782 | I75: 748626218 | J75: 42173 | K75: 2015 | L75: 036 de 2015 | M75: CERRADO | N75: 1 | O75: 0.9276
A76: 67 | B76: CUNDINAMARCA | C76: SECRETARIA DE EDUCACIÓN | D76: 2015000050015 | E76: FORTALECIMIENTO DE LA PERMANENCIA DE LOS ESTUDIANTES EN LOS MUNICIPIOS DEL DEPARTAMENTO DE CUNDINAMARCA, CENTRO ORIENTE - 2015 | F76: EDUCACIÓN | G76: 8373797030 | H76: 8373797030 | I76: 0 | J76: 42159 | K76: 2015 | L76: 036 de 2015 | M76: CERRADO | N76: 0.9707 | O76: 0.8519
A77: 68 | B77: ENTIDAD APORTANTE RECURSOS | C77: ICCU - GESPROY GB | D77: 2015000050025 | E77: MEJORAMIENTO Y PAVIMENTACIÓN DE LA TRONCAL DEL CARBON SECTOR K0+000 AL K2+860 (K0+000 LOCALIZADO EN TIERRA NEGRA, MUNICIPIO DE TAUSA), DEPARTAMENTO DE CUNDINAMARCA | F77: TRANSPORTE | G77: 7913699780 | H77: 6000000000 | I77: 1913699780 | J77: 42159 | K77: 2015 | L77: 036 DE 2015 | M77: CERRADO | N77: 1 | O77: 1
A78: 69 | B78: CUNDINAMARCA | C78: SECRETARIA DE EDUCACIÓN | D78: 2015000050026 | E78: FORTALECIMIENTO A LA ESTRATEGIA DE ALIMENTACIÓN ESCOLAR PARA MUNICIPIOS NO CERTIFICADOS DEL DEPARTAMENTO DE CUNDINAMARCA, CENTRO ORIENTE | F78: EDUCACIÓN | G78: 2100000000 | H78: 2100000000 | I78: 0 | J78: 42159 | K78: 2015 | L78: 036 de 2015 | M78: CERRADO | N78: 1 | O78: 0.8551
A79: 70 | B79: CUNDINAMARCA | C79: SECRETARIA DE AGRICULTURA | D79: 2015000050029 | E79: IMPLEMENTACIÓN Y PUESTA EN MARCHA DE UNA PLANTA HOMOGENIZADORA DE MIELES PARA LA PRODUCCION DE PANELA EN EL MUNICIPIO DE QUIPILE, CUNDINAMARCA, CENTRO ORIENTE | F79: AGRICULTURA | G79: 3395531657 | H79: 3139511657 | I79: 256020000 | J79: 42180 | K79: 2015 | L79: 037 de 25 2015 | M79: CERRADO | N79: 1 | O79: 1
A80: 71 | B80: CUNDINAMARCA | C80: SECRETARIA DE AGRICULTURA | D80: 2015000050030 | E80: FORTALECIMIENTO A LA CADENA PRODUCTIVA DEL CACAO EN EL DEPARTAMENTO DE CUNDINAMARCA | F80: AGRICULTURA | G80: 2253334400 | H80: 1200000000 | I80: 1053334400 | J80: 42159 | K80: 2015 | L80: 036 de 2015 | M80: CERRADO | N80: 1 | O80: 1
A81: 72 | B81: CUNDINAMARCA | C81: SECRETARIA DE GOBIERNO | D81: 2015000050031 | E81: ADQUISICIÓN DE VEHICULOS PARA LOS CUERPOS OPERATIVOS (BOMBEROS) PARA LAS PROVINCIAS DEL DEPARTAMENTO DE CUNDINAMARCA | F81: AMBIENTE Y DESARROLLO SOSTENIBLE | G81: 3670000000 | H81: 3670000000 | I81: 0 | J81: 42159 | K81: 2015 | L81: 036 de 2015 | M81: CERRADO | N81: 1 | O81: 0.98
A82: 73 | B82: CUNDINAMARCA | C82: SECRETARIA DE AGRICULTURA | D82: 2015000050034 | E82: FORTALECIMIENTO DE LA PRODUCTIVIDAD Y COMPETITIVIDAD DEL SECTOR CAUCHERO EN EL DEPARTAMENTO DE CUNDINAMARCA | F82: AGRICULTURA | G82: 2158800000 | H82: 1500000000 | I82: 658800000 | J82: 42159 | K82: 2015 | L82: 036 de 2015 | M82: CERRADO | N82: 1 | O82: 1
A83: 74 | B83: ENTIDAD APORTANTE RECURSOS | C83: ICCU - GESPROY GB | D83: 2015000050041 | E83: MEJORAMIENTO DE LA VA UBALA - PALOMAS - MAMBITA - MEDINA (K0+000 UBICADO EN EL SITIO PROFESIONALES MUNICIPIO DE UBALA, DEPARTAMENTO DE CUNDINAMARCA | F83: TRANSPORTE | G83: 13663491451 | H83: 12663491451 | I83: 1000000000 | J83: 42180 | K83: 2015 | L83: 037 DE 2015 | M83: CERRADO | N83: 1 | O83: 1
A84: 75 | B84: CUNDINAMARCA | C84: SECRETARIA DE DESARROLLO E INCLUSIÓN SOCIAL | D84: 2015000050048 | E84: IMPLEMENTACIÓN DEL PROGRAMA DE COMPLEMENTACION ALIMENTARIA Y NUTRICIONAL PARA MENORES DE 5 AÑOS, MADRES GESTANTES Y LACTANTES EN TODO EL DEPARTAMENTO DE CUNDINAMARCA 2015 | F84: SALUD Y PROTECCIÓN SOCIAL | G84: 2900000000 | H84: 2900000000 | I84: 0 | J84: 42348 | K84: 2015 | L84: 044 de 2015 | M84: CERRADO | N84: 1 | O84: 1
A85: 76 | B85: CUNDINAMARCA | C85: SECRETARIA DE EDUCACIÓN | D85: 2016000050005 | E85: FORTALECIMIENTO DE LA PERMANENCIA DE LOS ESTUDIANTES EN LOS MUNICIPIOS DEL DEPARTAMENTO DE CUNDINAMARCA, CENTRO ORIENTE - 2016 | F85: EDUCACIÓN | G85: 14963757156 | H85: 14963757156 | I85: 0 | J85: 42605 | K85: 2016 | L85: 054 DE 2016 | M85: CERRADO | N85: 0.967 | O85: 0.5617
A86: 77 | B86: CUNDINAMARCA | C86: SECRETARIA DE EDUCACIÓN | D86: 2016000050014 | E86: FORTALECIMIENTO A LA ESTRATEGIA DE ALIMENTACION ESCOLAR PARA MUNICIPIOS NO CERTIFICADOS DEL DEPARTAMENTO DE CUNDINAMARCA, SGR 2016. | F86: EDUCACIÓN | G86: 12339894658 | H86: 12339894658 | I86: 0 | J86: 42625 | K86: 2016 | L86: 055 de 2016 | M86: CERRADO | N86: 0.767 | O86: 0.7473
A87: 78 | B87: ENTIDAD APORTANTE RECURSOS | C87: ICCU - GESPROY GB | D87: 2016000050023 | E87: MANTENIMIENTO DE LA RED VIAL EN AFIRMADO A TRAVS DE LA ADQUISICION DE MAQUINARIA PESADA Y EQUIPO DE TRANSPORTE EN EL DEPARTAMENTO DE CUNDINAMARCA | F87: TRANSPORTE | G87: 24179817530 | H87: 24179817530 | I87: 0 | J87: 43066 | K87: 2017 | L87: 068 de 2017 | M87: CERRADO | N87: 0.9133 | O87: 0.6281
A88: 79 | B88: ENTIDAD APORTANTE RECURSOS | C88: ICCU - GESPROY GB | D88: 2016000050025 | E88: REHABILITACIÓN DE LA VIA BOQUERON - PANDI DEL DEPARTAMENTO DE CUNDINAMARCA | F88: TRANSPORTE | G88: 4991550669 | H88: 4991550669 | I88: 0 | J88: 42825 | K88: 2017 | L88: 061 DE 2017 | M88: CERRADO | N88: 1 | O88: 0.9874
A89: 80 | B89: ENTIDAD APORTANTE RECURSOS | C89: ICCU - GESPROY GB | D89: 2016000050029 | E89: REHABILITACIÓN DE LA VIA LA QUINTA - REPRESA DEL NEUSA, MUNICIPIO DE COGUA, DEPARTAMENTO DE CUNDINAMARCA | F89: TRANSPORTE | G89: 6798676732 | H89: 5625757063 | I89: 1172919669 | J89: 42846 | K89: 2017 | L89: 061 de 2017 | M89: CERRADO | N89: 1 | O89: 0.9999
A90: 81 | B90: ENTIDAD APORTANTE RECURSOS | C90: ICCU - GESPROY GB | D90: 2016000050032 | E90: REHABILITACIÓN DE LA VIA CLUB EL BOSQUE - TIBACUY - CUMACA DEL DEPARTAMENTO DE CUNDINAMARCA | F90: TRANSPORTE | G90: 4022150134 | H90: 3022150134 | I90: 1000000000 | J90: 42825 | K90: 2017 | L90: 061 DE 2017 | M90: CERRADO | N90: 1 | O90: 0.9998
A91: 82 | B91: ENTIDAD APORTANTE RECURSOS | C91: ALCALDIA MAYOR DE BOGOTA | D91: 2016000050033 | E91: ELABORACIÓN DE LA ENCUESTA MULTIPROPOSITO 2017 : BOGOTA - CUNDINAMARCA | F91: VIVIENDA, CIUDAD Y TERRITORIO | G91: 17282722269 | H91: 16761722269 | I91: 521000000 | J91: 42825 | K91: 2017 | L91: 061 DE 2017 | M91: CERRADO | N91: 1 | O91: 0.9995
A92: 83 | B92: CUNDINAMARCA | C92: SECRETARIA DE HABITAT Y VIVIENDA | D92: 2016000050052 | E92: CONSTRUCCIÓN DE VIVIENDAS NUEVAS RURALES EN EL DEPARTAMENTO DE CUNDINAMARCA | F92: AGRICULTURA | G92: 5983779025 | H92: 5343748805 | I92: 640030220 | J92: 43090 | K92: 2017 | L92: 069 de 2017 | M92: CONTRATADO EN EJECUCIÓN | N92: 0.9273 | O92: 0.9863
A93: 84 | B93: CUNDINAMARCA | C93: SECRETARIA DE CIENCIA, TECNOLOGIA E INNOVACIÓN | D93: 2016000100027 | E93: ANLISIS DE FACTORES GENETICOS, SANITARIOS Y MEDIOAMBIENTALES QUE AFECTAN LAS TASAS DE PREÑEZ A PARTIR DE EMBRIONES IN VITRO EN EL DEPARTAMENTO DE CUNDINAMARCA | F93: CTEL | G93: 6401358633 | H93: 5078774029 | I93: 1322584604 | J93: 43098 | K93: 2017 | L93: 063 DE 2017 | M93: CONTRATADO EN EJECUCIÓN | N93: 0.849 | O93: 0.8645
A94: 85 | B94: CUNDINAMARCA | C94: ENTIDAD DESIGNADA PARA LA SUPERVISIÓN DEL PROYECTO O PARA CONTRATAR LA INTERVENTORÍA RAPE - INTERVENTORIA SECRETARIA DE PLANEACIÓN | D94: 2016000050012 | E94: IMPLEMENTACIÓN DE ACCIONES DE CONSERVACION Y RESTAURACION DE LOS COMPLEJOS DE PARAMO, BOSQUE ALTO-ANDINO Y SERVICIOS ECOSISTEMICOS DE LA REGION CENTRAL | F94: AMBIENTE Y DESARROLLO SOSTENIBLE | G94: 32499987282 | H94: =G94 -> 32499987282 | I94: 0 | J94: 42829 | K94: 2017 | L94: 058 DE 2016 | M94: CONTRATADO EN EJECUCIÓN | N94: 0.9981 | O94: 0.9978
A95: 86 | B95: CUNDINAMARCA | C95: SECRETARIA DE DESARROLLO E INCLUSIÓN SOCIAL | D95: 2017000050017 | E95: FORTALECIMIENTO DEL PROGRAMA DE COMPLEMENTACIÓN ALIMENTARIA Y NUTRICIONAL PARA NIÑAS, NIÑOS MENORES DE 5 AÑOS Y MADRES GESTANTES Y LACTANTES EN RIESGO DE DESNUTRICIÓN DEL DEPARTAMENTO DE CUNDINAMARCA | F95: INCLUSIÓN SOCIAL Y RECONCILIACIÓN | G95: 8199993544 | H95: 8199993544 | I95: 0 | J95: 42915 | K95: 2017 | L95: 062 de 2017 | M95: CERRADO | N95: 1 | O95: 0.9691
A96: 87 | B96: CUNDINAMARCA | C96: SECRETARIA DE EDUCACIÓN | D96: 2017000050027 | E96: FORTALECIMIENTO DE LA PERMANENCIA DE LOS ESTUDIANTES EN LOS MUNICIPIOS DEL DEPARTAMENTO DE CUNDINAMARCA , CENTRO ORIENTE 2017 CUNDINAMARCA | F96: EDUCACIÓN | G96: 14995289800 | H96: 14995289800 | I96: 0 | J96: 42961 | K96: 2017 | L96: 064 de 2017 | M96: TERMINADO | N96: 1 | O96: 0.8859
A97: 88 | B97: ENTIDAD APORTANTE RECURSOS | C97: MUNICIPIO DE ZIPAQUIRA | D97: 2017000050029 | E97: CONSERVACIÓN Y GESTIÓN INTEGRAL DEL RECURSO HÍDRICO MEDIANTE LA ADQUISICIÓN Y RESTAURACIÓN DE PREDIOS DE INTERÉS ECOSISTÉMICO EN ELDEPARTAMENTO DE CUNDINAMARCA | F97: AMBIENTE Y DESARROLLO SOSTENIBLE | G97: 900000000 | H97: 467000000 | I97: 433000000 | J97: 43340 | K97: 2018 | L97: 077 DE 2018 | M97: CONTRATADO EN EJECUCIÓN | N97: 0.3327 | O97: 0.4754
A98: 89 | B98: CUNDINAMARCA | C98: SECRETARIA DE EDUCACIÓN | D98: 2017000050033 | E98: FORTALECIMIENTO A LA ESTRATEGIA DE ALIMENTACIÓN ESCOLAR PARA MUNICIPIOS NO CERTIFICADOS DEL DEPARTAMENTO DE CUNDINAMARCA | F98: EDUCACIÓN | G98: 14000000000 | H98: 14000000000 | I98: 0 | J98: 42977 | K98: 2017 | L98: 065 de 2017 | M98: CERRADO | N98: 1 | O98: 0.2694
A99: 90 | B99: CUNDINAMARCA | C99: SECRETARIA DE MINAS, ENERGIA Y GAS | D99: 2017000050036 | E99: IMPLEMENTACIÓN Y EXPANSIÓN DEL SERVICIO DE GAS COMBUSTIBLE POR REDES PARA VEREDAS Y CENTROS POBLADOS DEL DEPARTAMENTO DE CUNDINAMARCA | F99: MINAS Y ENERGÍA | G99: 4751658472 | H99: 3069656503 | I99: 1682001969 | J99: 43356 | K99: 2018 | L99: 077 DE 2018 | M99: CONTRATADO EN EJECUCIÓN | N99: 0.9151 | O99: 0.9207
A100: 91 | B100: CUNDINAMARCA | C100: SECRETARIA DE PLANEACIÓN | D100: 2017000050039 | E100: MEJORAMIENTO DE VÍAS TERCIARIAS MEDIANTE EL USO DE PLACA HUELLA EN LOS MUNICIPIOS DE GUATAVITA, PACHO, SAN JUAN DE RIOSECO, SUBACHOQUE, TENA Y ZIPAQUIRÁ, DEPARTAMENTO DE CUNDINAMARCA | F100: TRANSPORTE | G100: 6791102422 | H100: 6725380622 | I100: 65721800 | J100: 43124 | K100: 2017 | L100: 067 DE 2017 | M100: CONTRATADO EN EJECUCIÓN | N100: 0.9852 | O100: 0.9865
A101: 92 | B101: CUNDINAMARCA | C101: SECRETARIA DE HABITAT Y VIVIENDA | D101: 2017000050042 | E101: MEJORAMIENTO DE VIVIENDAS RURALES DE LA PROVINCIA DE UBATÉ - CUNDINAMARCA | F101: AGRICULTURA | G101: 2354318125 | H101: 2354318125 | I101: 0 | J101: 43096 | K101: 2017 | L101: 069 de 2017 | M101: TERMINADO | N101: 1 | O101: 0.9708
A102: 93 | B102: CUNDINAMARCA | C102: SECRETARIA DE SALUD | D102: 2017000050061 | E102: ADQUISICIÓN AMBULANCIAS DE TRANSPORTE ASISTENCIAL BÁSICO (TAB) Y TRANSPORTE ASISTENCIAL MEDICALIZADA (TAM), PARA EL APOYO DEL SISTEMA DE REFERENCIA Y CONTRA REFERENCIA DE LA RED HOSPITALARIA DEL DEPARTAMENTO DE CUNDINAMARCA | F102: SALUD Y PROTECCIÓN SOCIAL | G102: 3764666699 | H102: 2000553024 | I102: 1764113675 | J102: 43081 | K102: 2017 | L102: 069 de 2017 | M102: CERRADO | N102: 1 | O102: 0.9708
A103: 94 | B103: CUNDINAMARCA | C103: SECRETARIA DE AGRICULTURA | D103: 2017000050062 | E103: FORTALECIMIENTO DE LAS CADENAS PRODUCTIVAS DE MANGO, AGUACATE Y CÍTRICOS EN EL DEPARTAMENTO DE CUNDINAMARCA | F103: AGRICULTURA | G103: 3000129600 | H103: 2100129600 | I103: 900000000 | J103: 43124 | K103: 2018 | L103: 072 DE 2018 | M103: CERRADO | N103: 1 | O103: 1
A104: 95 | B104: CUNDINAMARCA | C104: SECRETARIA DE MINAS, ENERGIA Y GAS | D104: 2017000050064 | E104: CONSTRUCCIÓN DE REDES ELÉCTRICAS EN ZONA RURAL DE 13 MUNICIPIOS, EN EL MARCO DEL PROYECTO ILUMINANDO VIDAS DEL DEPARTAMENTO DE CUNDINAMARCA | F104: MINAS Y ENERGÍA | G104: 2972842689 | H104: 2532327281 | I104: 440515408 | J104: 43273 | K104: 2018 | L104: 076 DE 2018 | M104: CERRADO | N104: 0.8233 | O104: 0.8188
A105: 96 | B105: CUNDINAMARCA | C105: SECRETARIA DE AGRICULTURA | D105: 2017000050065 | E105: MEJORAMIENTO DE LA PRODUCTIVIDAD Y RENTABILIDAD DE LOS CAFICULTORES DEL DEPARTAMENTO DE CUNDINAMARCA | F105: AGRICULTURA | G105: 6523880054 | H105: 4220000000 | I105: 2303880054 | J105: 43096 | K105: 2017 | L105: 069 DE 2017 | M105: CONTRATADO EN EJECUCIÓN | N105: 0.8262 | O105: 0.5863
A106: 97 | B106: CUNDINAMARCA | C106: SECRETARIA DE CIENCIA, TECNOLOGIA E INNOVACIÓN | D106: 2017000100016 | E106: IMPLEMENTACIÓN PROGRAMA DE INNOVACIÓN PARA LA VALIDACIÓN Y GENERACIÓN DE PRODUCTOS DERIVADOS DE LA BIODIVERSIDAD EN EL DEPARTAMENTO DE CUNDINAMARCA | F106: CTEL | G106: 4486653319 | H106: 4343608212 | I106: 143045107 | J106: 42941 | K106: 2017 | L106: 058 DE 2017 | M106: CONTRATADO EN EJECUCIÓN | N106: 0.7724 | O106: 0.9296
A107: 98 | B107: CUNDINAMARCA | C107: SECRETARIA DE CIENCIA, TECNOLOGIA E INNOVACIÓN | D107: 2017000100034 | E107: IMPLEMENTACIÓN DE UN SISTEMA DE GESTIÓN DE INNOVACIÓN PARA LA INDUSTRIA DE CUNDINAMARCA | F107: CTEL | G107: 3925471448 | H107: 3714407118 | I107: 211064330 | J107: 42941 | K107: 2017 | L107: 058 DE 2017 | M107: CONTRATADO EN EJECUCIÓN | N107: 0.9921 | O107: 0.9418
A108: 99 | B108: CUNDINAMARCA | C108: SECRETARIA DE CIENCIA, TECNOLOGIA E INNOVACIÓN | D108: 2017000100074 | E108: IMPLEMENTACIÓN DE ESTRATEGIAS DE FOMENTO A LA CULTURA Y SERVICIOS DE INNOVACIÓN EN LAS PROVINCIAS SABANA OCCIDENTE, SABANA CENTRAL, SOACHA Y SUMAPAZ CUNDINAMARCA | F108: CTEL | G108: 6183633276 | H108: 5533633276 | I108: 650000000 | J108: 43098 | K108: 2017 | L108: 063 DE 2017 | M108: TERMINADO | N108: 1 | O108: 1
A109: 100 | B109: CUNDINAMARCA | C109: SECRETARIA DE CIENCIA, TECNOLOGIA E INNOVACIÓN | D109: 2017000100076 | E109: FORTALECIMIENTO DE CAPACIDADES DE GESTIÓN DEL RIESGO A TRAVÉS DE APROPIACIÓN SOCIAL DE LA CIENCIA, LA TECNOLOGÍA Y LA INNOVACIÓN EN EL DEPARTAMENTO DE CUNDINAMARCA | F109: CTEL | G109: 4404970720 | H109: 4000000000 | I109: 404970720 | J109: 43322 | K109: 2018 | L109: 068 DE 2018 | M109: CONTRATADO EN EJECUCIÓN | N109: 0.4886 | O109: 0.6336
A110: 101 | B110: CUNDINAMARCA | C110: SECRETARIA DE CIENCIA, TECNOLOGIA E INNOVACIÓN | D110: 2017000100087 | E110: FORMACIÓN DE TALENTO HUMANO DE ALTO NIVEL EN MAESTRÍAS EN EL DEPARTAMENTO DE CUNDINAMARCA | F110: CTEL | G110: 5148022960 | H110: 5048022960 | I110: 100000000 | J110: 43698 | K110: 2019 | L110: 078 DE 2019 | M110: CONTRATADO EN EJECUCIÓN | N110: 0.465 | O110: 0.5732
A111: 102 | B111: CUNDINAMARCA | C111: SECRETARIA DE CIENCIA, TECNOLOGIA E INNOVACIÓN | D111: 2017000100104 | E111: FORTALECIMIENTO DE LA CULTURA DE LA GESTIÓN Y UTILIZACIÓN DEL CONOCIMIENTO EN CTEI EN NIÑOS, JÓVENES Y COMUNIDADES DEL DEPARTAMENTO DE CUNDINAMARCA | F111: CTEL | G111: 9498967749 | H111: 7498967749 | I111: 2000000000 | J111: 43565 | K111: 2019 | L111: 074 DE 2019 | M111: CONTRATADO EN EJECUCIÓN | N111: 0.651 | O111: 0.5687
A112: 103 | B112: CUNDINAMARCA | C112: UNIDAD ADMINISTRATIVA DE GESTIÓN DEL RIESGO. | D112: 20172401060022 | E112: ESTUDIOS DETALLADOS PARA LA INCORPORACIÓN DE LA GESTIÓN DEL RIESGO PARA LOS MUNICIPIOS DE GIRARDOT, RICAURTE | F112: AMBIENTE Y DESARROLLO SOSTENIBLE | G112: 3084907873 | H112: 3084907873 | I112: 0 | J112: 43802 | K112: 2019 | L112: 033 DE 2019 | M112: CONTRATADO EN EJECUCIÓN | N112: 0 | O112: 0
A113: 104 | B113: CUNDINAMARCA | C113: SECRETARIA DE CIENCIA, TECNOLOGIA E INNOVACIÓN | D113: 20170000100012 | E113: CONFORMACIÓN DE UNA CONVOCATORIA REGIONAL DE PROYECTOS I+D EN FOCOS PRIORIZADOS CTEI PARA EL FORTALECIMIENTO DE LOS GRUPOS DE INVESTIGACIÓN CUNDINAMARCA | F113: CTEL | G113: 7321934035 | H113: 7128998177 | I113: 192935858 | J113: 42941 | K113: 2017 | L113: 058 DE 2017 | M113: CONTRATADO EN EJECUCIÓN | N113: 0.6585 | O113: 0.9512
A114: 105 | B114: ENTIDAD APORTANTE RECURSOS | C114: CAR | D114: 2017000050063 | E114: RECUPERACIÓN HIDRÁULICA Y AMBIENTAL DEL COMPLEJO LAGUNAR FÚQUENE | F114: AMBIENTE Y DESARROLLO SOSTENIBLE | G114: 18000000000 | H114: 18000000000 | I114: 0 | J114: 43364 | K114: 2018 | L114: 081 DE 2018 | M114: CONTRATADO EN EJECUCIÓN | N114: 0.4351 | O114: 0.335
A115: 106 | B115: ENTIDAD APORTANTE RECURSOS | C115: CAR | D115: 2017000050070 | E115: CONSTRUCCIÓN DE OBRAS DE MITIGACIÓN DEL RIESGO POR EVENTOS CLIMÁTICOS EN LA CUENCA DE LA QUEBRADA LA PARROQUIA EN EL CERRO DE FUSACATÁN DEL MUNICIPIO DE FUSAGASUGÁ, CUNDINAMARCA | F115: AMBIENTE Y DESARROLLO SOSTENIBLE | G115: 1976558725 | H115: 1376558725 | I115: 600000000 | J115: 43417 | K115: 2018 | L115: 082 DE 2018 | M115: DESAPROBADO | N115: 0 | O115: 0
A116: 107 | B116: ENTIDAD APORTANTE RECURSOS | C116: MUNICIPIO DE UTICA | D116: 2017000050087 | E116: MEJORAMIENTO DEL SENDERO TURÍSTICO DE LA PROVINCIA DEL GUALIVÁ – ÚTICA CUNDINAMARCA | F116: COMERCIO, INDUSTRIA Y TURISMO | G116: 2347004868 | H116: 2123058880 | I116: 223945988 | J116: 43211 | K116: 2018 | L116: 075 de 2018 | M116: CONTRATADO EN EJECUCIÓN | N116: 0.576 | O116: 0.8685
A117: 108 | B117: CUNDINAMARCA | C117: SECRETARIA DE EDUCACIÓN | D117: 2018000050019 | E117: FORTALECIMIENTO DE LA PERMANENCIA DE LOS ESTUDIANTES EN LOS MUNICIPIOS DEL DEPARTAMENTO DE CUNDINAMARCA, CENTRO ORIENTE 2018 CUNDINAMARCA | F117: EDUCACIÓN | G117: 19395559645 | H117: 19395559645 | I117: 0 | J117: 43336 | K117: 2018 | L117: 080 DE 2018 | M117: CERRADO | N117: 1 | O117: 0.6612
A118: 109 | B118: ENTIDAD APORTANTE RECURSOS | C118: ICCU - GESPROY GB | D118: 2018000050022 | E118: MEJORAMIENTO Y REHABILITACIÓN DE VÍAS SECUNDARIAS EN LA PROVINCIA DE UBATÉ, DEPARTAMENTO DE CUNDINAMARCA | F118: TRANSPORTE | G118: 7524876363 | H118: 7441105086 | I118: 83771277 | J118: 43320 | K118: 2018 | L118: 078 de 2018 | M118: PARA CIERRE | N118: 0.9883 | O118: 0.9731
A119: 110 | B119: ENTIDAD APORTANTE RECURSOS | C119: ICCU - GESPROY GB | D119: 2018000050024 | E119: MEJORAMIENTO Y REHABILITACIÓN DE LA VÍA LA MARÍA – TOBIA - PASO EL REJO - LA PEÑA, DEPARTAMENTO DE CUNDINAMARCA | F119: TRANSPORTE | G119: 9149162991 | H119: 8983328881 | I119: 165834110 | J119: 43417 | K119: 2018 | L119: 082 de 2018 | M119: TERMINADO | N119: 0.9645 | O119: 0.9327
A120: 111 | B120: ENTIDAD APORTANTE RECURSOS | C120: ICCU - GESPROY GB | D120: 2018000050026 | E120: MEJORAMIENTO DE VÍAS EN LA PROVINCIA DE SUMAPAZ PARA LA CONSOLIDACIÓN DE UNA PAZ ESTABLE Y DURADERA EN EL DEPARTAMENTO DE CUNDINAMARCA | F120: TRANSPORTE | G120: 11457047617 | H120: 11457047617 | I120: 0 | J120: 43462 | K120: 2018 | L120: 011 de 2018 - OCAD PAZ | M120: CONTRATADO EN EJECUCIÓN | N120: 0.3659 | O120: 0.6066
A121: 112 | B121: CUNDINAMARCA | C121: UNIDAD ADMINISTRATIVA DE GESTIÓN DEL RIESGO. | D121: 2018000050036 | E121: CONSTRUCCIÓN DE OBRAS PARA LA MITIGACIÓN DEL RIESGO EN EL MUNICIPIO DE SAN BERNARDO, BENEFICIANDO A COMUNIDADES DE LOS MUNICIPIOS DE ARBELAEZ, PANDI Y VENECIA CUNDINAMARCA | F121: AMBIENTE Y DESARROLLO SOSTENIBLE | G121: 2305788182 | H121: 2305788182 | I121: 0 | J121: 43629 | K121: 2019 | L121: 089 de 2019 | M121: DESAPROBADO | N121: 0 | O121: 0
A122: 113 | B122: CUNDINAMARCA | C122: SECRETARIA DE HABITAT Y VIVIENDA | D122: 2018000050039 | E122: MEJORAMIENTO DE VIVIENDA RURAL EN LOS MUNICIPIOS DE CUCUNUBÁ, JERUSALEN, QUEBRADANEGRA Y VIOTÁ - DEPARTAMENTO DE CUNDINAMARCA | F122: AGRICULTURA | G122: 4024793625 | H122: 4024793625 | I122: 0 | J122: 43571 | K122: 2019 | L122: 009 DE 2019 | M122: CONTRATADO EN EJECUCIÓN | N122: 1 | O122: 0.9862
A123: 114 | B123: ENTIDAD APORTANTE RECURSOS | C123: ICCU - GESPROY GB | D123: 2018000050049 | E123: MEJORAMIENTO DE LA VÍA SESQUILÉ – GUATAVITA - GACHETÁ, DEPARTAMENTO DE CUNDINAMARCA | F123: TRANSPORTE | G123: 3997714045 | H123: 3935792642 | I123: 61921403 | J123: 43455 | K123: 2018 | L123: 084 de 2018 | M123: PARA CIERRE | N123: 0.8093 | O123: 0.8087
A124: 115 | B124: ENTIDAD APORTANTE RECURSOS | C124: ICCU - GESPROY GB | D124: 2018000050055 | E124: MEJORAMIENTO DE LA TRONCAL DE RIONEGRO, SECTOR LA PALMA CHARCO LARGO PARA LA CONSOLIDACIÓN DE UNA PAZ ESTABLE Y DURADERA EN EL DEPARTAMENTO DE CUNDINAMARCA | F124: TRANSPORTE | G124: 17928531277 | H124: 17928531277 | I124: 0 | J124: 43532 | K124: 2019 | L124: 086 de 2019 | M124: CERRADO | N124: 0.9551 | O124: 0.9221
A125: 116 | B125: ENTIDAD APORTANTE RECURSOS | C125: ICCU - GESPROY GB | D125: 2018000050059 | E125: MEJORAMIENTO DE LA VÍA GUSBITA - TIBIRITA DEL DEPARTAMENTO DE CUNDINAMARCA | F125: TRANSPORTE | G125: 5500531740 | H125: 4870657724 | I125: 629874016 | J125: 43532 | K125: 2019 | L125: 086 de 2019 | M125: TERMINADO | N125: 0.9958 | O125: 0.8521
A126: 117 | B126: CUNDINAMARCA | C126: SECRETARIA DE CIENCIA, TECNOLOGIA E INNOVACIÓN | D126: 2018000100106 | E126: INNOVACIÓN EN EL MODELO DE GESTIÓN DEL MEDICAMENTO FASE III EN EL DEPARTAMENTO DE CUNDINAMARCA | F126: CTEL | G126: 3452890062 | H126: 3071356262 | I126: 381533800 | J126: 43830 | K126: 2019 | L126: 087 DE 2019 | M126: NO HA MIGRADO A GESPROY | N126: 0 | O126: 0
A127: 118 | B127: CUNDINAMARCA | C127: SECRETARIA DE CIENCIA, TECNOLOGIA E INNOVACIÓN | D127: 2018000100160 | E127: FORMACIÓN DE CAPITAL HUMANO DE ALTO NIVEL PARA LA INVESTIGACIÓN, EL DESARROLLO TECNOLÓGICO Y LA INNOVACIÓN MAESTRÍAS DE INVESTIGACIÓN PARA DOCENTES DEL DEPARTAMENTO DE CUNDINAMARCA | F127: CTEL | G127: 5217415747 | H127: 3519725709 | I127: 1697690038 | J127: 43731 | K127: 2019 | L127: 080 DE 2019 | M127: CONTRATADO EN EJECUCIÓN | N127: 0.0027 | O127: 0.3061
A128: 119 | B128: CUNDINAMARCA | C128: ENTIDAD DESIGNADA PARA LA SUPERVISIÓN DEL PROYECTO O PARA CONTRATAR LA INTERVENTORÍA-EMPRESAS PUBLICAS DE CUNDINAMARCA -EPC | D128: 20181301010555 | E128: CONSTRUCCIÓN DE UNIDADES SANITARIAS EN EL ÁREA RURAL DEL DEPARTAMENTO DE CUNDINAMARCA | F128: VIVIENDA, CIUDAD Y TERRITORIO | G128: 4999900475 | H128: 4999900475 | I128: 0 | J128: 43378 | K128: 2018 | L128: 010 DE 2018 - OCAD PAZ | M128: CONTRATADO EN EJECUCIÓN | N128: 0.8177 | O128: 0.7379
A129: 120 | B129: ENTIDAD APORTANTE RECURSOS | C129: ICCU - GESPROY GB | D129: 2019000050002 | E129: MEJORAMIENTO DE LA VÍA DEPARTAMENTAL LA VICTORIA (EL COLEGIO) SAN GABRIEL (VIOTÁ), TRAMO LA VICTORIA ALTO DE LA MULA, DEPARTAMENTO DE CUNDINAMARCA | F129: TRANSPORTE | G129: 5745879373 | H129: 5745879373 | I129: 0 | J129: 43532 | K129: 2019 | L129: 086 de 2019 | M129: CERRADO | N129: 0.9722 | O129: 0.9852
A130: 121 | B130: ENTIDAD APORTANTE RECURSOS | C130: ICCU - GESPROY GB | D130: 2019000050003 | E130: MEJORAMIENTO DE LA VÍA CÁQUEZA FOSCA, DEPARTAMENTO DE CUNDINAMARCA | F130: TRANSPORTE | G130: 4049029755 | H130: 4049029755 | I130: 0 | J130: 43585 | K130: 2019 | L130: 088 de 2019 | M130: CERRADO | N130: 0.9327 | O130: 0.9854
A131: 122 | B131: ENTIDAD APORTANTE RECURSOS | C131: ICCU - GESPROY GB | D131: 2019000050005 | E131: MEJORAMIENTO DE LA VÍA FÓMEQUE UBAQUE, DEPARTAMENTO DE CUNDINAMARCA | F131: TRANSPORTE | G131: 16514204213 | H131: 14057373703 | I131: 2456830510 | J131: 43629 | K131: 2019 | L131: 089 DE 2019 | M131: CERRADO | N131: 0.9992 | O131: 0.9992
A132: 123 | B132: ENTIDAD APORTANTE RECURSOS | C132: ICCU - GESPROY GB | D132: 2019000050011 | E132: MEJORAMIENTO DE LA VÍA SUPATÁ - PACHO, DEPARTAMENTO DE CUNDINAMARCA | F132: TRANSPORTE | G132: 7339441010 | H132: 7339441010 | I132: 0 | J132: 43585 | K132: 2019 | L132: 088 DE 2019 | M132: CONTRATADO EN EJECUCIÓN | N132: 0.7131 | O132: 0.719
A133: 124 | B133: ENTIDAD APORTANTE RECURSOS | C133: ICCU - GESPROY GB | D133: 2019000050013 | E133: CONSTRUCCIÓN DE LA PLAZA DE MERCADO DEL MUNICIPIO DE CHOACHÍ CUNDINAMARCA | F133: AGRICULTURA | G133: 3152125044 | H133: 3152125044 | I133: 0 | J133: 43687 | K133: 2019 | L133: 090 DE 2019 | M133: CONTRATADO EN EJECUCIÓN | N133: 0.503 | O133: 0.6409
A134: 125 | B134: ENTIDAD APORTANTE RECURSOS | C134: ICCU - GESPROY GB | D134: 2019000050016 | E134: MEJORAMIENTO DE LA VÍA ANOLAIMA CORRALEJAS (INSPECCIÓN DE CORRALEJAS), DEPARTAMENTO DE CUNDINAMARCA | F134: TRANSPORTE | G134: 6898362469 | H134: 5718724028 | I134: 1179638441 | J134: 43629 | K134: 2019 | L134: 089 DE 2019 | M134: TERMINADO | N134: 0.9985 | O134: 0.999
A135: 126 | B135: CUNDINAMARCA | C135: SECRETARIA DE EDUCACIÓN | D135: 2019000050020 | E135: FORTALECIMIENTO DE LA PERMANENCIA DE LOS ESTUDIANTES PARA EL AÑO 2019 EN LOS MUNICIPIOS DEL DEPARTAMENTO DE CUNDINAMARCA | F135: EDUCACIÓN | G135: 20536293937 | H135: 20536293937 | I135: 0 | J135: 43629 | K135: 2019 | L135: 089 DE 2019 | M135: TERMINADO | N135: 1 | O135: 0.9243
A136: 127 | B136: ENTIDAD APORTANTE RECURSOS | C136: ICCU - GESPROY GB | D136: 2019000050023 | E136: MEJORAMIENTO DE LA VÍA LENGUAZAQUE - VILLAPINZÓN, DEPARTAMENTO DE CUNDINAMARCA | F136: TRANSPORTE | G136: 8636278689 | H136: 7310087087 | I136: 1326191602 | J136: 43629 | K136: 2019 | L136: 089 DE 2019 | M136: TERMINADO | N136: 1 | O136: 0.8383
A137: 128 | B137: CUNDINAMARCA | C137: SECRETARIA DE AGRICULTURA | D137: 2019000050027 | E137: MEJORAMIENTO DE LA COMPETITIVIDAD DE LA CADENA PRODUCTIVA DE CACAO EN EL DEPARTAMENTO DE CUNDINAMARCA | F137: AGRICULTURA | G137: 5862983962 | H137: 4397237971 | I137: 1465745991 | J137: 43819 | K137: 2019 | L137: 098 DE 2019 | M137: CONTRATADO EN EJECUCIÓN | N137: 1 | O137: 0.7636
A138: 129 | B138: ENTIDAD APORTANTE RECURSOS | C138: ICCU - GESPROY GB | D138: 2019000050029 | E138: MEJORAMIENTO DE LA VÍA GACHETÁ - GAMA, DEPARTAMENTO DE CUNDINAMARCA | F138: TRANSPORTE | G138: $ 5.477.582.208 | H138: 5322582208 | I138: =G138-H138 -> 155000000 | J138: 43629 | K138: 2019 | L138: 089 DE 2019 | M138: TERMINADO | N138: 0.9551 | O138: 0.8418
A139: 130 | B139: CUNDINAMARCA | C139: SECRETARIA DE SALUD | D139: 2019000050036 | E139: ADQUISICIÓN DE AMBULANCIAS PARA EL FORTALECIMIENTO DE LA RED HOSPITALARIA DEL DEPARTAMENTO CUNDINAMARCA | F139: SALUD Y PROTECCIÓN SOCIAL | G139: 2385000000 | H139: 2385000000 | I139: 0 | J139: 43656 | K139: 2019 | L139: 090 DE 2019 | M139: CERRADO | N139: 1 | O139: 0.8281
A140: 131 | B140: CUNDINAMARCA | C140: UNIDAD ADMINISTRATIVA DE GESTIÓN DEL RIESGO. | D140: 2019000050037 | E140: FORTALECIMIENTO DEL SISTEMA DEPARTAMENTAL PARA LA GESTIÓN DEL RIESGO DE DESASTRES DEL DEPARTAMENTO DE CUNDINAMARCA | F140: PRESIDENCIA DE LA REPÚBLICA | G140: 4936307506 | H140: 4936307506 | I140: 0 | J140: 43748 | K140: 2019 | L140: 094 DE 2019 | M140: DESAPROBADO | N140: 0 | O140: 0
A141: 132 | B141: ENTIDAD APORTANTE RECURSOS | C141: MEDICINA LEGAL Y CIENCIAS FORENSES | D141: 2019000050025 | E141: ESTUDIOS Y DISEÑOS PARA LA CONSTRUCCIÓN DE LA SEDE DE MEDICINA LEGAL EN EL DEPARTAMENTO DE CUNDINAMARCA | F141: FISCALIA | G141: 904521100 | H141: 904521100 | I141: 0 | J141: 43677 | K141: 2019 | L141: 091 DE 2019 | M141: CONTRATADO EN EJECUCIÓN | N141: 0.4536 | O141: 0.5319
A142: 133 | B142: CUNDINAMARCA | C142: SECRETARIA DE MINAS, ENERGIA Y GAS | D142: 2019000050039 | E142: ESTUDIO Y DISEÑO PARA LA CONSTRUCCIÓN DE REDES ELÉCTRICAS AÉREAS EN ZONAS RURALES DEL DEPARTAMENTO DE CUNDINAMARCA | F142: MINAS Y ENERGÍA | G142: 1616407501 | H142: 1616407501 | I142: 0 | J142: 43714 | K142: 2019 | L142: 092 DE 2019 | M142: DESAPROBADO | N142: 0 | O142: 0
A143: 134 | B143: CUNDINAMARCA | C143: SECRETARIA DE EDUCACIÓN | D143: 2019000050044 | E143: FORTALECIMIENTO A LA ESTRATEGIA DE ALIMENTACIÓN ESCOLAR PARA MUNICIPIOS NO CERTIFICADOS, VIGENCIA 2019 DEL DEPARTAMENTO DE CUNDINAMARCA | F143: EDUCACIÓN | G143: 18301749135 | H143: 18301749135 | I143: 0 | J143: 43656 | K143: 2019 | L143: 090 DE 2019 | M143: CERRADO | N143: 0.2152 | O143: 0.5327
A144: 135 | B144: ENTIDAD APORTANTE RECURSOS | C144: ICCU - GESPROY GB | D144: 2019000050047 | E144: MEJORAMIENTO DE LA VÍA SUSA - CARMEN DE CARUPA, DEPARTAMENTO DE CUNDINAMARCA | F144: TRANSPORTE | G144: 4131178258 | H144: 4131178258 | I144: 0 | J144: 43677 | K144: 2019 | L144: 091 DE 2019 | M144: TERMINADO | N144: 1 | O144: 0.7939
A145: 136 | B145: ENTIDAD APORTANTE RECURSOS | C145: ICCU - GESPROY GB | D145: 2019000050056 | E145: MEJORAMIENTO DE LA VÍA QUE CONDUCE DEL MUNICIPIO DE NIMAIMA AL MUNICIPIO DE NOCAIMA, DEPARTAMENTO DE CUNDINAMARCA | F145: TRANSPORTE | G145: 5082491570 | H145: 4614214508 | I145: 468277061.8 | J145: 43748 | K145: 2019 | L145: 094 DE 2019 | M145: TERMINADO | N145: 1 | O145: 0.8722
A146: 137 | B146: ENTIDAD APORTANTE RECURSOS | C146: IDECUT | D146: 2019000050059 | E146: FORTALECIMIENTO A LAS ESCUELAS MUNICIPALES DE MÚSICA, DANZA, TEATRO Y ARTES PLÁSTICAS Y VISUALES EN EL DEPARTAMENTO DE CUNDINAMARCA | F146: CULTURA | G146: 1972606058 | H146: 1972606058 | I146: 0 | J146: 43748 | K146: 2019 | L146: 094 DE 2019 | M146: TERMINADO | N146: 1 | O146: 0
A147: 138 | B147: ENTIDAD APORTANTE RECURSOS | C147: ICCU - GESPROY GB | D147: 2019000050060 | E147: ESTUDIOS Y DISEÑOS DE VÍAS PARA MEJORAR LA COMPETITIVIDAD DEL DEPARTAMENTO DE CUNDINAMARCA | F147: TRANSPORTE | G147: 7089369627 | H147: 7089369627 | I147: 0 | J147: 43714 | K147: 2019 | L147: 092 DE 2019 | M147: TERMINADO | N147: 0.9865 | O147: 0.6287
A148: 139 | B148: CUNDINAMARCA | C148: SECRETARIA DE MINAS, ENERGIA Y GAS | D148: 2019000050073 | E148: AMPLIACIÓN DE LA COBERTURA DEL SERVICIO DE GAS COMBUSTIBLE DOMICILIARIO A TRAVÉS DE LA FINANCIACIÓN DE LA CONEXIÓN Y LA RED INTERNA PARA USUARIOS DE BARRIOS PERIFÉRICOS, VEREDAS Y CENTROS POBLADOS DEL DEPARTAMENTO DE CUNDINAMARCA | F148: MINAS Y ENERGÍA | G148: 12461377100 | H148: 6651376060 | I148: 5810001040 | J148: 43805 | K148: 2019 | L148: 097 DE 2019 | M148: CONTRATADO EN EJECUCIÓN | N148: 0.8925 | O148: 0.8663
A149: 140 | B149: ENTIDAD APORTANTE RECURSOS | C149: ICCU - GESPROY GB | D149: 2019000050075 | E149: MEJORAMIENTO DE LA VÍA QUE CONDUCE DEL MUNICIPIO DE VIANI AL MUNICIPIO DE CHAGUANI, (DE LA Y DE SAN VICENTE A CHAGUANI), DEPARTAMENTO DE CUNDINAMARCA | F149: TRANSPORTE | G149: 7504443091 | H149: 7504443091 | I149: 0 | J149: 43819 | K149: 2019 | L149: 098 DE 2019 | M149: CONTRATADO EN EJECUCIÓN | N149: 0.7555 | O149: 0.8663
A150: 141 | B150: ENTIDAD APORTANTE RECURSOS | C150: ICCU - GESPROY GB | D150: 2019000050079 | E150: MEJORAMIENTO DE LA VÍA SERREZUELA - EL TRIUNFO, MUNICIPIO DE LA CALERA, DEPARTAMENTO DE CUNDINAMARCA | F150: TRANSPORTE | G150: 7614258187 | H150: 7614258187 | I150: 0 | J150: 43748 | K150: 2019 | L150: 094 DE 2019 | M150: TERMINADO | N150: 0.9429 | O150: 0.8629
A151: 142 | B151: ENTIDAD APORTANTE RECURSOS | C151: ICCU - GESPROY GB | D151: 2019000050085 | E151: MEJORAMIENTO DE LA VÍA QUE CONDUCE DEL MUNICIPIO DE LA MESA AL MUNICIPIO DE CACHIPAY, (DE LA INSPECCIÓN DE PEÑA NEGRA AL MUNICIPIO DE CACHIPAY), DEPARTAMENTO DE CUNDINAMARCA | F151: TRANSPORTE | G151: 7019896083 | H151: 7019896083 | I151: 0 | J151: 43852 | K151: 2019 | L151: 96 DE 2019 | M151: CONTRATADO EN EJECUCIÓN | N151: 0.5945 | O151: 0.6689
A152: 143 | B152: ENTIDAD APORTANTE RECURSOS | C152: TV ANDINA | D152: 2019000050064 | E152: PROTECCIÓN Y PRESERVACIÓN DEL PATRIMONIO AUDIOVISUAL COLOMBIANO QUE SE ENCUENTRA EN EL CANAL PÚBLICO TEVEANDINA LOCALIZADO EN EL DEPARTAMENTO DE CUNDINAMARCA | F152: CULTURA | G152: 5923285198 | H152: $ 5.597.840.098 | I152: 325445100 | J152: 43774 | K152: 2019 | L152: 095 DE 2019 | M152: CERRADO | N152: 1 | O152: 0.9935
A153: 144 | B153: ENTIDAD APORTANTE RECURSOS | C153: UNAD | D153: 2019000050069 | E153: MEJORAMIENTO DE INFRAESTRUCTURA FÍSICA, DOTACIÓN DE MOBILIARIO Y EQUIPAMIENTO TECNOLÓGICO DE LA UNIVERSIDAD NACIONAL ABIERTA Y A DISTANCIA EN MUNICIPIOS DEL DEPARTAMENTO DE CUNDINAMARCA | F153: EDUCACIÓN | G153: 16011115461 | H153: 16011115461 | I153: 0 | J153: 43774 | K153: 2019 | L153: 095 DE 2019 | M153: TERMINADO | N153: 1 | O153: 0.9045
A154: 145 | B154: ENTIDAD APORTANTE RECURSOS | C154: U TECNOLOGICA DE PEREIRA | D154: 2019000100009 | E154: FORMACIÓN DE CAPITAL HUMANO DE ALTO NIVEL UNIVERSIDAD TECNOLÓGICA DE PEREIRA NACIONAL | F154: CTEL | G154: 4360028215 | H154: 3950208215 | I154: 409820000 | J154: 43781 | K154: 2019 | L154: 083 DE 2019 | M154: CONTRATADO EN EJECUCIÓN | N154: 0.5105 | O154: 0.5107
A155: 146 | B155: ENTIDAD APORTANTE RECURSOS | C155: U EAN | D155: 2019000100015 | E155: FORMACIÓN DE CAPITAL HUMANO DE ALTO NIVEL - UNIVERSIDAD EAN - NACIONAL | F155: CTEL | G155: 1294375000 | H155: 1250000000 | I155: 44375000 | J155: 43830 | K155: 2019 | L155: 087 DE 2019 | M155: CONTRATADO EN EJECUCIÓN | N155: 0.4804 | O155: 0.4909
A156: 147 | B156: ENTIDAD APORTANTE RECURSOS | C156: U CATOLICA | D156: 2019000100022 | E156: FORMACIÓN DE CAPITAL HUMANO DE ALTO NIVEL - UNIVERSIDAD CATÓLICA DE COLOMBIA - NACIONAL | F156: CTEL | G156: 343595000 | H156: 299220000 | I156: 44375000 | J156: 43812 | K156: 2019 | L156: 086 DE 2019 | M156: CONTRATADO EN EJECUCIÓN | N156: 0.6506 | O156: 0.6429
A157: 148 | B157: ENTIDAD APORTANTE RECURSOS | C157: UNIVERSIDAD MILITAR NUEVA GRANADA | D157: 2019000100025 | E157: FORMACIÓN DE CAPITAL HUMANO DE ALTO NIVEL UNIVERSIDAD MILITAR NUEVA GRANADA NACIONAL | F157: CTEL | G157: 294375000 | H157: 250000000 | I157: 44375000 | J157: 43812 | K157: 2019 | L157: 086 DE 2019 | M157: CONTRATADO EN EJECUCIÓN | N157: 0.4675 | O157: 0.4675
A158: 149 | B158: ENTIDAD APORTANTE RECURSOS | C158: UNIVERSIDAD NACIONAL DE COLOMBIA | D158: 2019000100026 | E158: FORMACIÓN DE CAPITAL HUMANO DE ALTO NIVEL UNIVERSIDAD NACIONAL DE COLOMBIA NACIONAL | F158: CTEL | G158: 21162064500 | H158: 20233937500 | I158: 928127000 | J158: 43781 | K158: 2019 | L158: 083 DE 2019 | M158: CONTRATADO EN EJECUCIÓN | N158: 0.5123 | O158: 0.492
A159: 150 | B159: ENTIDAD APORTANTE RECURSOS | C159: U DISTRITAL | D159: 2019000100027 | E159: FORMACIÓN DE CAPITAL HUMANO DE ALTO NIVEL EN DOCTORADO PARA EL DESARROLLO REGIONAL, UNIVERSIDAD DISTRITAL FRANCISCO JOSÉ DE CALDAS, A NIVEL NACIONAL | F159: CTEL | G159: 1218668841 | H159: 1113595753 | I159: 105073088 | J159: 43798 | K159: 2019 | L159: 085 DE 2019 | M159: CONTRATADO EN EJECUCIÓN | N159: 0.3372 | O159: 0.341
A160: 151 | B160: ENTIDAD APORTANTE RECURSOS | C160: U JAVERIANA | D160: 2019000100028 | E160: FORMACIÓN DE CAPITAL HUMANO DE ALTO NIVEL PONTIFICIA UNIVERSIDAD JAVERIANA SEDE CENTRAL NACIONAL | F160: CTEL | G160: 6524500000 | H160: 6524500000 | I160: 0 | J160: 43781 | K160: 2019 | L160: 083 DE 2019 | M160: CONTRATADO EN EJECUCIÓN | N160: 0.4577 | O160: 0.4543
A161: 152 | B161: ENTIDAD APORTANTE RECURSOS | C161: U DE LOS ANDES | D161: 2019000100036 | E161: FORMACIÓN DE CAPITAL HUMANO DE ALTO NIVEL UNIVERSIDAD DE LOS ANDES NACIONAL | F161: CTEL | G161: 2814671307 | H161: 2748000000 | I161: 66671307 | J161: 43798 | K161: 2019 | L161: 085 DE 2019 | M161: CONTRATADO EN EJECUCIÓN | N161: 0.6296 | O161: 0.6241
A162: 153 | B162: ENTIDAD APORTANTE RECURSOS | C162: UNIVERSIDAD NACIONAL DE COLOMBIA | D162: 2019000100061 | E162: FORTALECIMIENTO DE LA CAPACIDAD TECNOLÓGICA INSTALADA EN EL CENTRO AGROPECUARIO MARENGO PARA LA INVESTIGACIÓN EN LOS SISTEMAS AGROPRODUCTIVOS DEL TRÓPICO ALTO, BAJO EL EFECTO DE LA VARIABILIDAD Y CAMBIO CLIMÁTICO - CUNDINAMARCA | F162: CTEL | G162: 2386591598 | H162: 1994146760 | I162: 392444838.1 | J162: 43830 | K162: 2019 | L162: 087 DE 2019 | M162: CONTRATADO EN EJECUCIÓN | N162: 0.4383 | O162: 0.243
A163: 154 | B163: CUNDINAMARCA | C163: SECRETARIA DE CIENCIA, TECNOLOGIA E INNOVACIÓN | D163: 2020000100137 | E163: FORTALECIMIENTO DE LAS CAPACIDADES DE INVESTIGACIÓN Y DESARROLLO PARA ATENDER PROBLEMÁTICAS ASOCIADAS CON AGENTES BIOLÓGICOS PARA LA SALUD PÚBLICA, A TRAVÉS DEL MEJORAMIENTO DEL LABORATORIO DE SALUD PÚBLICA DE CUNDINAMARCA | F163: CTEL | G163: 4506359274 | H163: 4048003426 | I163: 458355848 | J163: 43966 | K163: 2020 | L163: 093 DE 2020 | M163: CONTRATADO EN EJECUCIÓN | N163: 0.5589 | O163: 0.559
A164: 155 | B164: CUNDINAMARCA | C164: SECRETARIA DE SALUD | D164: 2020000050003 | E164: ADQUISICIÓN DE AMBULANCIAS,EQUIPOS BIOMÉDICOS, ELEMENTOS DE PROTECCIÓN PERSONAL, ASEO Y DESINFECCIÓN PARA LA ATENCIÓN DE LA CALAMIDAD SANITARIA POR COVID-19 EN LAS E.S.E DEL DEPARTAMENTO DE CUNDINAMARCA | F164: SALUD Y PROTECCIÓN SOCIAL | G164: 43433295564 | H164: 43433295564 | I164: 0 | J164: 43986 | K164: 2020 | L164: 102 de 2020 | M164: CONTRATADO EN EJECUCIÓN | N164: 0.5438 | O164: 0.5476
A165: 156 | B165: CUNDINAMARCA | C165: UNIDAD ADMINISTRATIVA DE GESTIÓN DEL RIESGO. | D165: 2020000050012 | E165: ADQUISICIÓN DE ELEMENTOS DE PROTECCIÓN DE CONTAGIO DEL VIRUS COVID-19 PARA LOS CUERPOS OPERATIVOS DE EMERGENCIA, EN ATENCIÓN DE LA CALAMIDAD SANITARIA EN EL DEPARTAMENTO DE CUNDINAMARCA | F165: GOBIERNO TERRITORIAL | G165: 5419592232 | H165: 5419592232 | I165: 0 | J165: 43986 | K165: 2020 | L165: 102 DE 2020 | M165: CERRADO | N165: 0.67 | O165: 0.67
A166: 157 | B166: CUNDINAMARCA | C166: SECRETARIA DE EDUCACIÓN | D166: 2020000050019 | E166: FORTALECIMIENTO A LA ESTRATEGIA DE ALIMENTACIÓN ESCOLAR PARA EL AÑO 2020, EN LOS MUNICIPIOS DEL DEPARTAMENTO DE CUNDINAMARCA | F166: EDUCACIÓN | G166: 26240955000 | H166: 26240955000 | I166: 0 | J166: 44040 | K166: 2020 | L166: 105 DE 2020 | M166: TERMINADO | N166: 1 | O166: 0.6636
A167: 158 | B167: CUNDINAMARCA | C167: SECRETARIA DE CIENCIA, TECNOLOGIA E INNOVACIÓN | D167: 2020000100266 | E167: GENERACIÓN DE ESPACIOS DE ENCUENTRO DE LA SOCIEDAD CON LA CIENCIA Y LA TECNOLOGÍA - UN VIAJE CON LA CIENCIA EN EL DEPARTAMENTO DE CUNDINAMARCA | F167: CTEL | G167: 2241429590 | H167: 2218862102 | I167: 22567488 | J167: 44111 | K167: 2020 | L167: 098 DE 2020 | M167: CONTRATADO EN EJECUCIÓN | N167: 0.5246 | O167: 0.1011
A168: 159 | B168: CUNDINAMARCA | C168: SECRETARIA DE CIENCIA, TECNOLOGIA E INNOVACIÓN | D168: 2020000100246 | E168: FORTALECIMIENTO DE LA COMPETITIVIDAD DE LA CADENA PRODUCTIVA DE LA GUADUA POR MEDIO DEL DESARROLLO E IMPLEMENTACIÓN DE DOS (2) PAQUETES TECNOLÓGICOS PARA LA GENERACIÓN DE PRODUCTOS CON VALOR AGREGADO EN EL DEPARTAMENTO DE CUNDINAMARCA | F168: CTEL | G168: 3144525520 | H168: 2294345776 | I168: 850179744 | J168: 44111 | K168: 2020 | L168: 098 DE 2020 | M168: CONTRATADO EN EJECUCIÓN | N168: 0.1896 | O168: 0.2712
A169: 160 | B169: ENTIDAD APORTANTE RECURSOS | C169: CONNECT BOGOTA REGIÓN | D169: 2020000100078 | E169: DISEÑO E IMPLEMENTACIÓN DE UN MODELO DE GESTIÓN DE CONOCIMIENTO, INNOVACIÓN Y TRANSFERENCIA DE TECNOLOGÍA CON APLICACIÓN EN EL SECTOR AGROPECUARIO Y AGROINDUSTRIAL EN EL DEPARTAMENTO DE CUNDINAMARCA | F169: CTEL | G169: 3309848753 | H169: 2972617683 | I169: 337231070 | J169: 44111 | K169: 2020 | L169: 098 DE 2020 | M169: CONTRATADO EN EJECUCIÓN | N169: 0.0045 | O169: 0.0041
A170: 161 | B170: ENTIDAD APORTANTE RECURSOS | C170: FEDERACIÓN NACIONAL DE CAFETEROS | D170: 2020000100205 | E170: TRASLADO DE TECNOLOGÍAS INNOVADORAS A CAFICULTORES CON IMPACTO SOBRE LA CALIDAD DEL CAFÉ Y LA GESTIÓN DEL RECURSO HÍDRICO DURANTE EL PROCESO DE BENEFICIO EN ZONA CAFETERA DEL DEPARTAMENTO DE CUNDINAMARCA | F170: CTEL | G170: 13783557324 | H170: 12848931736 | I170: 934625588 | J170: 44111 | K170: 2020 | L170: 098 DE 2020 | M170: CONTRATADO EN EJECUCIÓN | N170: 0.0005 | O170: 0
A171: 162 | B171: ENTIDAD APORTANTE RECURSOS | C171: AGROSAVIA | D171: 2020000100197 | E171: DESARROLLO DE BIOPLAGUICIDAS POTENCIADOS DE NUEVA GENERACIÓN PARA EL MEJORAMIENTO DE LA PRODUCTIVIDAD E INOCUIDAD DEL CULTIVO DE TOMATE Y CRUCÍFERAS EN EL DEPARTAMENTO DE CUNDINAMARCA | F171: CTEL | G171: 4583970033 | H171: 3282745260 | I171: 1301224773 | J171: 44111 | K171: 2020 | L171: 098 DE 2020 | M171: CONTRATADO EN EJECUCIÓN | N171: 0.1433 | O171: 0.1461
A172: 163 | B172: ENTIDAD APORTANTE RECURSOS | C172: UNIVERSIDAD NACIONAL DE COLOMBIA | D172: 2020000100240 | E172: ESTUDIO DE PREFACTIBILIDAD PARA LA CREACIÓN DE UN CENTRO DE INNOVACIÓN Y DE PRODUCTIVIDAD PARA EL SECTOR AGROPECUARIO DE SABANA OCCIDENTE DE CUNDINAMARCA | F172: CTEL | G172: 1896154229 | H172: 1707430133 | I172: 188724096 | J172: 44111 | K172: 2020 | L172: 098 DE 2020 | M172: CONTRATADO EN EJECUCIÓN | N172: 0.1068 | O172: 0.1811
A173: 164 | B173: ENTIDAD APORTANTE RECURSOS | C173: UNIVERSIDAD DE CUNDINAMARCA | D173: 2020000100158 | E173: FORTALECIMIENTO DE LA INFRAESTRUCTURA FÍSICA Y TECNOLÓGICA DEL CENTRO DE ESTUDIOS AGROAMBIENTALES DE LA UNIVERSIDAD DE CUNDINAMARCA AGROU CUNDINAMARCA | F173: CTEL | G173: 2024433669 | H173: 1997753509 | I173: 26680160 | J173: 44111 | K173: 2020 | L173: 098 DE 2020 | M173: SIN CONTRATAR | N173: 0 | O173: 0
A174: 165 | B174: ENTIDAD APORTANTE RECURSOS | C174: ZIPAQUIRA | D174: 2020000050013 | E174: MEJORAMIENTO DE LA VÍA QUE COMUNICA A LOS MUNICIPIOS DE ZIPAQUIRÁ Y TOCANCIPÁ, TRAMO BARANDILLAS - LA FUENTE, DEPARTAMENTO DE CUNDINAMARCA | F174: TRANSPORTE | G174: 6.788.620.869,00 | H174: =G174 -> 6.788.620.869,00 | I174: 0 | J174: 44152 | K174: 2020 | L174: 107 del 2020 | M174: CONTRATADO EN EJECUCIÓN | N174: 0.4009 | O174: 0.5559
A175: 166 | B175: ENTIDAD APORTANTE RECURSOS | C175: ZIPAQUIRA | D175: 2020000050015 | E175: MEJORAMIENTO DE LA VÍA ZIPAQUIRÁ - SAN JORGE - TABIO DEPARTAMENTO DE CUNDINAMARCA | F175: TRANSPORTE | G175: 7458735075 | H175: =G175 -> 7458735075 | I175: 0 | J175: 44152 | K175: 2020 | L175: 107 del 2020 | M175: CONTRATADO EN EJECUCIÓN | N175: 0 | O175: 0
A176: 167 | B176: CUNDINAMARCA | C176: SECRETARIA DE CIENCIA, TECNOLOGIA E INNOVACIÓN | D176: 2020000100695 | E176: DESARROLLO, TRANSFERENCIA DE TECNOLOGÍA Y CONOCIMIENTO PARA LA INNOVACIÓN QUE FORTALEZCAN CAPACIDADES COMUNITARIAS EN LA COMPRENSIÓN Y/O MITIGACIÓN DE LOS PROBLEMAS DE VIOLENCIAS BASADAS EN GÉNERO, DERIVADAS DE LA EMERGENCIA POR COVID 19, EN CUNDINAMARCA | F176: CTEL | G176: 3100000000 | H176: 3000000000 | I176: 100000000 | J176: 44183 | K176: 2020 | L176: 103 DE 2020 | M176: CONTRATADO EN EJECUCIÓN | N176: 0.2605 | O176: 0.3139
A177: 168 | B177: CUNDINAMARCA | C177: SECRETARIA DE CIENCIA, TECNOLOGIA E INNOVACIÓN | D177: 2020000100650 | E177: FORTALECIMIENTO DE CAPACIDADES DE CTEI PARALA INNOVACION EDUCATIVA EN LOS NIVELES DE BÁSICA Y MEDIA, MEDIANTE USO DE TICS EN INSTITUCIONES EDUCATIVAS OFICIALES DE LOS MUNICIPIOS NO CERTIFICADOS DEL DEPARTAMENTO DE CUNDINAMARCA | F177: CTEL | G177: 10804663122 | H177: 9999728696 | I177: 804934426 | J177: 44183 | K177: 2020 | L177: 103 DE 2020 | M177: CONTRATADO EN EJECUCIÓN | N177: 0.1001 | O177: 0.0327
A178: 169 | B178: CUNDINAMARCA | C178: SECRETARIA DE CIENCIA, TECNOLOGIA E INNOVACIÓN | D178: 2020000100696 | E178: FORTALECIMIENTO DE CAPACIDADES DE CTEI PARA LA REACTIVACIÓN ECONÓMICA Y LA TRANSFORMACIÓN PRODUCTIVA EN CUNDINAMARCA | F178: CTEL | G178: 7370634083 | H178: 6974290175 | I178: 396343908 | J178: 44183 | K178: 2020 | L178: 103 DE 2020 | M178: CONTRATADO EN EJECUCIÓN | N178: 0.154 | O178: 0.4247
A179: 170 | B179: CUNDINAMARCA | C179: SECRETARIA DE CIENCIA, TECNOLOGIA E INNOVACIÓN | D179: 2020000100649 | E179: FORTALECIMIENTO DE CAPACIDADES DE CTEI PARA EL RELACIONAMIENTO ESCUELA - CONTEXTO RURAL MEDIANTE LA APROPIACIÓN Y USO DE LAS TIC EN EL MUNICIPIO DE SIBATÉ, DEPARTAMENTO DE CUNDINAMARCA | F179: CTEL | G179: 4292464018 | H179: 2645464018 | I179: 1647000000 | J179: 44183 | K179: 2020 | L179: 103 DE 2020 | M179: CONTRATADO EN EJECUCIÓN | N179: 0.2911 | O179: 0.1692
A180: 171 | B180: ENTIDAD APORTANTE RECURSOS | C180: FUNDACION UNIVERSIDAD DEL VALLE | D180: 2020000050044 | E180: FORTALECIMIENTO DE LAS COMPETENCIAS COMUNICATIVAS EN INGLÉS DE LOS ESTUDIANTES DE LOS ESTABLECIMIENTOS EDUCATIVOS NO OFICIALES DE CUNDINAMARCA | F180: EDUCACIÓN | G180: $ 10.468.961.978 | H180: 10411761978 | I180: 57200000 | J180: 44195 | K180: 2020 | L180: 110 DE 2020 | M180: CONTRATADO EN EJECUCIÓN | N180: 0.3764 | O180: 0.3992
A181: 172 | B181: ENTIDAD APORTANTE RECURSOS | C181: UNAD | D181: 2020000100433 | E181: INVESTIGACIÓN DE LOS COMPUESTOS VOLÁTILES ORGÁNICOS E INDUCIDOS PARA EL MANEJO DE MOSCAS PLAGAS EN GULUPA Y GRANADILLA EN EL DEPARTAMENTO DE CUNDINAMARCA | F181: CTEL | G181: 3412874201 | H181: 1999985660 | I181: 1412888541 | J181: 44159 | K181: 2020 | L181: 100 DE 2020 | M181: CONTRATADO EN EJECUCIÓN | N181: 0.1298 | O181: 0.0729
A182: 173 | B182: ENTIDAD APORTANTE RECURSOS | C182: UNIVERSIDAD INDUSTRIAL DE SANTANDER | D182: 2020000100415 | E182: DESARROLLO DE UN SISTEMA ÓPTICO COMPUTACIONAL PARA ESTIMAR EL CONTENIDO DE CARBONO ORGÁNICO DE SUELOS AGRÍCOLAS A TRAVÉS DE IMÁGENES ESPECTRALES E INTELIGENCIA ARTIFICIAL EN CULTIVOS DE CÍTRICOS DE SANTANDER | F182: CTEL | G182: 2184125885 | H182: 1972224989 | I182: 211900896.3 | J182: 44160 | K182: 2020 | L182: 100 DE 2020 | M182: CONTRATADO EN EJECUCIÓN | N182: 0.3118 | O182: 0.2211
A183: 174 | B183: ENTIDAD APORTANTE RECURSOS | C183: UNIVERSIDAD INDUSTRIAL DE SANTANDER | D183: 2020000100375 | E183: CONFORMACIÓN DE UNA PLATAFORMA PARA ESTUDIOS CELULARES AVANZADOS IN VIVO EN TIEMPO REAL PARA EL ANÁLISIS DE LA RESPUESTA INMUNOMETABÓLICA ANTE LA REEXPRESIÓN DE INTERFERÓN TIPO I KAPPA EN ESFEROIDES DE CÉLULAS TUMORALES DE CUELLO UTERINO EN SANTANDER | F183: CTEL | G183: 3123997801 | H183: 1998887911 | I183: 1125109890 | J183: 44159 | K183: 2020 | L183: 100 DE 2020 | M183: CONTRATADO EN EJECUCIÓN | N183: 0.5533 | O183: 0.5111
A184: 175 | B184: ENTIDAD APORTANTE RECURSOS | C184: UNIVERSIDAD INDUSTRIAL DE SANTANDER | D184: 2020000100351 | E184: DESARROLLO DE UN PROTOTIPO SELECTIVO Y SENSIBLE PARA MONITOREAR CONTENIDO DE CADMIO IN SITU EN DIVERSAS MATRICES ASOCIADAS A LA PRODUCCIÓN DE GRANOS DE CACAO EN EL DEPARTAMENTO DE SANTANDER | F184: CTEL | G184: 2585800000 | H184: 2000000000 | I184: 585800000 | J184: 44159 | K184: 2020 | L184: 100 DE 2020 | M184: CONTRATADO EN EJECUCIÓN | N184: 0.3439 | O184: 0.3935
A185: 176 | B185: ENTIDAD APORTANTE RECURSOS | C185: INSTITUTO SUPERIOR DE EDUCACION RURAL DE PAMPLONA | D185: 2020000100343 | E185: IMPLEMENTACIÓN LABORATORIO DE CALIDAD FISICOQUÍMICA DE ALIMENTOS PARA EL FORTALECIMIENTO COMPETITIVO Y SOSTENIBLE DE LASCADENAS AGROALIMENTARIAS DEL DEPARTAMENTO DE NORTE DE SANTANDER | F185: CTEL | G185: 1097306327 | H185: 999999999 | I185: 97306328 | J185: 44159 | K185: 2020 | L185: 100 DE 2020 | M185: CONTRATADO SIN ACTA DE INICIO | N185: 0 | O185: 0
A186: 177 | B186: ENTIDAD APORTANTE RECURSOS | C186: UNIVERSIDAD NACIONAL DE COLOMBIA | D186: 2020000100342 | E186: ESTUDIO DE POTENCIALES INSECTICIDAS EN MATRICES POLIMÉRICAS PARA EL CONTROL DE PLAGAS DE GRANOS ALMACENADOS BASADOS EN ACEITES ESENCIALES PROVENIENTES DE LA BIODIVERSIDADFLORÍSTICA DEL DEPARTAMENTO DE CUNDINAMARCA | F186: CTEL | G186: 2748237104 | H186: 2000000000 | I186: 748237104 | J186: 44159 | K186: 2020 | L186: 100 DE 2020 | M186: CONTRATADO EN EJECUCIÓN | N186: 0.0585 | O186: 0.2988
A187: 178 | B187: ENTIDAD APORTANTE RECURSOS | C187: UNIVERSIDAD MILITAR NUEVA GRANADA | D187: 2020000100728 | E187: GENERACIÓN Y TRANSFERENCIA DE CONOCIMIENTOS Y TECNOLOGÍAS PARA ELEVAR CAPACIDADES DE CTEL DE PEQUEÑOS PRODUCTORES DE TOMATE PARA AFRONTAR PROBLEMAS DERIVADOS DEL COVID-19 ASOCIADAS A LA SEG. ALIMENTARIA EN LAS SAB. CENTRO Y ORIENTE CUNDINAMARCA | F187: CTEL | G187: 4162541452 | H187: 2123613452 | I187: 2038928000 | J187: 44183 | K187: 2020 | L187: 103 DE 2020 | M187: CONTRATADO EN EJECUCIÓN | N187: 0.2535 | O187: 0.3216
A188: 179 | B188: ENTIDAD APORTANTE RECURSOS | C188: UNIVERSIDAD NACIONAL DE COLOMBIA | D188: 2020000100339 | E188: DESARROLLO DE NUEVOS MÉTODOS NO DESTRUCTIVOS PARA MONITOREO IN SITU DE PROBABILIDAD DE OCURRENCIA DE FALLA EN TUBERÍAS EN EL SECTOR DE HIDROCARBUROS EN LOS DEPARTAMENTOS DE BOGOTÁ BOYACÁ SANTANDER | F188: CTEL | G188: 2412084140 | H188: 1999876300 | I188: 412207840 | J188: 44159 | K188: 2020 | L188: 100 DE 2020 | M188: CONTRATADO EN EJECUCIÓN | N188: 0.1472 | O188: 0.2189
A189: 180 | B189: ENTIDAD APORTANTE RECURSOS | C189: UNIVERSIDAD MILITAR NUEVA GRANADA | D189: 2020000100216 | E189: INNOVACIÓN Y TRANSFERENCIA TECNOLÓGICA DE UMNGBIO A PRODUCTORES DE FLORES PARA EL CONTROL BIOLÓGICO DE TETRANYCHUS URTICAE (ACARI: TETRANYCHIIDAE) EN CULTIVOS DE INVERNADERO CON EL ÁCARO BENÉFICO NEOSEIULUS CALIFORNICUS (ACARI: PHYTOSEIIDAE) CUNDINAMARCA | F189: CTEL | G189: 2431580000 | H189: 1241580000 | I189: 1190000000 | J189: 44159 | K189: 2020 | L189: 100 DE 2020 | M189: CONTRATADO EN EJECUCIÓN | N189: 0.5059 | O189: 0.5679
A190: 181 | B190: CUNDINAMARCA | C190: SECRETARIA DE COMPETITIVIDAD | D190: 2019000050026 | E190: DESARROLLO DE UN PROGRAMA PRODUCTIVO, AMIGABLE CON EL MEDIO AMBIENTE DEL SECTOR GANADERO EN EL DEPARTAMENTO DE CUNDINAMARCA CUNDINAMARCA | F190: AGRICULTURA | G190: 9757143522 | H190: 6804242915 | I190: 2952900607 | J190: 44187 | K190: 2020 | L190: 109 DE 2020 | M190: CONTRATADO EN EJECUCIÓN | N190: 0 | O190: 0.1706
A191: 182 | B191: ENTIDAD APORTANTE RECURSOS | C191: UNIVERSIDAD NACIONAL DE COLOMBIA | D191: 2020000100169 | E191: INVESTIGACIÓN DESARROLLO, INNOVACIÓN Y TRANSFERENCIA DE CONOCIMIENTO PARA EL PROCESAMIENTO DE LA SEMILLA DE SACHA INCHI EN PRODUCTOS DE VALOR AGREGADO, COMO ESTRATEGIA PARA MEJORAR LA PRODUCTIVIDAD DEL SECTOR AGROINDUSTRIAL DE LA REGIÓN CUNDINAMARCA | F191: CTEL | G191: 2757697312 | H191: 456319666.1 | I191: 2301377646 | J191: 44078 | K191: 2020 | L191: 97 DE 2020 | M191: CONTRATADO EN EJECUCIÓN | N191: 0.2792 | O191: 0.2685
A192: 183 | B192: ENTIDAD APORTANTE RECURSOS | C192: UPTC | D192: 2020000100114 | E192: FORTALECIMIENTO DEL ECOSISTEMA DE INVESTIGACIÓN CIENTÍFICA PARA CTEI EN LA UNIVERSIDAD PEDAGÓGICA Y TECNOLÓGICA DE COLOMBIA UPTC, I-SPACIO SOGAMOSO | F192: CTEL | G192: 2310634882 | H192: 196703104 | I192: 2113931778 | J192: 44078 | K192: 2020 | L192: 97 DE 2020 | M192: CONTRATADO EN EJECUCIÓN | N192: 0.1498 | O192: 0.1481
A193: 184 | B193: ENTIDAD APORTANTE RECURSOS | C193: UNIVERSIDAD DE ANTIOQUIA | D193: 2020000100079 | E193: FORTALECIMIENTO DE LA INFRAESTRUCTURA TECNOLÓGICA Y EQUIPAMIENTO DEL AMBIENTE DE FORMACIÓN INDUSTRIAL PARA EL AUMENTO DE LAS CAPACIDADES INSTITUCIONALES EN CTEI DE LA ETITC BOGOTÁ | F193: CTEL | G193: 1090608306 | H193: 998808306 | I193: 91800000 | J193: 44078 | K193: 2020 | L193: 97 DE 2020 | M193: CONTRATADO EN EJECUCIÓN | N193: 0.0449 | O193: 0.0475
A194: 185 | B194: ENTIDAD APORTANTE RECURSOS | C194: UNIVERSIDAD NACIONAL DE COLOMBIA | D194: 2020000100075 | E194: APROVECHAMIENTO DE LA BIODIVERSIDAD EN AGRAZ Y PAPA PARA EL DESARROLLO DE CULTIVOS PROMISORIOS EN EL DEPARTAMENTO DE SANTANDER | F194: CTEL | G194: 3177259696 | H194: 2000000000 | I194: 1177259696 | J194: 44078 | K194: 2020 | L194: 97 DE 2020 | M194: CONTRATADO EN EJECUCIÓN | N194: 0.0414 | O194: 0.0263
A195: 186 | B195: ENTIDAD APORTANTE RECURSOS | C195: UNIVERSIDAD NACIONAL DE COLOMBIA | D195: 2020000100019 | E195: FORTALECIMIENTO DE CAPACIDADES DE INVESTIGACIÓN Y DESARROLLO TECNOLÓGICO DE LA UNIVERSIDAD COLEGIO MAYOR DE CUNDINAMARCA A PARTIR DE TECNOLOGÍAS INDUSTRIA 4.0 PARA EL DISEÑO Y CONSTRUCCIÓN EN BOGOTÁ | F195: CTEL | G195: 2077571214 | H195: 1930000000 | I195: 147571214 | J195: 44078 | K195: 2020 | L195: 97 DE 2020 | M195: CONTRATADO EN EJECUCIÓN | N195: 0.0076 | O195: 0.0037
A196: 187 | B196: ENTIDAD APORTANTE RECURSOS | C196: UNIVERSIDAD INDUSTRIAL DE SANTANDER | D196: 2020000100017 | E196: FORTALECIMIENTO DE LA CAPACIDAD INSTITUCIONAL DE INVESTIGACIÓN DE LA UNIVERSIDAD INDUSTRIAL DESANTANDER NACIONAL | F196: CTEL | G196: 2808520000 | H196: 456845037.9 | I196: 2351674962 | J196: 44078 | K196: 2020 | M196: CONTRATADO EN EJECUCIÓN | N196: 0 | O196: 0
A197: 188 | B197: ENTIDAD APORTANTE RECURSOS | C197: UNIVERSIDAD MILITAR NUEVA GRANADA | D197: 2020000100103 | E197: FORTALECIMIENTO DE CAPACIDADES INSTALADAS DE CIENCIA Y TECNOLOGÍA DEL LABORATORIO DE DIAGNÓSTICO EN EL CAMPUS DE LA UNIV MILITAR NUEVA GRANADA, PARA ATENDER PROBLEMÁTICAS ASOCIADAS CON AGENTES BIOLÓGICOS DE ALTO RIESGO PARA LA SALUD HUMANA, CUNDINAMARCA | F197: CTEL | G197: 5162742977 | H197: 4168513565 | I197: 994229412 | J197: 43966 | K197: 2020 | L197: 93 DE 2020 | M197: CONTRATADO EN EJECUCIÓN | N197: 0.292 | O197: 0.2964
A198: 189 | B198: ENTIDAD APORTANTE RECURSOS | C198: INSTITUTO UNIVERSITARIO DE LA PAZ – UNIPAZ | D198: 2020000100042 | E198: FORTALECIMIENTO DE LOS PROCESOS ACADÉMICOS EN LOS PROGRAMAS OFRECIDOS POR EL INSTITUTO UNIVERSITARIO DE LA PAZ, UNIPAZ, BARRANCABERMEJA | F198: CTEL | G198: 1178749590 | H198: 996109590 | I198: 182640000 | J198: 43998 | K198: 2020 | L198: 94 DE 2020 | M198: CONTRATADO EN EJECUCIÓN | N198: 0.9672 | O198: 0.9492
A199: 190 | B199: ENTIDAD APORTANTE RECURSOS | C199: INSTITUTO UNIVERSITARIO DE LA PAZ – UNIPAZ | D199: 2020000100016 | E199: ADECUACIÓN , DOTACIÓN E IMPLEMENTACIÓN DE UN LABORATORIO DE FABRICACIÓN DIGITAL PARA PROMOVER EL DESARROLLO DE LA CIENCIA, LAINNOVACIÓN Y EL EMPRENDIMIENTO EN LA UNIVERSIDAD FRANCISCO DE PAULA SANTANDER. CÚCUTA | F199: CTEL | G199: 2921057589 | H199: 1946843702 | I199: 974213887 | J199: 43950 | K199: 2020 | L199: 92 DE 2020 | M199: CONTRATADO EN EJECUCIÓN | N199: 0.8157 | O199: 0.8438
A200: 191 | B200: ENTIDAD APORTANTE RECURSOS | C200: UNIVERSIDAD TECNOLOGICA DE SANTANDER | D200: 2020000100004 | E200: FORTALECIMIENTO Y ADECUACIÓN DE EQUIPOS E INFRAESTRUCTURA DEL LABORATORIO DE FÍSICA DEL DEPARTAMENTO DE CIENCIAS BÁSICAS, PARA EL MEJORAMIENTO DE LAS CAPACIDADES INSTITUCIONALES Y LA INVESTIGACIÓN EN LAS UNIDADES TECNOLÓGICAS DE SANTANDER - BUCARAMANGA | F200: CTEL | G200: 1016752702 | H200: 980000000 | I200: 36752702 | J200: 43950 | K200: 2020 | L200: 92 DE 2020 | M200: CONTRATADO EN EJECUCIÓN | N200: 0.027 | O200: 0.0268
A201: 192 | B201: CUNDINAMARCA | C201: SECRETARIA DE EDUCACIÓN | D201: 2020000050037 | E201: DOTACIÓN DEL MOBILIARIO ESCOLAR PARA LAS INSTITUCIONES EDUCATIVAS DE LOS MUNICIPIOS NO CERTIFICADOS DEL DEPARTAMENTO DE CUNDINAMARCA | F201: EDUCACIÓN | G201: 10093038848 | H201: 10093038848 | I201: 0 | J201: 44195 | K201: 2020 | L201: 110 DE 2020 | M201: CONTRATADO EN EJECUCIÓN | N201: 0.6901 | O201: 51,78%
A202: 193 | B202: ENTIDAD APORTANTE RECURSOS | C202: UNIVERSIDAD DEL NORTE | D202: 2020000100287 | E202: FORMACIÓN DE CAPITAL HUMANO DE ALTO NIVEL UNIVERSIDAD DEL NORTE 2DO CORTE NACIONAL | F202: CTEL | G202: 6920233499 | H202: 6750000000 | I202: =G202-H202 -> 170233499 | J202: 44330 | K202: 2021 | L202: 004 DE 2021 | M202: CONTRATADO EN EJECUCIÓN | N202: 0.2027 | O202: 0.1993
A203: 194 | B203: ENTIDAD APORTANTE RECURSOS | C203: UNIVERSIDAD DEL VALLE | D203: 2020000100345 | E203: FORMACIÓN DE CAPITAL HUMANO DE ALTO NIVEL SEGUNDO CORTE UNIVERSIDAD DEL VALLE NACIONAL | F203: CTEL | G203: 5913070114 | H203: 5335769261 | I203: 577300853 | J203: 44348 | K203: 2021 | L203: 05 DE 2021 | M203: CONTRATADO EN EJECUCIÓN | N203: 0.1142 | O203: 0.1882
A204: 195 | B204: ENTIDAD APORTANTE RECURSOS | C204: UNIVERSIDAD NACIONAL DE COLOMBIA | D204: 2021000100003 | E204: FORMACIÓN DE CAPITAL HUMANO DE ALTO NIVEL UNIVERSIDAD NACIONAL DE COLOMBIA CORTE II NACIONL | F204: CTEL | G204: 18418143500 | H204: 17635937500 | I204: 782206000 | J204: 44330 | K204: 2021 | L204: 04 DE 2021 | M204: CONTRATADO EN EJECUCIÓN | N204: 0.1593 | O204: 0.1583
A205: 196 | B205: ENTIDAD APORTANTE RECURSOS | C205: UNIVERSIDAD DE LA SABANA | D205: 2021000100004 | E205: FORMACIÓN DE CAPITAL HUMANO DE ALTO NIVEL UNIVERSIDAD DE LA SABANA CORE 2 NACIONAL | F205: CTEL | G205: 1519950000 | H205: 1309600000 | I205: 210350000 | J205: 44348 | K205: 2021 | L205: 05 DE 2021 | M205: CONTRATADO EN EJECUCIÓN | N205: 0.0966 | O205: 0.2112
A206: 197 | B206: ENTIDAD APORTANTE RECURSOS | C206: UNIVERSIDAD ANTONIO NARIÑO | D206: 2021000100014 | E206: FORMACIÓN DE CAPITAL HUMANO DE ALTO NIVEL UNIVERSIDAD ANTONIO NARIÑO CORE 2 NACIONAL | F206: CTEL | G206: 4526652200 | H206: 4250000000 | I206: 276652200 | J206: 44348 | K206: 2021 | L206: 06 DE 2021 | M206: CONTRATADO EN EJECUCIÓN | N206: 0.1017 | O206: 0.1334
... 20 more rows

Sheet Tablas
A1: EJECUTOR (Dpto / Entidad) | B1: CUNDINAMARCA | F1: EJECUTOR (Dpto / Entidad) | G1: CUNDINAMARCA | L1: EJECUTOR (Dpto / Entidad) | M1: CUNDINAMARCA | P1: EJECUTOR (Dpto / Entidad) | Q1: CUNDINAMARCA
F2: ESTADO | G2: (Varios elementos) | L2: ESTADO | M2: (Varios elementos) | P2: ESTADO | Q2: (Varios elementos)
A3: Etiquetas de fila | B3: Cuenta de ESTADO
A4: CONTRATADO EN EJECUCIÓN | B4: 34 | F4: Etiquetas de fila | G4: Cuenta de SECTOR | H4: Suma de VALOR PROYECTO | I4: Suma de VALOR SGR | L4: Etiquetas de fila | M4: Cuenta de EJECUTOR INTERNO | P4: Etiquetas de fila | Q4: Promedio de AVANCE FÍSICO | R4: Promedio de AVANCE FINANCIERO | S4: Cuenta de EJECUTOR INTERNO
A5: EN PROCESO DE CONTRATACIÓN | B5: 1 | F5: CTEL | G5: 28 | H5: 185880462797 | I5: 150797284435 | L5: ENTIDAD DESIGNADA PARA LA SUPERVISIÓN DEL PROYECTO O PARA CONTRATAR LA INTERVENTORÍA RAPE - INTERVENTORIA SECRETARIA DE PLANEACIÓN | M5: 1 | P5: SECRETARIA DE CIENCIA, TECNOLOGIA E INNOVACIÓN | Q5: 0.478324 | R5: 0.5738727273 | S5: 28
A6: NO HA MIGRADO A GESPROY | B6: 1 | F6: EDUCACIÓN | G6: 6 | H6: 88155518786 | I6: 88155518786 | L6: SECRETARIA DE GOBIERNO | M6: 1 | P6: SECRETARIA DE EDUCACIÓN | Q6: 0.931 | R6: 0.75905 | S6: 6
A7: PARA CIERRE | B7: 2 | F7: AGRICULTURA | G7: 9 | H7: 5.784980583e+10 | I7: 5.048724896e+10 | L7: ENTIDAD DESIGNADA PARA LA SUPERVISIÓN DEL PROYECTO O PARA CONTRATAR LA INTERVENTORÍA-EMPRESAS PUBLICAS DE CUNDINAMARCA -EPC | M7: 1 | P7: SECRETARIA DE HABITAT Y VIVIENDA | Q7: 0.731825 | R7: 0.735825 | S7: 4
A8: SIN CONTRATAR | B8: 12 | F8: SALUD Y PROTECCIÓN SOCIAL | G8: 1 | H8: 43433295564 | I8: 43433295564 | L8: MINAS Y ENERGIA | M8: 1 | P8: SECRETARIA DE MINAS, ENERGIA Y GAS | Q8: 0.7523 | R8: 0.9220333333 | S8: 4
A9: TERMINADO | B9: 7 | F9: AMBIENTE Y DESARROLLO SOSTENIBLE | G9: 2 | H9: 35584895155 | I9: 35584895155 | L9: SECRETARIA GENERAL | M9: 1 | P9: SECRETARIA DE COMPETITIVIDAD | Q9: 0.25 | R9: 0.3737666667 | S9: 4
A10: Total general | B10: 57 | F10: MINAS Y ENERGÍA | G10: 4 | H10: 28895282235 | I10: 10766151790 | L10: SECRETARIA DE SALUD | M10: 1 | P10: SECRETARIA DE AGRICULTURA | Q10: 0.9131 | R10: 0.67495 | S10: 2
F11: JUSTICIA Y DEL DERECHO | G11: 1 | H11: 9260000000 | I11: 8500000000 | L11: SECRETARIA DE PLANEACIÓN | M11: 1 | P11: UNIDAD ADMINISTRATIVA DE GESTIÓN DEL RIESGO. | Q11: 0 | R11: 0 | S11: 2
F12: GOBIERNO TERRITORIAL | G12: 2 | H12: 7299514100 | I12: 7299514100 | L12: SECRETARIA DE AGRICULTURA | M12: 2 | P12: SECRETARIA DE PLANEACIÓN | Q12: 0.9852 | R12: 0.9865 | S12: 1
F13: TRANSPORTE | G13: 1 | H13: 6791102422 | I13: 6725380622 | L13: UNIDAD ADMINISTRATIVA DE GESTIÓN DEL RIESGO. | M13: 2 | P13: ENTIDAD DESIGNADA PARA LA SUPERVISIÓN DEL PROYECTO O PARA CONTRATAR LA INTERVENTORÍA-EMPRESAS PUBLICAS DE CUNDINAMARCA -EPC | Q13: 0.8177 | R13: 0.7379 | S13: 1
F14: VIVIENDA, CIUDAD Y TERRITORIO | G14: 1 | H14: 4999900475 | I14: 4999900475 | L14: SECRETARIA DE HABITAT Y VIVIENDA | M14: 4 | P14: SECRETARIA DE SALUD | Q14: 0.5438 | R14: 0.5476 | S14: 1
F15: COMERCIO, INDUSTRIA Y TURISMO | G15: 1 | H15: 1752501814 | I15: 1708104361 | L15: SECRETARIA DE MINAS, ENERGIA Y GAS | M15: 4 | P15: SECRETARIA GENERAL | Q15: 1 | R15: 0.9464 | S15: 1
F16: CULTURA | G16: 1 | H16: 1000000000 | I16: 1000000000 | L16: SECRETARIA DE COMPETITIVIDAD | M16: 4 | P16: ENTIDAD DESIGNADA PARA LA SUPERVISIÓN DEL PROYECTO O PARA CONTRATAR LA INTERVENTORÍA RAPE - INTERVENTORIA SECRETARIA DE PLANEACIÓN | Q16: 0.9981 | R16: 0.9978 | S16: 1
F17: Total general | G17: 57 | H17: 4.709022792e+11 | I17: 4.094572942e+11 | L17: SECRETARIA DE EDUCACIÓN | M17: 6 | P17: MINAS Y ENERGIA | S17: 1
L18: SECRETARIA DE CIENCIA, TECNOLOGIA E INNOVACIÓN | M18: 28 | P18: SECRETARIA DE GOBIERNO | Q18: 1 | R18: 1 | S18: 1
L19: Total general | M19: 57 | P19: Total general | Q19: 0.599366 | R19: 0.6457377778 | S19: 57

Sheet Vencimiento días (hidden)
A1: EJECUTOR (Dpto / Entidad) | B1: EJECUTOR INTERNO | C1: ENCARGADO DE LA ENTIDAD | D1: ENLACE EMTIDAD EJECUTORA | E1: BPIN | F1: PROYECTO | G1: SECTOR | H1: VALOR | I1: ESTADO | J1: FECHA DE TERMINACIÓN | K1: HOY | L1: VENCIMIENTO N° DÍAS
A2: CUNDINAMARCA | B2: SECRETARIA GENERAL | C2: YAHIR ARCINIEGAS | D2: JIMENA TAFUR | E2: 2012000050010 | F2: ESTUDIOS Y DISEÑOS PARA LA RECUPERACIÓN Y ADECUACION DEL PATRIMONIO HISTORICO CULTURAL PALACIO DE SAN FRANCISCO EN BOGOTA D.C. DEPARTAMENTO DE CUNDINAMARCA | G2: CULTURA | H2: 1000000000 | I2: TERMINADO | J2: 43465 | K2: =+TODAY() -> 44753 | L2: =J2-K2 -> -1288
A3: CUNDINAMARCA | B3: SECRETARIA DE COMPETITIVIDAD | C3: ALEXANDER RIVEROS/JEIMY FORERO | D3: FABIAN CUESTA | E3: 2012000050030 | F3: DESARROLLO CREACION Y FORTALECIMIENTO DE NUEVE (9) CENTROS DE EMPREDIMIENTO Y FORTALECIMIENTO EMPRESARIAL EN EL DEPARTAMENTO DE CUNDINAMARCA | G3: COMERCIO, INDUSTRIA Y TURISMO | H3: 1752501814 | I3: PARA CIERRE | J3: 42369 | K3: 44753 | L3: -2384
A4: CUNDINAMARCA | B4: SECRETARIA DE CIENCIA, TECNOLOGIA E INNOVACIÓN | C4: ALEXANDER RIVEROS Y YAHIR ARCINIEGAS | D4: LUIS MANUEL GONZALEZ | E4: 2012000100010 | F4: FORTALECIMIENTO DE LAS REGIONES COLOMBIANAS EN SUS CAPACIDADES DE CTI - CUNDINAMARCA | G4: CTEL | H4: 8721806744 | I4: CONTRATADO EN EJECUCIÓN | J4: 44926 | K4: 44753 | L4: 173
A5: CUNDINAMARCA | B5: SECRETARIA DE CIENCIA, TECNOLOGIA E INNOVACIÓN | C5: ALEXANDER RIVEROS Y YAHIR ARCINIEGAS | D5: LUIS MANUEL GONZALEZ | E5: 2012000100144 | F5: INVESTIGACIÓN INVESTIGACION, DESARROLLO Y TRANSFERENCIA TECNOLOGICA EN EL SECTOR AGROPECUARIO Y AGROINDUSTRIAL CON EL FIN DE MEJORAR L TODO EL DEPARTAMENTO, CUNDINAMARCA, CENTRO ORIENTE | G5: CTEL | H5: 50514736439 | I5: CONTRATADO EN EJECUCIÓN | J5: 45716 | K5: 44753 | L5: 963
A6: CUNDINAMARCA | B6: SECRETARIA DE MINAS, ENERGIA Y GAS | C6: DIEGO TORRES | D6: ALVARO CHACON | E6: 2013000050026 | F6: CONSTRUCCIÓN REDES ELECTRICAS EN LA ZONA RURAL DE LOS MUNICIPIOS DE PARATEBUENO Y GUTIERREZ EN EL DEPARTAMENTO DE CUNDINAMARCA | G6: MINAS Y ENERGÍA | H6: 1068319227 | I6: TERMINADO | J6: 42369 | K6: 44753 | L6: -2384
A7: ENTIDAD APORTANTE RECURSOS | B7: BANCO AGRARIO DE COLOMBIA | C7: DIEGO TORRES / JEIMY FORERO | E7: 2013000050044 | F7: CONSTRUCCIÓN CUNDINAMARCA VISR 2013 TODO EL DEPARTAMENTO, CUNDINAMARCA, CENTRO ORIENTE | G7: AGRICULTURA | H7: 60041780218 | I7: CONTRATADO EN EJECUCIÓN | J7: 45260 | K7: 44753 | L7: 507
A8: CUNDINAMARCA | B8: SECRETARIA DE CIENCIA, TECNOLOGIA E INNOVACIÓN | C8: ALEXANDER RIVEROS Y YAHIR ARCINIEGAS | D8: LUIS MANUEL GONZALEZ | E8: 2013000100129 | F8: INCREMENTO EN LAS ESTRATEGIAS SUSTENTABLES EN EL USO DEL RECURSO DE ENERGA ELECTRICA PARA LA POBLACION VULNERABLE EN EL DPTO. DE CUNDINAMARCA | G8: CTEL | H8: 5170002961 | I8: CONTRATADO EN EJECUCIÓN | J8: 44865 | K8: 44753 | L8: 112
A9: CUNDINAMARCA | B9: SECRETARIA DE CIENCIA, TECNOLOGIA E INNOVACIÓN | C9: ALEXANDER RIVEROS Y YAHIR ARCINIEGAS | D9: LUIS MANUEL GONZALEZ | E9: 2013000100176 | F9: INNOVACIÓN SISTEMA DE PRODUCCION DE FRUTAS/HORTALIZAS FRESCAS/PROCESADAS TIPO EXPORTACION CON TECNOLOGIA BIOLOGICA /INTEGRAL INOCUA SUBACHOQUE, CUNDINAMARCA, CENTRO ORIENTE | G9: CTEL | H9: 9285096292 | I9: CONTRATADO EN EJECUCIÓN | J9: 44377 | K9: 44753 | L9: -376
A10: CUNDINAMARCA | B10: SECRETARIA DE CIENCIA, TECNOLOGIA E INNOVACIÓN | C10: ALEXANDER RIVEROS Y YAHIR ARCINIEGAS | D10: LUIS MANUEL GONZALEZ | E10: 2013000100248 | F10: INNOVACIÓN , CIENCIA Y TECNOLOGIA PARA PRODUCTORES DE LECHE EN LA PROVINCIA DE UBATE, CUNDINAMARCA. | G10: CTEL | H10: 11619725567 | I10: CONTRATADO EN EJECUCIÓN | J10: 43496 | K10: 44753 | L10: -1257
A11: CUNDINAMARCA | B11: SECRETARIA DE GOBIERNO | C11: DAYANA FERNANDEZ | D11: EDUARDO | E11: 2014000050010 | F11: CONSTRUCCIÓN DE UN CENTRO DE ATENCION ESPECIALIZADA AL SERVICIO DE ADOLESCENTES INFRACTORES DE LA LEY PENAL EN EL DEPARTAMENTO DE CUNDINAMARCA | G11: JUSTICIA Y DEL DERECHO | H11: 9260000000 | I11: PARA CIERRE | J11: 43190 | K11: 44753 | L11: -1563
A12: CUNDINAMARCA | B12: SECRETARIA DE HABITAT Y VIVIENDA | C12: ALEXANDER RIVEROS/JEIMY FORERO | D12: BEATRIZ GAMEZ | E12: 2016000050052 | F12: CONSTRUCCIÓN DE VIVIENDAS NUEVAS RURALES EN EL DEPARTAMENTO DE CUNDINAMARCA | G12: AGRICULTURA | H12: 5983779025 | I12: CONTRATADO EN EJECUCIÓN | J12: 44561 | K12: =+TODAY() -> 44753 | L12: =J12-K12 -> -192
A13: CUNDINAMARCA | B13: SECRETARIA DE CIENCIA, TECNOLOGIA E INNOVACIÓN | C13: ALEXANDER RIVEROS Y YAHIR ARCINIEGAS | D13: LUIS MANUEL GONZALEZ | E13: 2016000100027 | F13: ANLISIS DE FACTORES GENETICOS, SANITARIOS Y MEDIOAMBIENTALES QUE AFECTAN LAS TASAS DE PREÑEZ A PARTIR DE EMBRIONES IN VITRO EN EL DEPARTAMENTO DE CUNDINAMARCA | G13: CTEL | H13: 6401358633 | I13: CONTRATADO EN EJECUCIÓN | J13: 44742 | K13: 44753 | L13: -11
A14: ENTIDAD DESIGNADA PARA LA SUPERVISIÓN DEL PROYECTO O PARA CONTRATAR LA INTERVENTORÍA | B14: RAPE - INTERVENTORIA SECRETARIA DE PLANEACIÓN | C14: YAHIR ARCINIEGAS | D14: ANGELA MARTINEZ | E14: 2016000050012 | F14: IMPLEMENTACIÓN DE ACCIONES DE CONSERVACION Y RESTAURACION DE LOS COMPLEJOS DE PARAMO, BOSQUE ALTO-ANDINO Y SERVICIOS ECOSISTEMICOS DE LA REGION CENTRAL | G14: AMBIENTE Y DESARROLLO SOSTENIBLE | H14: 32499987282 | I14: CONTRATADO EN EJECUCIÓN | J14: 44530 | K14: 44753 | L14: -223
A15: CUNDINAMARCA | B15: SECRETARIA DE EDUCACIÓN | C15: YAHIR ARCINIEGAS Y ALEXANDER RIVEROS | D15: PABLO CAJAMARCA | E15: 2017000050027 | F15: FORTALECIMIENTO DE LA PERMANENCIA DE LOS ESTUDIANTES EN LOS MUNICIPIOS DEL DEPARTAMENTO DE CUNDINAMARCA , CENTRO ORIENTE 2017 CUNDINAMARCA | G15: EDUCACIÓN | H15: 14995289800 | I15: TERMINADO | J15: 43100 | K15: 44753 | L15: -1653
A16: ENTIDAD APORTANTE RECURSOS | B16: MUNICIPIO DE ZIPAQUIRA | C16: ALEXANDER RIVEROS | D16: JAIRO JARA | E16: 2017000050029 | F16: CONSERVACIÓN Y GESTIÓN INTEGRAL DEL RECURSO HÍDRICO MEDIANTE LA ADQUISICIÓN Y RESTAURACIÓN DE PREDIOS DE INTERÉS ECOSISTÉMICO EN ELDEPARTAMENTO DE CUNDINAMARCA | G16: AMBIENTE Y DESARROLLO SOSTENIBLE | H16: 900000000 | I16: CONTRATADO EN EJECUCIÓN | J16: 44865 | K16: 44753 | L16: 112
A17: CUNDINAMARCA | B17: SECRETARIA DE MINAS, ENERGIA Y GAS | C17: DIEGO TORRES / LIYUGETH ALFONSO | D17: JAHIR HERNANDEZ | E17: 2017000050036 | F17: IMPLEMENTACIÓN Y EXPANSIÓN DEL SERVICIO DE GAS COMBUSTIBLE POR REDES PARA VEREDAS Y CENTROS POBLADOS DEL DEPARTAMENTO DE CUNDINAMARCA | G17: MINAS Y ENERGÍA | H17: 4751658472 | I17: CONTRATADO EN EJECUCIÓN | J17: 44196 | K17: 44753 | L17: -557
A18: CUNDINAMARCA | B18: SECRETARIA DE PLANEACIÓN | C18: YESID CASTAÑO Y JEIMY FORERO | D18: RUSVEL NIETO | E18: 2017000050039 | F18: MEJORAMIENTO DE VÍAS TERCIARIAS MEDIANTE EL USO DE PLACA HUELLA EN LOS MUNICIPIOS DE GUATAVITA, PACHO, SAN JUAN DE RIOSECO, SUBACHOQUE, TENA Y ZIPAQUIRÁ, DEPARTAMENTO DE CUNDINAMARCA | G18: TRANSPORTE | H18: 6791102422 | I18: CONTRATADO EN EJECUCIÓN | J18: 43830 | K18: 44753 | L18: -923
A19: CUNDINAMARCA | B19: SECRETARIA DE HABITAT Y VIVIENDA | C19: ALEXANDER RIVEROS/JEIMY FORERO | D19: BEATRIZ GAMEZ | E19: 2017000050042 | F19: MEJORAMIENTO DE VIVIENDAS RURALES DE LA PROVINCIA DE UBATÉ - CUNDINAMARCA | G19: AGRICULTURA | H19: 2354318125 | I19: CONTRATADO EN EJECUCIÓN | J19: 44561 | K19: 44753 | L19: -192
A20: CUNDINAMARCA | B20: SECRETARIA DE AGRICULTURA | C20: DIEGO TORRES/VALENTINA PORTILLO | D20: JAVIER HERREDIA | E20: 2017000050065 | F20: MEJORAMIENTO DE LA PRODUCTIVIDAD Y RENTABILIDAD DE LOS CAFICULTORES DEL DEPARTAMENTO DE CUNDINAMARCA | G20: AGRICULTURA | H20: 6523880054 | I20: CONTRATADO EN EJECUCIÓN | J20: 44196 | K20: 44753 | L20: -557
A21: CUNDINAMARCA | B21: SECRETARIA DE CIENCIA, TECNOLOGIA E INNOVACIÓN | C21: ALEXANDER RIVEROS Y YAHIR ARCINIEGAS | D21: LUIS MANUEL GONZALEZ | E21: 2017000100016 | F21: IMPLEMENTACIÓN PROGRAMA DE INNOVACIÓN PARA LA VALIDACIÓN Y GENERACIÓN DE PRODUCTOS DERIVADOS DE LA BIODIVERSIDAD EN EL DEPARTAMENTO DE CUNDINAMARCA | G21: CTEL | H21: 4486653319 | I21: CONTRATADO EN EJECUCIÓN | J21: 44926 | K21: 44753 | L21: 173
A22: CUNDINAMARCA | B22: SECRETARIA DE CIENCIA, TECNOLOGIA E INNOVACIÓN | C22: ALEXANDER RIVEROS Y YAHIR ARCINIEGAS | D22: LUIS MANUEL GONZALEZ | E22: 2017000100034 | F22: IMPLEMENTACIÓN DE UN SISTEMA DE GESTIÓN DE INNOVACIÓN PARA LA INDUSTRIA DE CUNDINAMARCA | G22: CTEL | H22: 3925471448 | I22: CONTRATADO EN EJECUCIÓN | J22: 44530 | K22: 44753 | L22: -223
A23: CUNDINAMARCA | B23: SECRETARIA DE CIENCIA, TECNOLOGIA E INNOVACIÓN | C23: ALEXANDER RIVEROS Y YAHIR ARCINIEGAS | D23: LUIS MANUEL GONZALEZ | E23: 2017000100074 | F23: IMPLEMENTACIÓN DE ESTRATEGIAS DE FOMENTO A LA CULTURA Y SERVICIOS DE INNOVACIÓN EN LAS PROVINCIAS SABANA OCCIDENTE, SABANA CENTRAL, SOACHA Y SUMAPAZ CUNDINAMARCA | G23: CTEL | H23: 6183633276 | I23: CONTRATADO EN EJECUCIÓN | J23: 44592 | K23: 44753 | L23: -161
A24: CUNDINAMARCA | B24: SECRETARIA DE CIENCIA, TECNOLOGIA E INNOVACIÓN | C24: ALEXANDER RIVEROS Y YAHIR ARCINIEGAS | D24: LUIS MANUEL GONZALEZ | E24: 2017000100076 | F24: FORTALECIMIENTO DE CAPACIDADES DE GESTIÓN DEL RIESGO A TRAVÉS DE APROPIACIÓN SOCIAL DE LA CIENCIA, LA TECNOLOGÍA Y LA INNOVACIÓN EN EL DEPARTAMENTO DE CUNDINAMARCA | G24: CTEL | H24: 4404970720 | I24: CONTRATADO EN EJECUCIÓN | J24: 44895 | K24: 44753 | L24: 142
A25: CUNDINAMARCA | B25: SECRETARIA DE CIENCIA, TECNOLOGIA E INNOVACIÓN | C25: ALEXANDER RIVEROS Y YAHIR ARCINIEGAS | D25: LUIS MANUEL GONZALEZ | E25: 2017000100087 | F25: FORMACIÓN DE TALENTO HUMANO DE ALTO NIVEL EN MAESTRÍAS EN EL DEPARTAMENTO DE CUNDINAMARCA | G25: CTEL | H25: 5148022960 | I25: CONTRATADO EN EJECUCIÓN | J25: 45747 | K25: 44753 | L25: 994
A26: CUNDINAMARCA | B26: SECRETARIA DE CIENCIA, TECNOLOGIA E INNOVACIÓN | C26: ALEXANDER RIVEROS Y YAHIR ARCINIEGAS | D26: LUIS MANUEL GONZALEZ | E26: 2017000100104 | F26: FORTALECIMIENTO DE LA CULTURA DE LA GESTIÓN Y UTILIZACIÓN DEL CONOCIMIENTO EN CTEI EN NIÑOS, JÓVENES Y COMUNIDADES DEL DEPARTAMENTO DE CUNDINAMARCA | G26: CTEL | H26: 9498967749 | I26: CONTRATADO EN EJECUCIÓN | J26: 44926 | K26: 44753 | L26: 173
A27: CUNDINAMARCA | B27: UNIDAD ADMINISTRATIVA DE GESTIÓN DEL RIESGO. | C27: DIEGO TORRES/VALENTINA PORTILLO | D27: GINNA HERRERA | E27: 20172401060022 | F27: ESTUDIOS DETALLADOS PARA LA INCORPORACIÓN DE LA GESTIÓN DEL RIESGO PARA LOS MUNICIPIOS DE GIRARDOT, RICAURTE | G27: AMBIENTE Y DESARROLLO SOSTENIBLE | H27: 3084907873 | I27: CONTRATADO EN EJECUCIÓN | J27: 44773 | K27: 44753 | L27: 20
A28: CUNDINAMARCA | B28: SECRETARIA DE CIENCIA, TECNOLOGIA E INNOVACIÓN | C28: ALEXANDER RIVEROS Y YAHIR ARCINIEGAS | D28: LUIS MANUEL GONZALEZ | E28: 20170000100012 | F28: CONFORMACIÓN DE UNA CONVOCATORIA REGIONAL DE PROYECTOS I+D EN FOCOS PRIORIZADOS CTEI PARA EL FORTALECIMIENTO DE LOS GRUPOS DE INVESTIGACIÓN CUNDINAMARCA | G28: CTEL | H28: 7321934035 | I28: CONTRATADO EN EJECUCIÓN | J28: 44926 | K28: 44753 | L28: 173
A29: ENTIDAD APORTANTE RECURSOS | B29: CAR | C29: YESID CASTAÑO | D29: CARLOS MURCIA | E29: 2017000050063 | F29: RECUPERACIÓN HIDRÁULICA Y AMBIENTAL DEL COMPLEJO LAGUNAR FÚQUENE | G29: AMBIENTE Y DESARROLLO SOSTENIBLE | H29: 18000000000 | I29: CONTRATADO EN EJECUCIÓN | J29: 45199 | K29: 44753 | L29: 446
A30: ENTIDAD APORTANTE RECURSOS | B30: MUNICIPIO DE UTICA | C30: JUAN CARLOS TORRES | D30: CESAR SIMANCAS | E30: 2017000050087 | F30: MEJORAMIENTO DEL SENDERO TURÍSTICO DE LA PROVINCIA DEL GUALIVÁ – ÚTICA CUNDINAMARCA | G30: COMERCIO, INDUSTRIA Y TURISMO | H30: 2347004868 | I30: CONTRATADO EN EJECUCIÓN | J30: 44530 | K30: 44753 | L30: -223
A31: CUNDINAMARCA | B31: SECRETARIA DE HABITAT Y VIVIENDA | C31: ALEXANDER RIVEROS/JEIMY FORERO | D31: BEATRIZ GAMEZ | E31: 2018000050039 | F31: MEJORAMIENTO DE VIVIENDA RURAL EN LOS MUNICIPIOS DE CUCUNUBÁ, JERUSALEN, QUEBRADANEGRA Y VIOTÁ - DEPARTAMENTO DE CUNDINAMARCA | G31: AGRICULTURA | H31: 4024793625 | I31: CONTRATADO EN EJECUCIÓN | J31: 44561 | K31: 44753 | L31: -192
A32: CUNDINAMARCA | B32: SECRETARIA DE CIENCIA, TECNOLOGIA E INNOVACIÓN | C32: ALEXANDER RIVEROS Y YAHIR ARCINIEGAS | D32: LUIS MANUEL GONZALEZ | E32: 2018000100106 | F32: INNOVACIÓN EN EL MODELO DE GESTIÓN DEL MEDICAMENTO FASE III EN EL DEPARTAMENTO DE CUNDINAMARCA | G32: CTEL | H32: 3452890062 | I32: NO HA MIGRADO A GESPROY | K32: 44753 | L32: -44753
A33: CUNDINAMARCA | B33: SECRETARIA DE CIENCIA, TECNOLOGIA E INNOVACIÓN | C33: ALEXANDER RIVEROS Y YAHIR ARCINIEGAS | D33: LUIS MANUEL GONZALEZ | E33: 2018000100160 | F33: FORMACIÓN DE CAPITAL HUMANO DE ALTO NIVEL PARA LA INVESTIGACIÓN, EL DESARROLLO TECNOLÓGICO Y LA INNOVACIÓN MAESTRÍAS DE INVESTIGACIÓN PARA DOCENTES DEL DEPARTAMENTO DE CUNDINAMARCA | G33: CTEL | H33: 5217415747 | I33: CONTRATADO EN EJECUCIÓN | J33: 30/11/2027 | K33: 44753
A34: ENTIDAD DESIGNADA PARA LA SUPERVISIÓN DEL PROYECTO O PARA CONTRATAR LA INTERVENTORÍA | B34: EMPRESAS PUBLICAS DE CUNDINAMARCA -EPC | C34: ALEXANDER RIVEROS/LIYUGETH ALFONSO | D34: PAULA ACUÑA | E34: 20181301010555 | F34: CONSTRUCCIÓN DE UNIDADES SANITARIAS EN EL ÁREA RURAL DEL DEPARTAMENTO DE CUNDINAMARCA | G34: VIVIENDA, CIUDAD Y TERRITORIO | H34: 4999900475 | I34: CONTRATADO EN EJECUCIÓN | J34: 44347 | K34: 44753 | L34: -406
A35: CUNDINAMARCA | B35: SECRETARIA DE EDUCACIÓN | C35: YAHIR ARCINIEGAS Y ALEXANDER RIVEROS | D35: PABLO CAJAMARCA | E35: 2019000050020 | F35: FORTALECIMIENTO DE LA PERMANENCIA DE LOS ESTUDIANTES PARA EL AÑO 2019 EN LOS MUNICIPIOS DEL DEPARTAMENTO DE CUNDINAMARCA | G35: EDUCACIÓN | H35: 20536293937 | I35: TERMINADO | J35: 43769 | K35: 44753 | L35: -984
A36: CUNDINAMARCA | B36: SECRETARIA DE AGRICULTURA | C36: DIEGO TORRES/VALENTINA PORTILLO | D36: JAVIER HERREDIA | E36: 2019000050027 | F36: MEJORAMIENTO DE LA COMPETITIVIDAD DE LA CADENA PRODUCTIVA DE CACAO EN EL DEPARTAMENTO DE CUNDINAMARCA | G36: AGRICULTURA | H36: 5862983962 | I36: CONTRATADO EN EJECUCIÓN | J36: 44651 | K36: 44753 | L36: -102
A37: ENTIDAD APORTANTE RECURSOS | B37: MEDICINA LEGAL Y CIENCIAS FORENSES | C37: ALEXANDER RIVEROS | D37: MARTIN SEPULVEDA | E37: 2019000050025 | F37: ESTUDIOS Y DISEÑOS PARA LA CONSTRUCCIÓN DE LA SEDE DE MEDICINA LEGAL EN EL DEPARTAMENTO DE CUNDINAMARCA | G37: FISCALIA | H37: 904521100 | I37: CONTRATADO EN EJECUCIÓN | J37: 44620 | K37: =+TODAY() -> 44753 | L37: =J37-K37 -> -133
A38: ENTIDAD APORTANTE RECURSOS | B38: IDECUT | C38: DIEGO TORRES Y YAHIR ARCINIEGAS | D38: MARTHA VANEGAS | E38: 2019000050059 | F38: FORTALECIMIENTO A LAS ESCUELAS MUNICIPALES DE MÚSICA, DANZA, TEATRO Y ARTES PLÁSTICAS Y VISUALES EN EL DEPARTAMENTO DE CUNDINAMARCA | G38: CULTURA | H38: 1972606058 | I38: CONTRATADO EN EJECUCIÓN | J38: 44530 | K38: 44753 | L38: -223
A39: CUNDINAMARCA | B39: SECRETARIA DE MINAS, ENERGIA Y GAS | C39: DIEGO TORRES / LIYUGETH ALFONSO | D39: JAHIR HERNANDEZ | E39: 2019000050073 | F39: AMPLIACIÓN DE LA COBERTURA DEL SERVICIO DE GAS COMBUSTIBLE DOMICILIARIO A TRAVÉS DE LA FINANCIACIÓN DE LA CONEXIÓN Y LA RED INTERNA PARA USUARIOS DE BARRIOS PERIFÉRICOS, VEREDAS Y CENTROS POBLADOS DEL DEPARTAMENTO DE CUNDINAMARCA | G39: MINAS Y ENERGÍA | H39: 12461377100 | I39: CONTRATADO EN EJECUCIÓN | J39: 44530 | K39: 44753 | L39: -223
A40: ENTIDAD APORTANTE RECURSOS | B40: TV ANDINA | C40: ALEXANDER RIVEROS | D40: EDWIN | E40: 2019000050064 | F40: PROTECCIÓN Y PRESERVACIÓN DEL PATRIMONIO AUDIOVISUAL COLOMBIANO QUE SE ENCUENTRA EN EL CANAL PÚBLICO TEVEANDINA LOCALIZADO EN EL DEPARTAMENTO DE CUNDINAMARCA | G40: CULTURA | H40: 5923285198 | I40: TERMINADO | J40: 44439 | K40: 44753 | L40: -314
A41: ENTIDAD APORTANTE RECURSOS | B41: UNAD | C41: ALEXANDER RIVEROS | D41: ANDRES ACOSTA | E41: 2019000050069 | F41: MEJORAMIENTO DE INFRAESTRUCTURA FÍSICA, DOTACIÓN DE MOBILIARIO Y EQUIPAMIENTO TECNOLÓGICO DE LA UNIVERSIDAD NACIONAL ABIERTA Y A DISTANCIA EN MUNICIPIOS DEL DEPARTAMENTO DE CUNDINAMARCA | G41: EDUCACIÓN | H41: 16011115461 | I41: TERMINADO | J41: 44165 | K41: 44753 | L41: -588
A42: ENTIDAD APORTANTE RECURSOS | B42: U TECNOLOGICA DE PEREIRA | C42: YAHIR ARCINIEGAS | D42: LUIS MANUEL GONZALEZ | E42: 2019000100009 | F42: FORMACIÓN DE CAPITAL HUMANO DE ALTO NIVEL UNIVERSIDAD TECNOLÓGICA DE PEREIRA NACIONAL | G42: CTEL | H42: 4360028215 | I42: CONTRATADO EN EJECUCIÓN | J42: 46752 | K42: 44753 | L42: 1999
A43: ENTIDAD APORTANTE RECURSOS | B43: U EAN | C43: YAHIR ARCINIEGAS | D43: LUIS MANUEL GONZALEZ | E43: 2019000100015 | F43: FORMACIÓN DE CAPITAL HUMANO DE ALTO NIVEL - UNIVERSIDAD EAN - NACIONAL | G43: CTEL | H43: 1294375000 | I43: CONTRATADO EN EJECUCIÓN | J43: 45351 | K43: 44753 | L43: 598
A44: ENTIDAD APORTANTE RECURSOS | B44: U CATOLICA | C44: YAHIR ARCINIEGAS | D44: LUIS MANUEL GONZALEZ | E44: 2019000100022 | F44: FORMACIÓN DE CAPITAL HUMANO DE ALTO NIVEL - UNIVERSIDAD CATÓLICA DE COLOMBIA - NACIONAL | G44: CTEL | H44: 343595000 | I44: CONTRATADO EN EJECUCIÓN | J44: 46783 | K44: 44753 | L44: 2030
A45: ENTIDAD APORTANTE RECURSOS | B45: UNIVERSIDAD MILITAR NUEVA GRANADA | C45: YAHIR ARCINIEGAS | D45: LUIS MANUEL GONZALEZ | E45: 2019000100025 | F45: FORMACIÓN DE CAPITAL HUMANO DE ALTO NIVEL UNIVERSIDAD MILITAR NUEVA GRANADA NACIONAL | G45: CTEL | H45: 294375000 | I45: CONTRATADO EN EJECUCIÓN | J45: 46752 | K45: 44753 | L45: 1999
A46: ENTIDAD APORTANTE RECURSOS | B46: UNIVERSIDAD NACIONAL DE COLOMBIA | C46: YAHIR ARCINIEGAS | D46: LUIS MANUEL GONZALEZ | E46: 2019000100026 | F46: FORMACIÓN DE CAPITAL HUMANO DE ALTO NIVEL UNIVERSIDAD NACIONAL DE COLOMBIA NACIONAL | G46: CTEL | H46: 21162064500 | I46: CONTRATADO EN EJECUCIÓN | J46: 46904 | K46: 44753 | L46: 2151
A47: ENTIDAD APORTANTE RECURSOS | B47: U DISTRITAL | C47: YAHIR ARCINIEGAS | D47: LUIS MANUEL GONZALEZ | E47: 2019000100027 | F47: FORMACIÓN DE CAPITAL HUMANO DE ALTO NIVEL EN DOCTORADO PARA EL DESARROLLO REGIONAL, UNIVERSIDAD DISTRITAL FRANCISCO JOSÉ DE CALDAS, A NIVEL NACIONAL | G47: CTEL | H47: 1218668841 | I47: CONTRATADO EN EJECUCIÓN | J47: 46873 | K47: 44753 | L47: 2120
A48: ENTIDAD APORTANTE RECURSOS | B48: U JAVERIANA | C48: YAHIR ARCINIEGAS | D48: LUIS MANUEL GONZALEZ | E48: 2019000100028 | F48: FORMACIÓN DE CAPITAL HUMANO DE ALTO NIVEL PONTIFICIA UNIVERSIDAD JAVERIANA SEDE CENTRAL NACIONAL | G48: CTEL | H48: 6524500000 | I48: CONTRATADO EN EJECUCIÓN | J48: 46812 | K48: 44753 | L48: 2059
A49: ENTIDAD APORTANTE RECURSOS | B49: U DE LOS ANDES | C49: YAHIR ARCINIEGAS | D49: LUIS MANUEL GONZALEZ | E49: 2019000100036 | F49: FORMACIÓN DE CAPITAL HUMANO DE ALTO NIVEL UNIVERSIDAD DE LOS ANDES NACIONAL | G49: CTEL | H49: 2814671307 | I49: CONTRATADO EN EJECUCIÓN | J49: 46568 | K49: 44753 | L49: 1815
A50: ENTIDAD APORTANTE RECURSOS | B50: UNIVERSIDAD NACIONAL DE COLOMBIA | C50: YAHIR ARCINIEGAS | D50: LUIS MANUEL GONZALEZ | E50: 2019000100061 | F50: FORTALECIMIENTO DE LA CAPACIDAD TECNOLÓGICA INSTALADA EN EL CENTRO AGROPECUARIO MARENGO PARA LA INVESTIGACIÓN EN LOS SISTEMAS AGROPRODUCTIVOS DEL TRÓPICO ALTO, BAJO EL EFECTO DE LA VARIABILIDAD Y CAMBIO CLIMÁTICO - CUNDINAMARCA | G50: CTEL | H50: 2386591598 | I50: CONTRATADO EN EJECUCIÓN | J50: 46569 | K50: 44753 | L50: 1816
A51: CUNDINAMARCA | B51: SECRETARIA DE CIENCIA, TECNOLOGIA E INNOVACIÓN | C51: ALEXANDER RIVEROS Y YAHIR ARCINIEGAS | D51: LUIS MANUEL GONZALEZ | E51: 2020000100137 | F51: FORTALECIMIENTO DE LAS CAPACIDADES DE INVESTIGACIÓN Y DESARROLLO PARA ATENDER PROBLEMÁTICAS ASOCIADAS CON AGENTES BIOLÓGICOS PARA LA SALUD PÚBLICA, A TRAVÉS DEL MEJORAMIENTO DEL LABORATORIO DE SALUD PÚBLICA DE CUNDINAMARCA | G51: CTEL | H51: 4506359274 | I51: CONTRATADO EN EJECUCIÓN | J51: 44681 | K51: 44753 | L51: -72
A52: CUNDINAMARCA | B52: SECRETARIA DE SALUD | C52: DAYANA FERNANDEZ/ LIYUGETH ALFONSO | D52: OLGA LUCIA GARZON | E52: 2020000050003 | F52: ADQUISICIÓN DE AMBULANCIAS,EQUIPOS BIOMÉDICOS, ELEMENTOS DE PROTECCIÓN PERSONAL, ASEO Y DESINFECCIÓN PARA LA ATENCIÓN DE LA CALAMIDAD SANITARIA POR COVID-19 EN LAS E.S.E DEL DEPARTAMENTO DE CUNDINAMARCA | G52: SALUD Y PROTECCIÓN SOCIAL | H52: 43433295564 | I52: CONTRATADO EN EJECUCIÓN | J52: 44742 | K52: 44753 | L52: -11
A53: CUNDINAMARCA | B53: SECRETARIA DE EDUCACIÓN | C53: YAHIR ARCINIEGAS Y ALEXANDER RIVEROS | D53: GENNY PADILLA | E53: 2020000050019 | F53: FORTALECIMIENTO A LA ESTRATEGIA DE ALIMENTACIÓN ESCOLAR PARA EL AÑO 2020, EN LOS MUNICIPIOS DEL DEPARTAMENTO DE CUNDINAMARCA | G53: EDUCACIÓN | H53: 26240955000 | I53: TERMINADO | J53: 44165 | K53: 44753 | L53: -588
A54: CUNDINAMARCA | B54: SECRETARIA DE CIENCIA, TECNOLOGIA E INNOVACIÓN | C54: ALEXANDER RIVEROS Y YAHIR ARCINIEGAS | D54: LUIS MANUEL GONZALEZ | E54: 2020000100266 | F54: GENERACIÓN DE ESPACIOS DE ENCUENTRO DE LA SOCIEDAD CON LA CIENCIA Y LA TECNOLOGÍA - UN VIAJE CON LA CIENCIA EN EL DEPARTAMENTO DE CUNDINAMARCA | G54: CTEL | H54: 2241429590 | I54: CONTRATADO EN EJECUCIÓN | J54: 44926 | K54: 44753 | L54: 173
A55: CUNDINAMARCA | B55: SECRETARIA DE CIENCIA, TECNOLOGIA E INNOVACIÓN | C55: ALEXANDER RIVEROS Y YAHIR ARCINIEGAS | D55: LUIS MANUEL GONZALEZ | E55: 2020000100246 | F55: FORTALECIMIENTO DE LA COMPETITIVIDAD DE LA CADENA PRODUCTIVA DE LA GUADUA POR MEDIO DEL DESARROLLO E IMPLEMENTACIÓN DE DOS (2) PAQUETES TECNOLÓGICOS PARA LA GENERACIÓN DE PRODUCTOS CON VALOR AGREGADO EN EL DEPARTAMENTO DE CUNDINAMARCA | G55: CTEL | H55: 3144525520 | I55: CONTRATADO EN EJECUCIÓN | J55: 45107 | K55: 44753 | L55: 354
A56: ENTIDAD APORTANTE RECURSOS | B56: CONNECT BOGOTA REGIÓN | C56: YAHIR ARCINIEGAS | D56: LUIS MANUEL GONZALEZ | E56: 2020000100078 | F56: DISEÑO E IMPLEMENTACIÓN DE UN MODELO DE GESTIÓN DE CONOCIMIENTO, INNOVACIÓN Y TRANSFERENCIA DE TECNOLOGÍA CON APLICACIÓN EN EL SECTOR AGROPECUARIO Y AGROINDUSTRIAL EN EL DEPARTAMENTO DE CUNDINAMARCA | G56: CTEL | H56: 3309848753 | I56: CONTRATADO EN EJECUCIÓN | J56: 45473 | K56: 44753 | L56: 720
A57: ENTIDAD APORTANTE RECURSOS | B57: FEDERACIÓN NACIONAL DE CAFETEROS | C57: YAHIR ARCINIEGAS | D57: LUIS MANUEL GONZALEZ | E57: 2020000100205 | F57: TRASLADO DE TECNOLOGÍAS INNOVADORAS A CAFICULTORES CON IMPACTO SOBRE LA CALIDAD DEL CAFÉ Y LA GESTIÓN DEL RECURSO HÍDRICO DURANTE EL PROCESO DE BENEFICIO EN ZONA CAFETERA DEL DEPARTAMENTO DE CUNDINAMARCA | G57: CTEL | H57: 13783557324 | I57: CONTRATADO EN EJECUCIÓN | J57: 45596 | K57: 44753 | L57: 843
A58: ENTIDAD APORTANTE RECURSOS | B58: AGROSAVIA | C58: YAHIR ARCINIEGAS | D58: LUIS MANUEL GONZALEZ | E58: 2020000100197 | F58: DESARROLLO DE BIOPLAGUICIDAS POTENCIADOS DE NUEVA GENERACIÓN PARA EL MEJORAMIENTO DE LA PRODUCTIVIDAD E INOCUIDAD DEL CULTIVO DE TOMATE Y CRUCÍFERAS EN EL DEPARTAMENTO DE CUNDINAMARCA | G58: CTEL | H58: 4583970033 | I58: CONTRATADO EN EJECUCIÓN | J58: 46112 | K58: 44753 | L58: 1359
A59: ENTIDAD APORTANTE RECURSOS | B59: UNIVERSIDAD NACIONAL DE COLOMBIA | C59: YAHIR ARCINIEGAS | D59: LUIS MANUEL GONZALEZ | E59: 2020000100240 | F59: ESTUDIO DE PREFACTIBILIDAD PARA LA CREACIÓN DE UN CENTRO DE INNOVACIÓN Y DE PRODUCTIVIDAD PARA EL SECTOR AGROPECUARIO DE SABANA OCCIDENTE DE CUNDINAMARCA | G59: CTEL | H59: 1896154229 | I59: CONTRATADO EN EJECUCIÓN | J59: 44926 | K59: 44753 | L59: 173
A60: ENTIDAD APORTANTE RECURSOS | B60: UNIVERSIDAD DE CUNDINAMARCA | C60: YAHIR ARCINIEGAS | D60: LUIS MANUEL GONZALEZ | E60: 2020000100158 | F60: FORTALECIMIENTO DE LA INFRAESTRUCTURA FÍSICA Y TECNOLÓGICA DEL CENTRO DE ESTUDIOS AGROAMBIENTALES DE LA UNIVERSIDAD DE CUNDINAMARCA AGROU CUNDINAMARCA | G60: CTEL | H60: 2024433669 | I60: SIN CONTRATAR | K60: 44753
A61: ENTIDAD APORTANTE RECURSOS | B61: ZIPAQUIRA | C61: YESID CASTAÑO / JEIMY FORERO | E61: 2020000050013 | F61: Mejoramiento de la vía que comunica a los municipios de Zipaquirá y Tocancipá, tramo barandillas - la fuente, departamento de Cundinamarca | G61: TRANSPORTE | H61: 6.788.620.869,00 | I61: CONTRATADO EN EJECUCIÓN | J61: 44681 | K61: 44753 | L61: -72
A62: ENTIDAD APORTANTE RECURSOS | B62: ZIPAQUIRA | C62: YESID CASTAÑO / JEIMY FORERO | E62: 2020000050015 | F62: MEJORAMIENTO DE LA VÍA ZIPAQUIRÁ - SAN JORGE - TABIO DEPARTAMENTO DE CUNDINAMARCA | G62: TRANSPORTE | H62: 7458735075 | I62: CONTRATADO SIN ACTA DE INICIO | J62: 44926 | K62: 44753 | L62: 173
A63: CUNDINAMARCA | B63: SECRETARIA DE CIENCIA, TECNOLOGIA E INNOVACIÓN | C63: ALEXANDER RIVEROS Y YAHIR ARCINIEGAS | D63: LUIS MANUEL GONZALEZ | E63: 2020000100695 | F63: DESARROLLO, TRANSFERENCIA DE TECNOLOGÍA Y CONOCIMIENTO PARA LA INNOVACIÓN QUE FORTALEZCAN CAPACIDADES COMUNITARIAS EN LA COMPRENSIÓN Y/O MITIGACIÓN DE LOS PROBLEMAS DE VIOLENCIAS BASADAS EN GÉNERO, DERIVADAS DE LA EMERGENCIA POR COVID 19, EN CUNDINAMARCA | G63: CTEL | H63: 3100000000 | I63: CONTRATADO EN EJECUCIÓN | J63: 45016 | K63: 44753 | L63: 263
A64: CUNDINAMARCA | B64: SECRETARIA DE CIENCIA, TECNOLOGIA E INNOVACIÓN | C64: ALEXANDER RIVEROS Y YAHIR ARCINIEGAS | D64: LUIS MANUEL GONZALEZ | E64: 2020000100650 | F64: FORTALECIMIENTO DE CAPACIDADES DE CTEI PARALA INNOVACION EDUCATIVA EN LOS NIVELES DE BÁSICA Y MEDIA, MEDIANTE USO DE TICS EN INSTITUCIONES EDUCATIVAS OFICIALES DE LOS MUNICIPIOS NO CERTIFICADOS DEL DEPARTAMENTO DE CUNDINAMARCA | G64: CTEL | H64: 10804663122 | I64: CONTRATADO EN EJECUCIÓN | J64: 45230 | K64: 44753 | L64: 477
A65: CUNDINAMARCA | B65: SECRETARIA DE CIENCIA, TECNOLOGIA E INNOVACIÓN | C65: ALEXANDER RIVEROS Y YAHIR ARCINIEGAS | D65: LUIS MANUEL GONZALEZ | E65: 2020000100696 | F65: FORTALECIMIENTO DE CAPACIDADES DE CTEI PARA LA REACTIVACIÓN ECONÓMICA Y LA TRANSFORMACIÓN PRODUCTIVA EN CUNDINAMARCA | G65: CTEL | H65: 7370634083 | I65: CONTRATADO EN EJECUCIÓN | J65: 45199 | K65: 44753 | L65: 446
A66: CUNDINAMARCA | B66: SECRETARIA DE CIENCIA, TECNOLOGIA E INNOVACIÓN | C66: ALEXANDER RIVEROS Y YAHIR ARCINIEGAS | D66: LUIS MANUEL GONZALEZ | E66: 2020000100649 | F66: FORTALECIMIENTO DE CAPACIDADES DE CTeI PARA EL RELACIONAMIENTO ESCUELA - CONTEXTO RURAL MEDIANTE LA APROPIACIÓN Y USO DE LAS TIC EN EL MUNICIPIO DE SIBATÉ, DEPARTAMENTO DE CUNDINAMARCA | G66: CTEL | H66: 4292464018 | I66: CONTRATADO EN EJECUCIÓN | J66: 45260 | K66: 44753 | L66: 507
A67: ENTIDAD APORTANTE RECURSOS | B67: FUNDACION UNIVERSIDAD DEL VALLE | C67: YAHIR ARCINIEGAS | D67: JOSE MARIA LEITON | E67: 2020000050044 | F67: FORTALECIMIENTO DE LAS COMPETENCIAS COMUNICATIVAS EN INGLÉS DE LOS ESTUDIANTES DE LOS ESTABLECIMIENTOS EDUCATIVOS NO OFICIALES DE CUNDINAMARCA | G67: EDUCACIÓN | H67: $ 10.468.961.978 | I67: CONTRATADO EN EJECUCIÓN | J67: 45138 | K67: 44753 | L67: 385
A68: ENTIDAD APORTANTE RECURSOS | B68: UNAD | C68: YAHIR ARCINIEGAS | D68: LUIS MANUEL GONZALEZ | E68: 2020000100433 | F68: Investigación de los compuestos volátiles orgánicos e inducidos para el manejo de moscas plagas en gulupa y granadilla en el departamento de Cundinamarca | G68: CTEL | H68: 3412874201 | I68: CONTRATADO EN EJECUCIÓN | J68: 45535 | K68: 44753 | L68: 782
A69: ENTIDAD APORTANTE RECURSOS | B69: UNIVERSIDAD INDUSTRIAL DE SANTANDER | C69: YAHIR ARCINIEGAS | D69: LUIS MANUEL GONZALEZ | E69: 2020000100415 | F69: Desarrollo de un sistema óptico computacional para estimar el contenido de carbono orgánico de suelos agrícolas a través de imágenes espectrales e inteligencia artificial en cultivos de cítricos de Santander | G69: CTEL | H69: 2184125885 | I69: CONTRATADO EN EJECUCIÓN | J69: 45382 | K69: 44753 | L69: 629
A70: ENTIDAD APORTANTE RECURSOS | B70: UNIVERSIDAD INDUSTRIAL DE SANTANDER | C70: YAHIR ARCINIEGAS | D70: LUIS MANUEL GONZALEZ | E70: 2020000100375 | F70: Conformación de una plataforma para estudios celulares avanzados in vivo en tiempo real para el análisis de la respuesta inmunometabólica ante la reexpresión de interferón tipo I kappa en esferoides de células tumorales de cuello uterino en Santander | G70: CTEL | H70: 3123997801 | I70: CONTRATADO EN EJECUCIÓN | J70: 45443 | K70: 44753 | L70: 690
A71: ENTIDAD APORTANTE RECURSOS | B71: UNIVERSIDAD INDUSTRIAL DE SANTANDER | C71: YAHIR ARCINIEGAS | D71: LUIS MANUEL GONZALEZ | E71: 2020000100351 | F71: Desarrollo de un prototipo selectivo y sensible para monitorear contenido de cadmio in situ en diversas matrices asociadas a la producción de granos de cacao en el departamento de Santander | G71: CTEL | H71: 2585800000 | I71: CONTRATADO EN EJECUCIÓN | J71: 44865 | K71: 44753 | L71: 112
A72: ENTIDAD APORTANTE RECURSOS | B72: INSTITUTO SUPERIOR DE EDUCACION RURAL DE PAMPLONA | C72: YAHIR ARCINIEGAS | D72: LUIS MANUEL GONZALEZ | E72: 2020000100343 | F72: Implementación laboratorio de calidad fisicoquímica de alimentos para el fortalecimiento competitivo y sostenible de lascadenas agroalimentarias del departamento de Norte de Santander | G72: CTEL | H72: 1097306327 | I72: SIN CONTRATAR | J72: 45322 | K72: 44753 | L72: 569
A73: ENTIDAD APORTANTE RECURSOS | B73: UNIVERSIDAD NACIONAL DE COLOMBIA | C73: YAHIR ARCINIEGAS | D73: LUIS MANUEL GONZALEZ | E73: 2020000100342 | F73: Estudio de potenciales insecticidas en matrices poliméricas para el control de plagas de granos almacenados basados en aceites esenciales provenientes de la biodiversidadflorística del departamento de Cundinamarca | G73: CTEL | H73: 2748237104 | I73: CONTRATADO EN EJECUCIÓN | J73: 45504 | K73: 44753 | L73: 751
A74: ENTIDAD APORTANTE RECURSOS | B74: UNIVERSIDAD MILITAR NUEVA GRANADA | C74: YAHIR ARCINIEGAS | D74: LUIS MANUEL GONZALEZ | E74: 2020000100728 | F74: Generación y transferencia de conocimientos y tecnologías para elevar capacidades de CTel de pequeños productores de tomate para afrontar problemas derivados del COVID-19 asociadas a la Seg. Alimentaria en las Sab. Centro y Oriente Cundinamarca | G74: CTEL | H74: 4162541452 | I74: CONTRATADO EN EJECUCIÓN | J74: 45138 | K74: 44753 | L74: 385
A75: ENTIDAD APORTANTE RECURSOS | B75: UNIVERSIDAD NACIONAL DE COLOMBIA | C75: YAHIR ARCINIEGAS | D75: LUIS MANUEL GONZALEZ | E75: 2020000100339 | F75: Desarrollo de Nuevos Métodos No Destructivos para Monitoreo In Situ de Probabilidad de Ocurrencia de Falla en Tuberías en el Sector de Hidrocarburos en los Departamentos de Bogotá Boyacá Santander | G75: CTEL | H75: 2412084140 | I75: CONTRATADO EN EJECUCIÓN | J75: 45077 | K75: 44753 | L75: 324
A76: ENTIDAD APORTANTE RECURSOS | B76: UNIVERSIDAD MILITAR NUEVA GRANADA | C76: YAHIR ARCINIEGAS | D76: LUIS MANUEL GONZALEZ | E76: 2020000100216 | F76: Innovación y transferencia tecnológica de UMNGBIO a productores de flores para el control biológico de Tetranychus urticae (Acari: Tetranychiidae) en cultivos de invernadero con el ácaro benéfico Neoseiulus californicus (Acari: Phytoseiidae) Cundinamarca | G76: CTEL | H76: 2431580000 | I76: CONTRATADO EN EJECUCIÓN | J76: 45473 | K76: 44753 | L76: 720
A77: CUNDINAMARCA | B77: SECRETARIA DE COMPETITIVIDAD | C77: DIEGO TORRES/VALENTINA PORTILLO | D77: FABIAN CUESTA | E77: 2019000050026 | F77: Desarrollo de un programa productivo, amigable con el medio ambiente del sector ganadero en el Departamento de Cundinamarca Cundinamarca | G77: AGRICULTURA | H77: 9757143522 | I77: CONTRATADO SIN ACTA DE INICIO | J77: 44773 | K77: 44753 | L77: 20
A78: ENTIDAD APORTANTE RECURSOS | B78: UNIVERSIDAD NACIONAL DE COLOMBIA | C78: YAHIR ARCINIEGAS | D78: LUIS MANUEL GONZALEZ | E78: 2020000100169 | F78: Investigación Desarrollo, innovación y transferencia de conocimiento para el procesamiento de la semilla de Sacha Inchi en productos de valor agregado, como estrategia para mejorar la productividad del sector agroindustrial de la Región Cundinamarca | G78: CTEL | H78: 2757697312 | I78: CONTRATADO EN EJECUCIÓN | J78: 45473 | K78: 44753 | L78: 720
A79: ENTIDAD APORTANTE RECURSOS | B79: UPTC | C79: YAHIR ARCINIEGAS | D79: LUIS MANUEL GONZALEZ | E79: 2020000100114 | F79: Fortalecimiento del ecosistema de investigación científica para CTeI en la universidad pedagógica y tecnológica de Colombia UPTC, I-SPACIO Sogamoso | G79: CTEL | H79: 2310634882 | I79: CONTRATADO EN EJECUCIÓN | J79: 45077 | K79: 44753 | L79: 324
A80: ENTIDAD APORTANTE RECURSOS | B80: UNIVERSIDAD DE ANTIOQUIA | C80: YAHIR ARCINIEGAS | D80: LUIS MANUEL GONZALEZ | E80: 2020000100079 | F80: Fortalecimiento de la infraestructura tecnológica y equipamiento del ambiente de formación industrial para el aumento de las capacidades institucionales en CTeI de la ETITC Bogotá | G80: CTEL | H80: 1090608306 | I80: CONTRATADO EN EJECUCIÓN | J80: 45046 | K80: 44753 | L80: 293
A81: ENTIDAD APORTANTE RECURSOS | B81: UNIVERSIDAD NACIONAL DE COLOMBIA | C81: YAHIR ARCINIEGAS | D81: LUIS MANUEL GONZALEZ | E81: 2020000100075 | F81: Aprovechamiento de la biodiversidad en agraz y papa para el desarrollo de cultivos promisorios en el departamento de Santander | G81: CTEL | H81: 3177259696 | I81: CONTRATADO EN EJECUCIÓN | J81: 45565 | K81: 44753 | L81: 812
A82: ENTIDAD APORTANTE RECURSOS | B82: UNIVERSIDAD NACIONAL DE COLOMBIA | C82: YAHIR ARCINIEGAS | D82: LUIS MANUEL GONZALEZ | E82: 2020000100019 | F82: Fortalecimiento de capacidades de investigación y desarrollo tecnológico de la Universidad Colegio Mayor de Cundinamarca a partir de tecnologías industria 4.0 para el diseño y construcción en Bogotá | G82: CTEL | H82: 2077571214 | I82: CONTRATADO EN EJECUCIÓN | J82: 45077 | K82: 44753 | L82: 324
A83: ENTIDAD APORTANTE RECURSOS | B83: UNIVERSIDAD INDUSTRIAL DE SANTANDER | C83: YAHIR ARCINIEGAS | D83: LUIS MANUEL GONZALEZ | E83: 2020000100017 | F83: Fortalecimiento DE LA CAPACIDAD INSTITUCIONAL DE INVESTIGACIÓN DE LA UNIVERSIDAD INDUSTRIAL DESANTANDER Nacional | G83: CTEL | H83: 2808520000 | I83: CONTRATADO EN EJECUCIÓN | J83: 45260 | K83: 44753 | L83: 507
A84: ENTIDAD APORTANTE RECURSOS | B84: UNIVERSIDAD MILITAR NUEVA GRANADA | C84: YAHIR ARCINIEGAS | D84: LUIS MANUEL GONZALEZ | E84: 2020000100103 | F84: Fortalecimiento de capacidades instaladas de Ciencia y Tecnología del Laboratorio de Diagnóstico en el Campus de la Univ Militar Nueva Granada, para atender problemáticas asociadas con agentes biológicos de alto riesgo para la salud humana, Cundinamarca | G84: CTEL | H84: 5162742977 | I84: CONTRATADO EN EJECUCIÓN | J84: 44834 | K84: 44753 | L84: 81
A85: ENTIDAD APORTANTE RECURSOS | B85: INSTITUTO UNIVERSITARIO DE LA PAZ – UNIPAZ | C85: YAHIR ARCINIEGAS | D85: LUIS MANUEL GONZALEZ | E85: 2020000100042 | F85: Fortalecimiento de los procesos académicos en los programas ofrecidos por el Instituto Universitario de la Paz, UNIPAZ, Barrancabermeja | G85: CTEL | H85: 1178749590 | I85: CONTRATADO EN EJECUCIÓN | J85: 44712 | K85: 44753 | L85: -41
A86: ENTIDAD APORTANTE RECURSOS | B86: INSTITUTO UNIVERSITARIO DE LA PAZ – UNIPAZ | C86: YAHIR ARCINIEGAS | D86: LUIS MANUEL GONZALEZ | E86: 2020000100016 | F86: Adecuación , DOTACIÓN E IMPLEMENTACIÓN DE UN LABORATORIO DE FABRICACIÓN DIGITAL PARA PROMOVER EL DESARROLLO DE LA CIENCIA, LAINNOVACIÓN Y EL EMPRENDIMIENTO EN LA UNIVERSIDAD FRANCISCO DE PAULA SANTANDER. Cúcuta | G86: CTEL | H86: 2921057589 | I86: CONTRATADO EN EJECUCIÓN | J86: 44865 | K86: 44753 | L86: 112
A87: ENTIDAD APORTANTE RECURSOS | B87: UNIVERSIDAD TECNOLOGICA DE SANTANDER | C87: YAHIR ARCINIEGAS | D87: LUIS MANUEL GONZALEZ | E87: 2020000100004 | F87: Fortalecimiento y adecuación de equipos e infraestructura del Laboratorio de física del Departamento de Ciencias Básicas, para el mejoramiento de las capacidades institucionales y la investigación en las Unidades Tecnológicas de Santander - Bucaramanga | G87: CTEL | H87: 1016752702 | I87: CONTRATADO EN EJECUCIÓN | J87: 44773 | K87: 44753 | L87: 20
A88: CUNDINAMARCA | B88: SECRETARIA DE EDUCACIÓN | C88: YAHIR ARCINIEGAS | D88: GENNY PADILLA | E88: 2020000050037 | F88: Dotación del mobiliario escolar para las instituciones educativas de los municipios no certificados del Departamento de Cundinamarca | G88: EDUCACIÓN | H88: 10093038848 | I88: CONTRATADO EN EJECUCIÓN | J88: 44712 | K88: 44753 | L88: -41
A89: ENTIDAD APORTANTE RECURSOS | B89: UNIVERSIDAD DEL NORTE | C89: YAHIR ARCINIEGAS | D89: LUIS MANUEL GONZALEZ | E89: 2020000100287 | F89: Formación de Capital Humano de Alto Nivel Universidad del Norte 2do Corte Nacional | G89: CTEL | H89: 6920233499 | I89: CONTRATADO EN EJECUCIÓN | J89: 47238 | K89: 44753 | L89: 2485
A90: ENTIDAD APORTANTE RECURSOS | B90: UNIVERSIDAD DEL VALLE | C90: YAHIR ARCINIEGAS | D90: LUIS MANUEL GONZALEZ | E90: 2020000100345 | F90: Formación de capital humano de alto Nivel segundo Corte Universidad del Valle Nacional | G90: CTEL | H90: 5913070114 | I90: CONTRATADO EN EJECUCIÓN | J90: 47330 | K90: =+TODAY() -> 44753 | L90: =J90-K90 -> 2577
A91: ENTIDAD APORTANTE RECURSOS | B91: UNIVERSIDAD NACIONAL DE COLOMBIA | C91: YAHIR ARCINIEGAS | D91: LUIS MANUEL GONZALEZ | E91: 2021000100003 | F91: Formación de Capital Humano de Alto Nivel Universidad Nacional de Colombia Corte II Nacionl | G91: CTEL | H91: 18418143500 | I91: CONTRATADO EN EJECUCIÓN | J91: 47330 | K91: 44753 | L91: 2577
A92: ENTIDAD APORTANTE RECURSOS | B92: UNIVERSIDAD DE LA SABANA | C92: YAHIR ARCINIEGAS | D92: LUIS MANUEL GONZALEZ | E92: 2021000100004 | F92: Formación de Capital Humano de Alto Nivel Universidad de La Sabana Core 2 Nacional | G92: CTEL | H92: 1519950000 | I92: CONTRATADO EN EJECUCIÓN | J92: 47391 | K92: 44753 | L92: 2638
A93: ENTIDAD APORTANTE RECURSOS | B93: UNIVERSIDAD ANTONIO NARIÑO | C93: YAHIR ARCINIEGAS | D93: LUIS MANUEL GONZALEZ | E93: 2021000100014 | F93: Formación de Capital Humano de Alto Nivel Universidad Antonio Nariño Core 2 Nacional | G93: CTEL | H93: 4526652200 | I93: CONTRATADO EN EJECUCIÓN | J93: 47299 | K93: 44753 | L93: 2546
A94: ENTIDAD APORTANTE RECURSOS | B94: UNIVERSIDAD EAN | C94: YAHIR ARCINIEGAS | D94: LUIS MANUEL GONZALEZ | E94: 2021000100025 | F94: Formación DE CAPITAL HUMANO DE ALTO NIVEL UNIVERSIDAD EAN NACIONAL COHORTE II Nacional | G94: CTEL | H94: 2044506416 | I94: CONTRATADO EN EJECUCIÓN | J94: 45716 | K94: 44753 | L94: 963
A95: ENTIDAD APORTANTE RECURSOS | B95: UNIVERSIDAD MILITAR NUEVA GRANADA | C95: YAHIR ARCINIEGAS | D95: LUIS MANUEL GONZALEZ | E95: 2021000100026 | F95: Formación de Capital Humano de Alto Nivel Universidad Militar Nueva Granada Segundo Corte Nacional | G95: CTEL | H95: 751632481 | I95: CONTRATADO EN EJECUCIÓN | J95: 47087 | K95: 44753 | L95: 2334
A96: ENTIDAD APORTANTE RECURSOS | B96: PONIFICA UNIVERSIDAD JAVERIANA | C96: YAHIR ARCINIEGAS | D96: LUIS MANUEL GONZALEZ | E96: 2021000100027 | F96: Formación de Capital Humano de Alto Nivel Pontificia Universidad Javeriana Sede Bogotá Corte II Nacional | G96: CTEL | H96: 8577491761 | I96: CONTRATADO EN EJECUCIÓN | K96: 44753
A97: ENTIDAD APORTANTE RECURSOS | B97: UNIVERSIDAD DE CALDAS | C97: YAHIR ARCINIEGAS | D97: LUIS MANUEL GONZALEZ | E97: 2021000100028 | F97: Formación de capital humano de alto nivel Corte 2 Universidad de Caldas - Nacional | G97: CTEL | H97: 63580000000 | I97: CONTRATADO EN EJECUCIÓN | J97: 47361 | K97: 44753 | L97: 2608
A98: CUNDINAMARCA | B98: SECRETARIA DE EDUCACIÓN | C98: YAHIR ARCINIEGAS | D98: GENNY PADILLA | E98: 2021004250258 | F98: Fortalecimiento a la Estrategia de Alimentación Escolar para el año 2021 en los municipios del Departamento de Cundinamarca | G98: EDUCACIÓN | H98: 16289941201 | I98: CONTRATADO EN EJECUCIÓN | J98: 44561 | K98: 44753 | L98: -192
A99: CUNDINAMARCA | B99: SECRETARIA DE HABITAT Y VIVIENDA | C99: ALEXANDER RIVEROS/JEIMY FORERO | D99: BEATRIZ GAMEZ | E99: 2018000050050 | F99: Mejoramiento vivienda rural mediante construcción de cocinas habitaciones y pisos en los municipios de Cundinamarca | G99: AGRICULTURA | H99: 5616585397 | I99: SIN CONTRATAR | J99: No definido | K99: 44753
A100: CUNDINAMARCA | B100: SECRETARIA DE COMPETITIVIDAD | C100: ALEXANDER RIVEROS/JEIMY FORERO | D100: FABIAN CUESTA | E100: 2020000050035 | F100: Fortalecimiento de los sistemas productivos a través de la reactivación del sector agrícola en el Departamento de Cundinamarca | G100: AGRICULTURA | H100: 8993872201 | I100: SIN CONTRATAR | J100: No definido | K100: 44753
A101: CUNDINAMARCA | B101: MINAS Y ENERGIA | C101: DIEGO TORRES / LIYUGETH ALFONSO | D101: YAHIR | E101: 2021004250686 | F101: Construcción Del Centro De Formación E Innovación Minero Energético De Cundinamarca | G101: GOBIERNO TERRITORIAL | H101: $ 13.770.893.382,00 | I101: SIN CONTRATAR | J101: No definido | K101: 44753
A102: CUNDINAMARCA | B102: UNIDAD ADMINISTRATIVA DE GESTIÓN DEL RIESGO. | C102: DIEGO TORRES/VALENTINA PORTILLO | D102: GINNA HERRERA | E102: 2021004250690 | F102: Fortalecimiento del sistema automotor para la gestión del riesgo de desastres del departamento de Cundinamarca | G102: GOBIERNO TERRITORIAL | H102: 7299514100 | I102: SIN CONTRATAR | J102: No definido | K102: 44753
A103: CUNDINAMARCA | B103: SECRETARIA DE COMPETITIVIDAD | C103: ALEXANDER RIVEROS/JEIMY FORERO | D103: FABIAN CUESTA | E103: 2020000050038 | F103: Optimización de los sistemas Ganaderos bovinos de carne leche y doble propósito a partir de la implementación de mejoramiento genético productivo y entrega de maquinaria y equipos en municipios del Departamento de Cundinamarca | G103: AGRICULTURA | H103: 8732449919 | I103: SIN CONTRATAR | J103: No definido | K103: 44753

Sheet Riesgo de liberación (hidden)
A2: N° | B2: EJECUTOR (Dpto / Entidad) | C2: EJECUTOR INTERNO | D2: ENCARGADO DE LA ENTIDAD | E2: ENLACE EMTIDAD EJECUTORA | F2: BPIN | G2: PROYECTO | H2: SECTOR | I2: VALOR PROYECTO | J2: VALOR SGR | K2: OTRAS FUENTES | L2: FECHA DE APROBACIÓN OCAD | M2: ACUERDO DE APROBACIÓN | N2: ESTADO | O2: FECHA LIMITE | P2: DÍAS TRANSCURRIDOS DESDE EL ACUERDO DE APROBACIÓN | Q2: Columna1 | R2: DÍAS HABILES PARA REALIZAR ACTO DE APERTURA
A3: 164 | B3: ENTIDAD APORTANTE RECURSOS | C3: UNIVERSIDAD DE CUNDINAMARCA | D3: YAHIR ARCINIEGAS | E3: LUIS MANUEL GONZALEZ | F3: 2020000100158 | G3: FORTALECIMIENTO DE LA INFRAESTRUCTURA FÍSICA Y TECNOLÓGICA DEL CENTRO DE ESTUDIOS AGROAMBIENTALES DE LA UNIVERSIDAD DE CUNDINAMARCA AGROU CUNDINAMARCA | H3: CTEL | I3: 2024433669 | J3: 1997753509 | K3: =I3-J3 -> 26680160 | L3: 44111 | M3: 098 DE 2020 | N3: SIN CONTRATAR | O3: =IF(L3=0,"-",EDATE(L3,6)) -> 44293 | P3: =IF(L3=0,"-",_xlfn.DAYS(TODAY(),L3)) -> 642 | Q3: =IF(O3="-","-",_xlfn.DAYS(TODAY(),O3)) -> 460 | R3: =-Tabla25[[#This Row],[Columna1]] -> -460
A4: 203 | B4: CUNDINAMARCA | C4: SECRETARIA DE HABITAT Y VIVIENDA | D4: ALEXANDER RIVEROS/JEIMY FORERO | E4: BEATRIZ GAMEZ | F4: 2018000050050 | G4: Mejoramiento vivienda rural mediante construcción de cocinas habitaciones y pisos en los municipios de Cundinamarca | H4: AGRICULTURA | I4: 5616585397 | J4: 5616585397 | K4: =I4-J4 -> 0 | L4: 44525 | M4: 03 DE 2021 | N4: SIN CONTRATAR | O4: =IF(L4=0,"-",EDATE(L4,6)) -> 44706 | P4: =IF(L4=0,"-",_xlfn.DAYS(TODAY(),L4)) -> 228 | Q4: =IF(O4="-","-",_xlfn.DAYS(TODAY(),O4)) -> 47 | R4: =-Tabla25[[#This Row],[Columna1]] -> -47
A5: 204 | B5: CUNDINAMARCA | C5: SECRETARIA DE COMPETITIVIDAD | D5: ALEXANDER RIVEROS/JEIMY FORERO | E5: FABIAN CUESTA | F5: 2020000050035 | G5: Fortalecimiento de los sistemas productivos a través de la reactivación del sector agrícola en el Departamento de Cundinamarca | H5: AGRICULTURA | I5: 8993872201 | J5: 8993872201 | K5: 0 | L5: 44529 | M5: 454 DE 2021 | N5: SIN CONTRATAR | O5: =IF(L5=0,"-",EDATE(L5,6)) -> 44710 | P5: =IF(L5=0,"-",_xlfn.DAYS(TODAY(),L5)) -> 224 | Q5: =IF(O5="-","-",_xlfn.DAYS(TODAY(),O5)) -> 43 | R5: =-Tabla25[[#This Row],[Columna1]] -> -43
A6: 205 | B6: CUNDINAMARCA | C6: MINAS Y ENERGIA | D6: DIEGO TORRES / LIYUGETH ALFONSO | E6: YAHIR | F6: 2021004250686 | G6: Construcción Del Centro De Formación E Innovación Minero Energético De Cundinamarca | H6: GOBIERNO TERRITORIAL | I6: $ 13.770.893.382,00 | J6: $ 6.928.967.103,00 | K6: =I6-J6 -> 6841926279 | L6: 31/12/2021 | M6: 546 DE 2021 | N6: SIN CONTRATAR | O6: =IF(L6=0,"-",EDATE(L6,6)) -> 44742 | P6: =IF(L6=0,"-",_xlfn.DAYS(TODAY(),L6)) -> 192 | Q6: =IF(O6="-","-",_xlfn.DAYS(TODAY(),O6)) -> 11 | R6: =-Tabla25[[#Totals],[Columna1]] -> -11
A7: 207 | B7: CUNDINAMARCA | C7: SECRETARIA DE COMPETITIVIDAD | D7: ALEXANDER RIVEROS/JEIMY FORERO | E7: FABIAN CUESTA | F7: 2020000050038 | G7: Optimización de los sistemas Ganaderos bovinos de carne leche y doble propósito a partir de la implementación de mejoramiento genético productivo y entrega de maquinaria y equipos en municipios del Departamento de Cundinamarca | H7: AGRICULTURA | I7: 8732449919 | J7: 8732449919 | K7: 0 | L7: 44561 | M7: 547 DE 2021 | N7: SIN CONTRATAR | O7: 44742 | P7: =IF(L7=0,"-",_xlfn.DAYS(TODAY(),L7)) -> 192 | Q7: =IF(O7="-","-",_xlfn.DAYS(TODAY(),O7)) -> 11 | R7: =-Q7 -> -11
A8: 208 | B8: CUNDINAMARCA | D8: YAHIR ARCINIEGAS | E8: LUIS MANUEL GONZALEZ | F8: 21000100327 | G8: Desarrollo de un sistema de producción lechero para la obtención de leches inocuas de alta calidad y con un perfil lipídico saludable en el Departamento de Cundinamarca | H8: CTEL | I8: 3833042862 | J8: 3044082702 | K8: 788960160 | L8: 44617 | M8: 15 DE 2022 | N8: SIN CONTRATAR | O8: 44798 | P8: 136 | Q8: -45 | R8: =-Q8 -> 45
A9: 209 | B9: CUNDINAMARCA | C9: SECRETARIA DE CIENCIA, TECNOLOGIA E INNOVACIÓN | D9: YAHIR ARCINIEGAS | E9: LUIS MANUEL GONZALEZ | F9: 2021000100208 | G9: Fortalecimiento de los niveles de Apropiación social del Conocimiento de la CTeI en comunidades de las provincias de Almeidas y Ubaté del Departamento de Cundinamarca | H9: CTEL | I9: 2191964751 | J9: 1839764876 | K9: 352199875 | L9: 44615 | M9: 15 DE 2021 | N9: SIN CONTRATAR | O9: 44796 | P9: 138 | Q9: -43 | R9: =-Q9 -> 43
A10: 210 | B10: CUNDINAMARCA | C10: SECRETARIA DE CIENCIA, TECNOLOGIA E INNOVACIÓN | D10: YAHIR ARCINIEGAS | E10: LUIS MANUEL GONZALEZ | F10: 2021000100243 | G10: Desarrollo participativo de una plataforma tecnológica de teledetección para la gestión sostenible de suelos en agroecosistemas del Departamento de Cundinamarca | H10: CTEL | I10: 3042693625 | J10: 2332094728 | K10: 710598897 | L10: 44617 | M10: 15 DE 2021 | N10: SIN CONTRATAR | O10: 44798 | P10: 136 | Q10: -45 | R10: =-Q10 -> 45
A11: 211 | B11: CUNDINAMARCA | C11: SECRETARIA DE MINAS, ENERGIA Y GAS | D11: DIEGO TORRES / LIYUGETH ALFONSO | E11: YAHIR | F11: 2021000050019 | G11: Ampliación DE LA COBERTURA DEL SERVICIO DE GAS COMBUTIBLE POR REDES A TRAVES DE LA FINANCIACIÓN DEL CARGO POR CONEXIÓN Y LA RED INTERNA PARA USUARIOS DE BARRIOS PERIFÉRICOS VEREDAS Y CENTROS POBLADOS DE LOS MUNICIPIOS DE Cundinamarca | H11: MINAS Y ENERGÍA | I11: 10613927436 | J11: 6.059.727.436,00 | K11: =I11-J11 ->  | N11: SIN CONTRATAR | O11: =IF(L11=0,"-",EDATE(L11,6)) -> - | P11: =IF(L11=0,"-",_xlfn.DAYS(TODAY(),L11)) -> - | Q11: =IF(O11="-","-",_xlfn.DAYS(TODAY(),O11)) -> - | R11: =-Q11 -> 
A12: 212 | B12: CUNDINAMARCA | C12: SECRETARIA DE EDUCACIÓN | D12: YAHIR ARCINIEGAS | E12: GENNY PADILLA | F12: 2022000050007 | G12: Fortalecimiento a la Estrategia de Alimentación Escolar en los municipios no certificados del Departamento de Cundinamarca para la vigencia 2022 Cundinamarca | H12: EDUCACIÓN | I12: 42.966.037.310,00 | J12: 42.966.037.310,00 | K12: 0 | L12: 2021-08-24 | M12: 248 DE 2021 | N12: SIN CONTRATAR | O12: 44616 | P12: 321 | Q12: 137 | R12: -137
A13: 213 | B13: CUNDINAMARCA | C13: SECRETARIA DE CIENCIA, TECNOLOGIA E INNOVACIÓN | D13: YAHIR ARCINIEGAS | E13: LUIS MANUEL GONZALEZ | F13: 2021000100467 | G13: Fortalecimiento de las capacidades institucionales para el desarrollo y gestión del Ecosistema Territorial de CTeI en todas las provincias del Departamento de Cundinamarca | H13: CTEL | I13: 2801037429 | J13: 2299692877 | K13: =I13-J13 -> 501344552 | L13: 2022-04-13 | M13: 18 DE 2022 | N13: SIN CONTRATAR | O13: 44847 | P13: 89 | Q13: -94 | R13: 94
A14: 214 | B14: CUNDINAMARCA | C14: SECRETARIA DE CIENCIA, TECNOLOGIA E INNOVACIÓN | D14: YAHIR ARCINIEGAS | E14: LUIS MANUEL GONZALEZ | F14: 2021000100276 | G14: Desarrollo DE UN MODELO DE PROMOCIÓN TURÍSTICA SOSTENIBLE DESDE LA TECNOLOGÍA 4.0 EN LOS MUNICIPIOS DE LA PALMA Y YACOPI EN EL DEPARTAMENTO DE Cundinamarca | H14: CTEL | I14: 2608055295 | J14: 2401327735 | K14: 206727560 | L14: 2022-03-17 | M14: 16 DE 2022 | N14: SIN CONTRATAR | O14: 44821 | P14: 116 | Q14: -68 | R14: 68
A15: 215 | B15: CUNDINAMARCA | C15: SECRETARIA DE CIENCIA, TECNOLOGIA E INNOVACIÓN | D15: YAHIR ARCINIEGAS | E15: LUIS MANUEL GONZALEZ | F15: 2021000100523 | G15: Desarrollo de Microredes y almacenamiento (ESS) prestadores de servicios complementarios para incrementar la cobertura eficiencia y confiabilidad del servicio en el departamento de Cundinamarca | H15: CTEL | I15: 3942973233 | J15: 3296088001 | K15: 646885232 | L15: 2022-05-04 | M15: 20 DE 2022 | N15: SIN CONTRATAR | O15: 44869 | P15: 68 | Q15: -116 | R15: 116
I17: =SUM(I3:I10) -> 3.443504242e+10 | J17: =SUM(J3:J10) -> 3.255660333e+10

Sheet Control de avances (hidden)
A1: SISTEMAS GENERAL DEL REGALÍAS-BASE DE PROYECTOS APROBADOS | S1: AVANCE FÍSICO Y FINANCIERO | V1: ESTADO
S2: presento avance en el mes vigente | V2: presento avance en el mes vigente | AA2: ESTADO
S3: lleva 1 mes sin reportar avance | V3: lleva 3 mes sin reportar avance | AA3: 44607 | AB3: 44607 | AC3: =IF(AA3=0,0,_xlfn.DAYS(AA3,TODAY())) -> -146 | AD3: =IF(AB3=0,0,_xlfn.DAYS(AB3,TODAY())) -> -146 | AE3: =IF(Z3=0,0,_xlfn.DAYS(Z3,TODAY())) -> 0
S4: lleva 3 mes sin reportar avance | V4: lleva 6 mes sin reportar avance | AA4: 44607 | AB4: 44607 | AC4: =IF(AA4=0,0,_xlfn.DAYS(AA4,TODAY())) -> -146 | AD4: =IF(AB4=0,0,_xlfn.DAYS(AB4,TODAY())) -> -146 | AE4: =IF(Z4=0,0,_xlfn.DAYS(Z4,TODAY())) -> 0
S5: lleva 4 mes sin reportar avance | V5: lleva 9 mes sin reportar avance | AA5: 44607 | AB5: 44607 | AC5: =IF(AA5=0,0,_xlfn.DAYS(AA5,TODAY())) -> -146 | AD5: -146 | AE5: =IF(Z5=0,0,_xlfn.DAYS(Z5,TODAY())) -> 0
S6: lleva 6 mes sin reportar avance | V6: lleva 1 año sin reportar avance | AA6: 44607 | AB6: 44607 | AC6: =IF(AA6=0,0,_xlfn.DAYS(AA6,TODAY())) -> -146 | AD6: -146 | AE6: 0
AA7: 44607 | AB7: 44607 | AC7: -146 | AD7: -146 | AE7: 0
A8: SISTEMAS GENERAL DEL REGALÍAS-BASE DE PROYECTOS APROBADOS | AA8: 44607 | AB8: 44607 | AC8: -146 | AD8: -146 | AE8: 0
A9: N° | B9: EJECUTOR (Dpto / Entidad) | C9: EJECUTOR INTERNO | D9: BPIN | E9: PROYECTO | F9: SECTOR | G9: VALOR PROYECTO | H9: OTRAS FUENTES | I9: FECHA DE APROBACIÓN OCAD | J9: AÑO DE APROBACIÓN | K9: ACUERDO DE APROBACIÓN | L9: ESTADO | AA9: 44607 | AB9: 44607 | AC9: -146 | AD9: -146 | AE9: 0
A10: 1 | B10: CUNDINAMARCA | C10: SECRETARIA DE AMBIENTE | D10: 2012000050005 | E10: ESTUDIOS Y DISEÑOS DE DETALLE EMBALSE CALANDAIMA MUNICIPIO DE EL COLEGIO DEPARTAMENTO DE CUNDINAMARCA | F10: AMBIENTE Y DESARROLLO SOSTENIBLE | G10: 4000000000 | H10: =F10-G10 ->  | I10: 41271 | J10: 2012 | K10: 004 DE 2012 | L10: CERRADO | AA10: 44607 | AB10: 44607 | AC10: -146 | AD10: -146 | AE10: 0
A11: 2 | B11: CUNDINAMARCA | C11: ICCU - GESPROY GB | D11: 2012000050006 | E11: CONSTRUCCIÓN CUBIERTA COLISEO DEL CENTRO AGROTECNOLOGICO DE EXPOSICIONES Y COMERCIALIZACION DE LA REGION DEL SUMAPAZ EN EL MUNICIPIO DE FUSAGASUGA - CUNDINAMARCA | F11: AGRICULTURA | G11: 6352617736 | I11: 41271 | J11: 2012 | K11: 004 DE 2012 | L11: CERRADO | AA11: 44607 | AB11: 44607 | AC11: -146 | AD11: -146 | AE11: 0
A12: 3 | B12: CUNDINAMARCA | C12: SECRETARIA DE AGRICULTURA | D12: 2012000050007 | E12: FORTALECIMIENTO DE LAS CADENAS HORTIFRUTICOLA Y AROMATICAS EN CUNDINAMARCA | F12: AGRICULTURA | G12: 2490400000 | I12: 41271 | J12: 2012 | K12: 004 DE 2012 | L12: CERRADO | AA12: 44607 | AB12: 44607 | AC12: -146 | AD12: -146 | AE12: 0
A13: 4 | B13: CUNDINAMARCA | C13: SECRETARIA DE AGRICULTURA | D13: 2012000050009 | E13: FORTALECIMIENTO DE LA PRODUCTIVIDAD Y COMPETITIVIDAD DEL SECTOR CACAOTERO EN EL DEPARTAMENTO DE CUNDINAMARCA | F13: AGRICULTURA | G13: 2334689275 | I13: 41271 | J13: 2012 | K13: 004 DE 2012 | L13: CERRADO | AA13: 44607 | AB13: 44607 | AC13: -146 | AD13: -146 | AE13: 0
A14: 5 | B14: CUNDINAMARCA | C14: SECRETARIA GENERAL | D14: 2012000050010 | E14: ESTUDIOS Y DISEÑOS PARA LA RECUPERACIÓN Y ADECUACION DEL PATRIMONIO HISTORICO CULTURAL PALACIO DE SAN FRANCISCO EN BOGOTA D.C. DEPARTAMENTO DE CUNDINAMARCA | F14: CULTURA | G14: 1000000000 | I14: 41271 | J14: 2012 | K14: 004 DE 2012 | L14: TERMINADO | AA14: 44607 | AB14: 44607 | AC14: -146 | AD14: -146 | AE14: 0
A15: 6 | B15: CUNDINAMARCA | C15: SECRETARIA DE EDUCACIÓN | D15: 2012000050011 | E15: FORTALECIMIENTO DE LA PERMANENCIA DE LOS ESTUDIANTES EN LOS MUNICIPIOS DEL DEPARTAMENTO DE CUNDINAMARCA DEPARTAMENTO DE CUNDINAMARCA | F15: EDUCACIÓN | G15: 6000000000 | I15: 41187 | J15: 2012 | K15: 003 DE 2012 | L15: CERRADO | AA15: 44607 | AB15: 44607 | AC15: -146 | AD15: -146 | AE15: 0
A16: 7 | B16: CUNDINAMARCA | C16: SECRETARIA DE DESARROLLO E INCLUSIÓN SOCIAL | D16: 2012000050012 | E16: IMPLEMENTACIÓN DEL PROGRAMA DE COMPLEMENTACION ALIMENTARIA Y NUTRICIONAL EN MENORES DE 5 AÑOS, MUJERES GESTANTES Y LACTANTES EN TODO EL DEPARTAMENTO DE CUNDINAMARCA | F16: SALUD Y PROTECCIÓN SOCIAL | G16: 4531022720 | I16: 41187 | J16: 2012 | K16: 003 DE 2012 | L16: CERRADO | AA16: 44607 | AB16: 44607 | AC16: -146 | AD16: -146 | AE16: 0
A17: 8 | B17: CUNDINAMARCA | C17: SECRETARIA DE TRANSPORTE Y MOVILIDAD | D17: 2012000050013 | E17: ACTUALIZACION Y FORMULACION DE LOS ESTUDIOS Y DISEÑOS FASE II Y III DE LA EXTENCION NORTE - QUITO - SUR DEL SISTEMA TRANSMILENIO AL MUNICIPIO DE SOACHA DEPARTAMENTO DE CUNDINAMARCA | F17: SALUD Y PROTECCIÓN SOCIAL | G17: 4026917304 | I17: 41187 | J17: 2012 | K17: 003 DE 2012 | L17: CERRADO | AA17: 44607 | AB17: 44607 | AC17: -146 | AD17: -146 | AE17: 0
A18: 9 | B18: CUNDINAMARCA | C18: SECRETARIA DE AGRICULTURA | D18: 2012000050014 | E18: MEJORAMIENTO DE LA COMPETITIVIDAD Y SOSTENIBILIDAD DEL SUB SECTOR PANELERO DE CUNDINAMARCA | F18: AGRICULTURA | G18: 1559272190 | I18: 41271 | J18: 2012 | K18: 004 DE 2012 | L18: CERRADO | AA18: 44607 | AB18: 44607 | AC18: -146 | AD18: -146 | AE18: 0
A19: 10 | B19: CUNDINAMARCA | C19: SECRETARIA DE AGRICULTURA | D19: 2012000050023 | E19: FORTALECIMIENTO DE LA ACTIVIDAD CAFETERA COMO ALTERNATIVA SOSTENIBLE DE DESARROLLO REGIONAL EN EL DEPARTAMENTO DE CUNDINAMARCA | F19: AGRICULTURA | G19: 77168795512 | I19: 41271 | J19: 2012 | K19: 004 DE 2012 | L19: CERRADO | AA19: 44607 | AB19: 44607 | AC19: -146 | AD19: -146 | AE19: 0
A20: 11 | B20: CUNDINAMARCA | C20: SECRETARIA DE AGRICULTURA | D20: 2012000050024 | E20: IMPLEMENTACION DE UN MODELO DE PRODUCCION EN SISTEMAS DE DOBLE PROPOSITO EN PEQUEÑOS PRODUCTORES DEL DEPARTAMENTO DE CUNDINAMARCA | F20: AGRICULTURA | G20: 3371686373 | I20: 41271 | J20: 2012 | K20: 004 DE 2012 | L20: CERRADO | AA20: 44607 | AB20: 44607 | AC20: -146 | AD20: -146 | AE20: 0
A21: 12 | B21: CUNDINAMARCA | C21: SECRETARIA DE GOBIERNO | D21: 2012000050025 | E21: ESTUDIOS Y DISEÑOS PARA LA CONSTRUCCIÓN DE UN CENTRO ESPECIALIZADO AL SERVICIO DE ADOLESCENTES INFRACTORES DE LA LEY EN EL DEPARTAMENTO DE CUNDINAMARCA | F21: DEFENSA | G21: 200000000 | I21: 41271 | J21: 2012 | K21: 004 DE 2012 | L21: CERRADO | AA21: 44607 | AB21: 44607 | AC21: -146 | AD21: -146 | AE21: 0
A22: 13 | B22: ENTIDAD APORTANTE RECURSOS | C22: MUNICIPIO DE COGUA | D22: 2012000050026 | E22: MEJORAMIENTO DE LA VA COGUA-SAN CAYETANO (SECTOR LAS MARGARITAS K8+300 SECTOR LAS MARGARITAS HASTA K10+300) CON K0+00 EN COGUA DEPARTAMENTO DE CUNDINAMARCA | F22: TRANSPORTE | G22: 2000000000 | I22: 41271 | J22: 2012 | K22: 005 DE 2012 | L22: CERRADO | AA22: 44607 | AB22: 44607 | AC22: -146 | AD22: -146 | AE22: 0
A23: 14 | B23: ENTIDAD APORTANTE RECURSOS | C23: ICCU - GESPROY GB | D23: 2012000050027 | E23: MEJORAMIENTO DE LA VA UBALA-PALOMAS-MAMBITA (K0+00 UBICADO EN EL SITIO PROFESIONALES MUNICIPIO DE UBALA), DEPARTAMENTO DE CUNDINAMARCA | F23: TRANSPORTE | G23: 3359160462 | I23: 41271 | J23: 2012 | K23: 04 DE 2012 | L23: CERRADO | AA23: 44607 | AB23: 44607 | AC23: -146 | AD23: -146 | AE23: 0
A24: 15 | B24: ENTIDAD APORTANTE RECURSOS | C24: ICCU - GESPROY GB | D24: 2012000050028 | E24: MEJORAMIENTO Y MANTENIMIENTO DE LA RED VIAL SECUNDARIA Y TERCIARIA MEDIANTE LA DOTACIÓN DE MAQUINARIA A LOS MUNICIPIOS DEL DEPARTAMENTO DE CUNDINAMARCA | F24: TRANSPORTE | G24: 19769772343 | I24: 41271 | J24: 2012 | K24: 004 DE 2012 | L24: CERRADO | AA24: 44607 | AB24: 44607 | AC24: -146 | AD24: -146 | AE24: 0
A25: 16 | B25: ENTIDAD APORTANTE RECURSOS | C25: SECRETARIA DE MINAS, ENERGIA Y GAS | D25: 2012000050029 | E25: IMPLEMENTACIÓN Y MASIFICACION DEL SERVICIO DE GAS COMBUSTIBLE POR REDES PARA MUNICIPIOS DE ANOLAIMA, CACHIPAY, CHOACHI, FOMEQUE, UBAQUE Y VIOTA CUNDINAMARCA | F25: MINAS Y ENERGÍA | G25: 15253036000 | I25: 41271 | J25: 2012 | K25: 004 DE 2012 | L25: CERRADO | AA25: 44607 | AB25: 44740 | AC25: -146 | AD25: -13 | AE25: 0
A26: 17 | B26: CUNDINAMARCA | C26: SECRETARIA DE COMPETITIVIDAD | D26: 2012000050030 | E26: DESARROLLO CREACION Y FORTALECIMIENTO DE NUEVE (9) CENTROS DE EMPREDIMIENTO Y FORTALECIMIENTO EMPRESARIAL EN EL DEPARTAMENTO DE CUNDINAMARCA | F26: COMERCIO, INDUSTRIA Y TURISMO | G26: 1752501814 | I26: 41271 | J26: 2012 | K26: 004 DE 2012 | L26: PARA CIERRE | AA26: 44607 | AB26: 44607 | AC26: -146 | AD26: -146 | AE26: 0
A27: 18 | B27: ENTIDAD APORTANTE RECURSOS | C27: MUNICIPIO DE MOSQUERA | D27: 2012000050039 | E27: MEJORAMIENTO DE LA VIA CALLE 23 ENTRE CRA 3 Y 9B EN MOSQUERA CLL 7 ENTRE CRA 13 Y 24 EN FUNZA DEPARTAMENTO DE CUNDINAMARCA | F27: TRANSPORTE | G27: 2816415712 | I27: 41271 | J27: 2012 | K27: 004 DE 2012 | L27: CERRADO | AA27: 44607 | AB27: 44607 | AC27: -146 | AD27: -146 | AE27: 0
A28: 19 | B28: ENTIDAD APORTANTE RECURSOS | C28: MUNICIPIO DE SOACHA | D28: 2012000050044 | E28: REHABILITACIÓN Y MEJORAMIENTO DE LA VIA PARALELA ( TRANSVERSAL 8 Y CARRERA 7) ENTRE CARRERA 13 CON AUTOPISTA SUR BARRIO LA DESPENSA, HASTA LA CALLE 27 DEL CENTRO DEL MUNICIPIO DE SOACHA CUNDINAMARCA (TRAMO N 1 - K0+000 HASTA K0+262) | F28: TRANSPORTE | G28: 1000000000 | I28: 41271 | J28: 2012 | K28: 004 DE 2012 | L28: CERRADO | AA28: 44607 | AB28: 44607 | AC28: -146 | AD28: -146 | AE28: 0
A29: 20 | B29: CUNDINAMARCA | C29: ICCU - GESPROY GB | D29: 2012000050051 | E29: MEJORAMIENTO DEL PUENTE GUATIMBOL SOBRE EL RIO SUMAPAZ EN LA VA VENECIA - ICONONZO DEPARTAMENTO DE CUNDINAMARCA | F29: TRANSPORTE | G29: 827195639 | I29: 41271 | J29: 2012 | K29: 004 DE 2012 | L29: CERRADO | Z29: 44669 | AA29: 44635 | AB29: 44706 | AC29: -118 | AD29: -47 | AE29: -84
A30: 21 | B30: CUNDINAMARCA | C30: ICCU - GESPROY GB | D30: 2012000050052 | E30: FORMULACIÓN Y ACTUALIZACION DE LOS ESTUDIOS Y DISEÑOS DE LA VIA UBAQUE - LOS CEREZOS - CHIPAQUE DEPARTAMENTO DE CUNDINAMARCA | F30: TRANSPORTE | G30: 257457261 | I30: 41271 | J30: 2012 | K30: 004 DE 2012 | L30: CERRADO | AA30: 44607 | AB30: 44607 | AC30: -146 | AD30: -146 | AE30: 0
A31: 22 | B31: CUNDINAMARCA | C31: ICCU - GESPROY GB | D31: 2012000050054 | E31: FORMULACIÓN Y ACTUALIZACION DE LOS ESTUDIOS Y DISEÑOS PARA EL MEJORAMIENTO DE LA TRONCAL DEL CARBON EN LONGITUD DE 43 KMS (K0+00 LOCALIZADO EN TIERRA NEGRA) DEPARTAMENTO DE CUNDINAMARCA | F31: TRANSPORTE | G31: 777429075 | I31: 41271 | J31: 2012 | K31: 004 DE 2012 | L31: CERRADO | AA31: 44607 | AB31: 44607 | AC31: -146 | AD31: -146 | AE31: 0
A32: 23 | B32: CUNDINAMARCA | C32: SECRETARIA DE CIENCIA, TECNOLOGIA E INNOVACIÓN | D32: 2012000100010 | E32: FORTALECIMIENTO DE LAS REGIONES COLOMBIANAS EN SUS CAPACIDADES DE CTI - CUNDINAMARCA | F32: CTEL | G32: 8721806744 | I32: 41263 | J32: 2012 | K32: 001 DE 2012 | L32: CONTRATADO EN EJECUCIÓN | AA32: 44607 | AB32: 44607 | AC32: -146 | AD32: -146 | AE32: 0
A33: 24 | B33: CUNDINAMARCA | C33: SECRETARIA DE CIENCIA, TECNOLOGIA E INNOVACIÓN | D33: 2012000100056 | E33: INVESTIGACIÓN ESTRATEGIAS DE VALORACION Y APROPIACION DE LOS RECURSOS NATURALES MECANISMOS DE ADAPTACION A CAMBIO CLIMATICO. REGION DEL BAJO MAGDALENA | F33: CTEL | G33: 7184175232 | I33: 41263 | J33: 2012 | K33: 001 DE 2012 | L33: CERRADO | AA33: 44607 | AB33: 44607 | AC33: -146 | AD33: -146 | AE33: 0
A34: 25 | B34: CUNDINAMARCA | C34: SECRETARIA DE CIENCIA, TECNOLOGIA E INNOVACIÓN | D34: 2012000100063 | E34: FORTALECIMIENTO DE LAS CAPACIDADES DE INNOVACIÓN SOCIAL POR MEDIO DEL PARQUE CIENTIFICO EN BOGOTA - CUNDINAMARCA | F34: CTEL | G34: 16942704000 | I34: 41263 | J34: 2012 | K34: 001 DE 2012 | L34: CERRADO | AA34: 44607 | AB34: 44607 | AC34: -146 | AD34: -146 | AE34: 0
A35: 26 | B35: CAR | C35: SECRETARIA DE CIENCIA, TECNOLOGIA E INNOVACIÓN | D35: 2012000100118 | E35: FORMACION EN CIENCIA, TECNOLOGIA E INNOVACION EN LA COMUNIDAD EDUCATIVA DE LAS INSTITUCIONES EDUCATIVAS OFICIALES DE LOS MUNICIPIOS NO CERTIFICADOS DEL DEPARTAMENTO | F35: CTEL | G35: 22788739251 | I35: 41295 | J35: 2013 | K35: 001 DE 2012 | L35: CERRADO | AA35: 44607 | AB35: 44607 | AC35: -146 | AD35: -146 | AE35: 0
A36: 27 | B36: CUNDINAMARCA | C36: SECRETARIA DE CIENCIA, TECNOLOGIA E INNOVACIÓN | D36: 2012000100144 | E36: INVESTIGACIÓN INVESTIGACION, DESARROLLO Y TRANSFERENCIA TECNOLOGICA EN EL SECTOR AGROPECUARIO Y AGROINDUSTRIAL CON EL FIN DE MEJORAR L TODO EL DEPARTAMENTO, CUNDINAMARCA, CENTRO ORIENTE | F36: CTEL | G36: 50514736439 | I36: 41263 | J36: 2012 | K36: 001 DE 2012 | L36: CONTRATADO EN EJECUCIÓN | AA36: 44607 | AB36: 44607 | AC36: -146 | AD36: -146 | AE36: 0
A37: 28 | B37: CUNDINAMARCA | C37: SECRETARIA DE CIENCIA, TECNOLOGIA E INNOVACIÓN | D37: 2012000100156 | E37: CONSTRUCCIÓN DEL ECOSISTEMA DE INNOVACION TIC PARA EL DEPTO DE CUNDINAMARCA | F37: CTEL | G37: 7088000000 | I37: 41263 | J37: 2012 | K37: 001 DE 2012 | L37: CERRADO | AA37: 44607 | AB37: 44607 | AC37: -146 | AD37: -146 | AE37: 0
A38: 29 | B38: ENTIDAD APORTANTE RECURSOS | C38: ICCU - GESPROY GB | D38: 2013000050003 | E38: ESTUDIOS Y DISEÑOS PARA EL MEJORAMIENTO DE LA VA VILLAPINZON-TURMEQUE EN LONGITUD DE 11 KMS (K0+00 LOCALIZADO EN VILLAPINZON DEPARTAMENTO DE CUNDINAMARCA | F38: TRANSPORTE | G38: 245000000 | I38: 41400 | J38: 2013 | K38: 006 DE 2013 | L38: CERRADO | AA38: 44607 | AB38: 44607 | AC38: -146 | AD38: -146 | AE38: 0
A39: 30 | B39: ENTIDAD APORTANTE RECURSOS | C39: ICCU - GESPROY GB | D39: 2013000050004 | E39: ESTUDIOS Y DISEÑOS PARA EL MEJORAMIENTO DE LA VA YACOPI - LA VICTORIA CON K0+00 EN YACOPI DEPARTAMENTO DE CUNDINAMARCA | F39: TRANSPORTE | G39: 250000000 | I39: 41400 | J39: 2013 | K39: 006 DE 2013 | L39: CERRADO | AA39: 44607 | AB39: 44607 | AC39: -146 | AD39: -146 | AE39: 0
A40: 31 | B40: CUNDINAMARCA | C40: SECRETARIA DE DESARROLLO E INCLUSIÓN SOCIAL | D40: 2013000050005 | E40: IMPLEMENTACIÓN DEL PROGRAMA DE COMPLEMENTACION ALIMENTARIA Y NUTRICIONAL PARA MENORES DE CINCO AÑOS Y MUJERES GESTANTES Y LACTANTES EN TODO EL DEPARTAMENTO DE CUNDINAMARCA | F40: EDUCACIÓN | G40: 6189832118 | I40: 41400 | J40: 2013 | K40: 006 DE 2013 | L40: CERRADO | AA40: 44607 | AB40: 44607 | AC40: -146 | AD40: -146 | AE40: 0
A41: 32 | B41: CUNDINAMARCA | C41: SECRETARIA DE EDUCACIÓN | D41: 2013000050011 | E41: FORTALECIMIENTO DE LA PERMANENCIA DE LOS ESTUDIANTES EN LOS MUNICIPIOS DEL DEPARTAMENTO DE CUNDINAMARCA 2013-2014 CUNDINAMARCA, CENTRO ORIENTE | F41: EDUCACIÓN | G41: 13360387595 | I41: 41400 | J41: 2013 | K41: 006 DE 2013 | L41: CERRADO | AA41: 44607 | AB41: 44607 | AC41: -146 | AD41: -146 | AE41: 0
A42: 33 | B42: CUNDINAMARCA | C42: SECRETARIA DE MINAS, ENERGIA Y GAS | D42: 2013000050026 | E42: CONSTRUCCIÓN REDES ELECTRICAS EN LA ZONA RURAL DE LOS MUNICIPIOS DE PARATEBUENO Y GUTIERREZ EN EL DEPARTAMENTO DE CUNDINAMARCA | F42: MINAS Y ENERGÍA | G42: 1068319227 | I42: 41502 | J42: 2013 | K42: 007 DE 2013 | L42: TERMINADO | AA42: 44607 | AB42: 44607 | AC42: -146 | AD42: -146 | AE42: 0
A43: 34 | B43: U CATOLICA | C43: SECRETARIA DE AGRICULTURA | D43: 2013000050027 | E43: FORTALECIMIENTO DE LA ACTIVIDAD CAFETERA COMO ESTRATEGIA DE MEJORAMIENTO DE LA PRODUCTIVIDAD Y LA COMPETITIVIDAD EN EL DEPARTAMENTO DE CUNDINAMARCA, CENTRO ORIENTE | F43: AGRICULTURA | G43: 18756930869 | I43: 41502 | J43: 2013 | K43: 025 DE 2014 | L43: CERRADO | AA43: 44607 | AB43: 44607 | AC43: -146 | AD43: -146 | AE43: 0
A44: 35 | B44: UNIVERSIDAD MILITAR NUEVA GRANADA | C44: SECRETARIA DE AGRICULTURA | D44: 2013000050028 | E44: FORTALECIMIENTO DEL SUBSECTOR PANELERO EN EL DEPARTAMENTO DE CUNDINAMARCA | F44: AGRICULTURA | G44: 3427279826 | I44: 41502 | J44: 2013 | K44: 007 DE 2013 | L44: CERRADO | AA44: 44607 | AB44: 44607 | AC44: -146 | AD44: -146 | AE44: 0
A45: 36 | B45: ENTIDAD APORTANTE RECURSOS | C45: ICCU - GESPROY GB | D45: 2013000050043 | E45: MEJORAMIENTO Y REHABILITACION DE LA VIA GUACHETA - CAPELLANIA (SECTOR K0+780 AL K2+240) K0+000 LOCALIZADO EN EL RIO UBATE GUACHET, CUNDINAMARCA, CENTRO ORIENTE | F45: TRANSPORTE | G45: 1019047619 | I45: 41639 | J45: 2013 | K45: 015 DE 2013 | L45: CERRADO | AA45: 44607 | AB45: 44607 | AC45: -146 | AD45: -146 | AE45: 0
A46: 37 | B46: ENTIDAD APORTANTE RECURSOS | C46: BANCO AGRARIO DE COLOMBIA | D46: 2013000050044 | E46: CONSTRUCCIÓN CUNDINAMARCA VISR 2013 TODO EL DEPARTAMENTO, CUNDINAMARCA, CENTRO ORIENTE | F46: AGRICULTURA | G46: 60041780218 | I46: 41569 | J46: 2013 | K46: 005 DE 2015 | L46: CONTRATADO EN EJECUCIÓN | AA46: 44607 | AB46: 44607 | AC46: -146 | AD46: -146 | AE46: 0
A47: 38 | B47: ENTIDAD APORTANTE RECURSOS | C47: ICCU - GESPROY GB | D47: 2013000050045 | E47: MEJORAMIENTO Y PAVIMENTACIÓN DE LA VIA FOSCA - GUTIERREZ, DESDE EL KM 2+000 AL KM 3+000 (K0+000 LOCALIZADO EN FOSCA), DEPARTAMENTO DE CUNDINAMARCA | F47: TRANSPORTE | G47: 2534999997 | I47: 41579 | J47: 2013 | K47: 012 DE 2013 | L47: CERRADO | AA47: 44607 | AB47: 44607 | AC47: -146 | AD47: -146 | AE47: 0
A48: 39 | B48: CUNDINAMARCA | C48: SECRETARIA DE MINAS, ENERGIA Y GAS | D48: 2013000050046 | E48: IMPLEMENTACIÓN Y MASIFICACION DEL SERVICIO DE GAS COMBUSTIBLE POR REDES PARA LOS MUNICIPIOS DE CAPARRAPI, EL PEÑON, LA PALMA, PAIME, TOPAIPI Y VILLAGOMEZ CUNDINAMARCA | F48: MINAS Y ENERGÍA | G48: 6609136508 | I48: 41579 | J48: 2013 | K48: 012 DE 2013 | L48: CERRADO | AA48: 44607 | AB48: 44607 | AC48: -146 | AD48: -146 | AE48: 0
A49: 40 | B49: ENTIDAD APORTANTE RECURSOS | C49: ICCU - GESPROY GB | D49: 2013000050047 | E49: MEJORAMIENTO Y PAVIMENTACIÓN VIA GUANACAS - EL PEÑON DESDE EL K0+000 AL K2+000 (K0+000 UBICADO EN GUANACAS) MUNICIPIO EL PEÑON, CUNDINAMARCA | F49: TRANSPORTE | G49: 3000000000 | I49: 41808 | J49: 2014 | K49: 022 DE 2014 | L49: CERRADO | AA49: 44607 | AB49: 44607 | AC49: -146 | AD49: -146 | AE49: 0
A50: 41 | B50: ENTIDAD APORTANTE RECURSOS | C50: ICCU - GESPROY GB | D50: 2013000050049 | E50: MEJORAMIENTO Y MANTENIMIENTO DE LA RE VIAL MEDIANTE LA ADQUISICION DE MAQUINARIA AÑO 2013-2014 PARA LOS MUNICIPIOS DEL DEPARTAMENTO DE CUNDINAMARCA | F50: TRANSPORTE | G50: 14330854376 | I50: 41609 | J50: 2013 | K50: 012 DE 2013 | L50: CERRADO | AA50: 44607 | AB50: 44607 | AC50: -146 | AD50: -146 | AE50: 0
A51: 42 | B51: ENTIDAD APORTANTE RECURSOS | C51: ICCU - GESPROY GB | D51: 2013000050050 | E51: MEJORAMIENTO Y PAVIMENTACIÓN DE LA VIA SANAME - PUENTE QUETAME DESDE K0+000 AL K1+500 (K0+000 LOCALIZADO EN PUENTE QUEMADO) MUNICIPIO FOSCA, CUNDINAMARCA | F51: TRANSPORTE | G51: 6000000000 | I51: 41639 | J51: 2013 | K51: 015 DE 2013 | L51: CERRADO | AA51: 44607 | AB51: 44607 | AC51: -146 | AD51: -146 | AE51: 0
A52: 43 | B52: CUNDINAMARCA | C52: SECRETARIA DE AMBIENTE | D52: 2013000050051 | E52: FORTALECIMIENTO DE LA GESTION INTEGRAL DE RESIDUOS SOLIDOS, A TRAVES DE SISTEMAS RECIONALES EN LAS PROVINCIAS DE UBATE Y RIONEGRO EN EL DEPARTAMENTO DE CUNDINAMARCA | F52: VIVIENDA, CIUDAD Y TERRITORIO | G52: 3000000000 | I52: 41579 | J52: 2013 | K52: 012 DE 2013 | L52: CERRADO | AA52: 44607 | AB52: 44607 | AC52: -146 | AD52: -146 | AE52: 0
A53: 44 | B53: CUNDINAMARCA | C53: SECRETARIA DE AGRICULTURA | D53: 2013000050054 | E53: MEJORAMIENTO DE LA PRODUCTIVIDAD Y COMPETITIVIDAD DEL SECTOR CAUCHERO EN EL DEPARTAMENTO DE CUNDINAMARCA | F53: AGRICULTURA | G53: 3765860000 | I53: 41639 | J53: 2013 | K53: 015 DE 2013 | L53: CERRADO | AA53: 44607 | AB53: 44607 | AC53: -146 | AD53: -146 | AE53: 0
A54: 45 | B54: CUNDINAMARCA | C54: SECRETARIA DE GOBIERNO | D54: 2013000050056 | E54: PREVENCIN DE INCENDIOS FORESTALES CON LA ADQUISICION DE VEHICULOS 4X4 ACCION RAPIDA TIPO FORESTAL PARA EL DEPARTAMENTO DE CUNDINAMARCA | F54: AMBIENTE Y DESARROLLO SOSTENIBLE | G54: 4000000000 | I54: 41579 | J54: 2013 | K54: 012 DE 2013 | L54: CERRADO | AA54: 44607 | AB54: 44607 | AC54: -146 | AD54: -146 | AE54: 0
A55: 46 | B55: CUNDINAMARCA | C55: SECRETARIA DE AGRICULTURA | D55: 2013000050081 | E55: MEJORAMIENTO DE LA PRODUCTIVIDAD, CALIDAD, POSCOSECHA Y MERCADEO DE LAS CADENAS HORTIFRUTCOLA Y AROMATICAS DE CUNDINAMARCA | F55: AGRICULTURA | G55: 4900400000 | I55: 41808 | J55: 2014 | K55: 022 DE 2014 | L55: CERRADO | AA55: 44607 | AB55: 44607 | AC55: -146 | AD55: -146 | AE55: 0
A56: 47 | B56: CUNDINAMARCA | C56: SECRETARIA DE AGRICULTURA | D56: 2013000050083 | E56: IMPLEMENTACIÓN Y PUESTA EN MARCHA DE UNA PLANTA HOMOGENIZADORA DE MIELES PARA LA PRODUCCION DE PANELA EN CAPARRAPI CUNDINAMARCA, CENTRO ORIENTE | F56: AGRICULTURA | G56: 3322683076 | I56: 41808 | J56: 2014 | K56: 022 DE 2014 | L56: CERRADO | AA56: 44607 | AB56: 44607 | AC56: -146 | AD56: -146 | AE56: 0
A57: 48 | B57: ENTIDAD APORTANTE RECURSOS | C57: ICCU - GESPROY GB | D57: 2013000050094 | E57: MEJORAMIENTO Y REHABILITACION DE LA VIA TABIO - CHIA DEL K1+100 AL K3+200 | F57: TRANSPORTE | G57: 2000000000 | I57: 41639 | J57: 2013 | K57: 015 DE 2013 | L57: DESAPROBADO | AA57: 44607 | AB57: 44607 | AC57: -146 | AD57: -146 | AE57: 0
A58: 49 | B58: CUNDINAMARCA | C58: SECRETARIA DE CIENCIA, TECNOLOGIA E INNOVACIÓN | D58: 2013000100129 | E58: INCREMENTO EN LAS ESTRATEGIAS SUSTENTABLES EN EL USO DEL RECURSO DE ENERGA ELECTRICA PARA LA POBLACION VULNERABLE EN EL DPTO. DE CUNDINAMARCA | F58: CTEL | G58: 5170002961 | I58: 41789 | J58: 2014 | K58: 025 DE 2014 | L58: CONTRATADO EN EJECUCIÓN | AA58: 44607 | AB58: 44607 | AC58: -146 | AD58: -146 | AE58: 0
A59: 50 | B59: CUNDINAMARCA | C59: SECRETARIA DE CIENCIA, TECNOLOGIA E INNOVACIÓN | D59: 2013000100131 | E59: INVESTIGACIÓN ESTIMAR VULNERABILIDAD AL CAMBIO CLIMATICO DE SISTEMAS CAFETEROS Y DISEÑO DE ARREGLOS AGROFORESTALES CON BIOTECNOLOGIA PACHO, TIBACUY, SAN JUAN DE RIO SECO, CUNDINAMARCA | F59: AGRICULTURA | G59: 3287867000 | I59: 41474 | J59: 2013 | K59: 005 DE 2013 | L59: CERRADO | Z59: 44740 | AA59: 44607 | AB59: 44740 | AC59: -146 | AD59: -13 | AE59: -13
A60: 51 | B60: CUNDINAMARCA | C60: SECRETARIA DE CIENCIA, TECNOLOGIA E INNOVACIÓN | D60: 2013000100149 | E60: INNOVACIÓN EN EL MODELO DE GESTION DE MEDICAMENTO EN EL DEPARTAMENTO DE CUNDINAMARCA FASE II | F60: CTEL | G60: 3079583047 | I60: 41474 | J60: 2013 | K60: 005 DE 2013 | L60: CERRADO | AA60: 44607 | AB60: 44607 | AC60: -146 | AD60: -146 | AE60: 0
A61: 52 | B61: CUNDINAMARCA | C61: SECRETARIA DE CIENCIA, TECNOLOGIA E INNOVACIÓN | D61: 2013000100176 | E61: INNOVACIÓN SISTEMA DE PRODUCCION DE FRUTAS/HORTALIZAS FRESCAS/PROCESADAS TIPO EXPORTACION CON TECNOLOGIA BIOLOGICA /INTEGRAL INOCUA SUBACHOQUE, CUNDINAMARCA, CENTRO ORIENTE | F61: CTEL | G61: 9285096292 | I61: 41474 | J61: 2013 | K61: 005 DE 2013 | L61: CONTRATADO EN EJECUCIÓN | AA61: 44607 | AB61: 44607 | AC61: -146 | AD61: -146 | AE61: 0
A62: 53 | B62: CUNDINAMARCA | C62: SECRETARIA DE CIENCIA, TECNOLOGIA E INNOVACIÓN | D62: 2013000100180 | E62: DISEÑO SMART TON: TALENTO E INNOVACION APLICADA AL TERRITORIO | F62: CTEL | G62: 3089954000 | I62: 41509 | J62: 2013 | K62: 008 DE 2013 | L62: CERRADO | AA62: 44607 | AB62: 44607 | AC62: -146 | AD62: -146 | AE62: 0
A63: 54 | B63: CUNDINAMARCA | C63: SECRETARIA DE CIENCIA, TECNOLOGIA E INNOVACIÓN | D63: 2013000100215 | E63: FORTALECIMIENTO DE LA GESTIN COMUNITARIA DEL RECURSO HIDRICO, POR MEDIO DE LA DISMINUCION DEL CONSUMO DE ESTE, UTILIZANDO TP Y TICS , CUNDINAMARCA, CENTRO ORIENTE | F63: CTEL | G63: 1811292700 | I63: 41565 | J63: 2013 | K63: 011 DE 2013 | L63: CERRADO | AA63: 44607 | AB63: 44607 | AC63: -146 | AD63: -146 | AE63: 0
A64: 55 | B64: CUNDINAMARCA | C64: SECRETARIA DE CIENCIA, TECNOLOGIA E INNOVACIÓN | D64: 2013000100217 | E64: FORTALECIMIENTO DE LA COMPETITIVIDAD DEL SECTOR FLORICULTOR COLOMBIANO MEDIANTE EL USO DE CIENCIA, TECNOLOGA E INNOVACION APLICADAS EN EL DEPARTAMENTO DE CUNDINAMARCA | F64: CTEL | G64: 7204002875 | I64: 41789 | J64: 2014 | K64: 025 DE 2014 | L64: CERRADO | AA64: 44607 | AB64: 44607 | AC64: -146 | AD64: -146 | AE64: 0
A65: 56 | B65: CUNDINAMARCA | C65: SECRETARIA DE CIENCIA, TECNOLOGIA E INNOVACIÓN | D65: 2013000100247 | E65: INVESTIGACIÓN E INNOVACIÓN TECNOLÓGICA Y APROPIACIÓN SOCIAL DE CONOCIMIENTO CIENTÍFICO DE ORQUÍDEAS NATIVAS DE CUNDINAMARCA | F65: CTEL | G65: 3400306874 | I65: 41856 | J65: 2014 | K65: 027 DE 2014 | L65: CERRADO | AA65: 44607 | AB65: 44607 | AC65: -146 | AD65: -146 | AE65: 0
A66: 57 | B66: CUNDINAMARCA | C66: SECRETARIA DE CIENCIA, TECNOLOGIA E INNOVACIÓN | D66: 2013000100248 | E66: INNOVACIÓN , CIENCIA Y TECNOLOGIA PARA PRODUCTORES DE LECHE EN LA PROVINCIA DE UBATE, CUNDINAMARCA. | F66: CTEL | G66: 11619725567 | I66: 41565 | J66: 2013 | K66: 011 DE 2013 | L66: CONTRATADO EN EJECUCIÓN | AA66: 44607 | AB66: 44607 | AC66: -146 | AD66: -146 | AE66: 0
A67: 58 | B67: ENTIDAD APORTANTE RECURSOS | C67: MUNICIPIO DE MADRID | D67: 2013000050048 | E67: MEJORAMIENTO Y PAVIMENTACIÓN DE LA VIA AJOVER-SANTA CRUZ EN 2 KILOMETROS, MUNICIPIO DE MADRID, CUNDINAMARCA | F67: TRANSPORTE | G67: 8946944399 | I67: 41689 | J67: 2014 | K67: 017 DE 2014 | L67: CERRADO | AA67: 44607 | AB67: 44607 | AC67: -146 | AD67: -146 | AE67: 0
A68: 59 | B68: ENTIDAD APORTANTE RECURSOS | C68: CORMAGDALENA | D68: 20132401060001 | E68: MANTENIMIENTO Y RECUPERACIÓN DE LA NAVEGABILIDAD DEL RIO MAGDALENA | F68: TRANSPORTE | G68: 3527443454052 | I68: 41514 | J68: 2013 | K68: 001 DE 2013 | L68: CERRADO | AA68: 44607 | AB68: 44607 | AC68: =IF(AA68=0,0,_xlfn.DAYS(AA68,TODAY())) -> -146 | AD68: -146 | AE68: 0
A69: 60 | B69: ENTIDAD APORTANTE RECURSOS | C69: ICCU - GESPROY GB | D69: 2014000050033 | E69: MEJORAMIENTO Y REHABILITACIÓN DE LA VIA TABIO - CHIA DEL K0+000 AL K1+800 | F69: TRANSPORTE | G69: 2570000000 | I69: 41893 | J69: 2014 | K69: 026 DE 2014 | L69: CERRADO | AA69: 44607 | AB69: 44607 | AC69: -146 | AD69: -146 | AE69: =IF(Z69=0,0,_xlfn.DAYS(Z69,TODAY())) -> 0
A70: 61 | B70: ENTIDAD APORTANTE RECURSOS | C70: ICCU - GESPROY GB | D70: 2014257720001 | E70: MEJORAMIENTO Y PAVIMENTACIÓN DE LA VIA SUESCA LA PLAYA - SESQUILE DEPARTAMENTO DE CUNDINAMARCA | F70: TRANSPORTE | G70: 4191000000 | I70: 41743 | J70: 2014 | K70: 001 DE 2014 | L70: CERRADO | AA70: 44607 | AB70: 44607 | AC70: -146 | AD70: -146 | AE70: 0
A71: 62 | B71: CUNDINAMARCA | C71: SECRETARIA DE GOBIERNO | D71: 2014000050010 | E71: CONSTRUCCIÓN DE UN CENTRO DE ATENCION ESPECIALIZADA AL SERVICIO DE ADOLESCENTES INFRACTORES DE LA LEY PENAL EN EL DEPARTAMENTO DE CUNDINAMARCA | F71: JUSTICIA Y DEL DERECHO | G71: 9260000000 | I71: 41808 | J71: 2014 | K71: 022 DE 2014 | L71: PARA CIERRE | AA71: 44607 | AB71: 44607 | AC71: -146 | AD71: -146 | AE71: 0
A72: 63 | B72: ENTIDAD APORTANTE RECURSOS | C72: MUNICIPIO DE VILLETA | D72: 2014000050048 | E72: MEJORAMIENTO Y PAVIMENTACIÓN DE LA VIA VILLETA-PANTANILLO-CORREDOR CHUGUACAL -CAMBAO DEL K0+360 AL K1+060 VILLETA, CUNDINAMARCA, CENTRO ORIENTE | F72: TRANSPORTE | G72: 1701612797 | I72: 42089 | J72: 2015 | K72: 033 DE 2015 | L72: CERRADO | AA72: 44607 | AB72: 44607 | AC72: -146 | AD72: -146 | AE72: 0
A73: 64 | B73: ENTIDAD APORTANTE RECURSOS | C73: ICCU - GESPROY GB | D73: 2015000050010 | E73: MEJORAMIENTO DE LA VA SAN CAYETANO - COGUA SECTOR K6+670 - K8+366 (K0+000 LOCALIZADO EN EL CASCO URBANO DEL MUNICIPIO DE SAN CAYETANO) CUNDINAMARCA | F73: TRANSPORTE | G73: 3796247522 | I73: 42158 | J73: 2015 | K73: 036 DE 2015 | L73: CERRADO | AA73: 44607 | AB73: 44607 | AC73: -146 | AD73: -146 | AE73: 0
A74: 65 | B74: ENTIDAD APORTANTE RECURSOS | C74: ICCU - GESPROY GB | D74: 2015000050013 | E74: MEJORAMIENTO DE LA VA UBAQUE - LOS CEREZOS - CHIPAQUE SECTORES DEL K0+000 AL K2+040 Y DEL K16+000 AL K18+260 (K0+000 LOCALIZADO EN UBAQUE) DEPARTAMENTO DE CUNDINAMARCA | F74: TRANSPORTE | G74: 8000000000 | H74: =F74-G74 ->  | I74: 42159 | J74: 2015 | K74: 036 de 2015 | L74: CERRADO | AA74: 44607 | AB74: 44607 | AC74: -146 | AD74: -146 | AE74: 0
A75: 66 | B75: CUNDINAMARCA | C75: SECRETARIA DE HABITAT Y VIVIENDA | D75: 2015000050014 | E75: CONSTRUCCIÓN DE VIVIENDAS NUEVAS RURALES VISR 2015 EN EL DEPARTAMENTO DE CUNDINAMARCA-SGR | F75: AGRICULTURA | G75: 7588896000 | I75: 42173 | J75: 2015 | K75: 036 de 2015 | L75: CERRADO | AA75: 44607 | AB75: 44607 | AC75: -146 | AD75: -146 | AE75: 0
A76: 67 | B76: CUNDINAMARCA | C76: SECRETARIA DE EDUCACIÓN | D76: 2015000050015 | E76: FORTALECIMIENTO DE LA PERMANENCIA DE LOS ESTUDIANTES EN LOS MUNICIPIOS DEL DEPARTAMENTO DE CUNDINAMARCA, CENTRO ORIENTE - 2015 | F76: EDUCACIÓN | G76: 8373797030 | I76: 42159 | J76: 2015 | K76: 036 de 2015 | L76: CERRADO | AA76: 44607 | AB76: 44607 | AC76: -146 | AD76: -146 | AE76: 0
A77: 68 | B77: ENTIDAD APORTANTE RECURSOS | C77: ICCU - GESPROY GB | D77: 2015000050025 | E77: MEJORAMIENTO Y PAVIMENTACIÓN DE LA TRONCAL DEL CARBON SECTOR K0+000 AL K2+860 (K0+000 LOCALIZADO EN TIERRA NEGRA, MUNICIPIO DE TAUSA), DEPARTAMENTO DE CUNDINAMARCA | F77: TRANSPORTE | G77: 7913699780 | I77: 42159 | J77: 2015 | K77: 036 DE 2015 | L77: CERRADO | AA77: 44607 | AB77: 44607 | AC77: -146 | AD77: -146 | AE77: 0
A78: 69 | B78: CUNDINAMARCA | C78: SECRETARIA DE EDUCACIÓN | D78: 2015000050026 | E78: FORTALECIMIENTO A LA ESTRATEGIA DE ALIMENTACIÓN ESCOLAR PARA MUNICIPIOS NO CERTIFICADOS DEL DEPARTAMENTO DE CUNDINAMARCA, CENTRO ORIENTE | F78: EDUCACIÓN | G78: 2100000000 | I78: 42159 | J78: 2015 | K78: 036 de 2015 | L78: CERRADO | AA78: 44607 | AB78: 44607 | AC78: -146 | AD78: -146 | AE78: 0
A79: 70 | B79: CUNDINAMARCA | C79: SECRETARIA DE AGRICULTURA | D79: 2015000050029 | E79: IMPLEMENTACIÓN Y PUESTA EN MARCHA DE UNA PLANTA HOMOGENIZADORA DE MIELES PARA LA PRODUCCION DE PANELA EN EL MUNICIPIO DE QUIPILE, CUNDINAMARCA, CENTRO ORIENTE | F79: AGRICULTURA | G79: 3395531657 | I79: 42180 | J79: 2015 | K79: 037 de 25 2015 | L79: CERRADO | AA79: 44607 | AB79: 44607 | AC79: -146 | AD79: -146 | AE79: 0
A80: 71 | B80: CUNDINAMARCA | C80: SECRETARIA DE AGRICULTURA | D80: 2015000050030 | E80: FORTALECIMIENTO A LA CADENA PRODUCTIVA DEL CACAO EN EL DEPARTAMENTO DE CUNDINAMARCA | F80: AGRICULTURA | G80: 2253334400 | I80: 42159 | J80: 2015 | K80: 036 de 2015 | L80: CERRADO | AA80: 44607 | AB80: 44607 | AC80: -146 | AD80: -146 | AE80: 0
A81: 72 | B81: CUNDINAMARCA | C81: SECRETARIA DE GOBIERNO | D81: 2015000050031 | E81: ADQUISICIÓN DE VEHICULOS PARA LOS CUERPOS OPERATIVOS (BOMBEROS) PARA LAS PROVINCIAS DEL DEPARTAMENTO DE CUNDINAMARCA | F81: AMBIENTE Y DESARROLLO SOSTENIBLE | G81: 3670000000 | I81: 42159 | J81: 2015 | K81: 036 de 2015 | L81: CERRADO | AA81: 44607 | AB81: 44607 | AC81: -146 | AD81: -146 | AE81: 0
A82: 73 | B82: CUNDINAMARCA | C82: SECRETARIA DE AGRICULTURA | D82: 2015000050034 | E82: FORTALECIMIENTO DE LA PRODUCTIVIDAD Y COMPETITIVIDAD DEL SECTOR CAUCHERO EN EL DEPARTAMENTO DE CUNDINAMARCA | F82: AGRICULTURA | G82: 2158800000 | I82: 42159 | J82: 2015 | K82: 036 de 2015 | L82: CERRADO | AA82: 44607 | AB82: 44607 | AC82: -146 | AD82: -146 | AE82: 0
A83: 74 | B83: ENTIDAD APORTANTE RECURSOS | C83: ICCU - GESPROY GB | D83: 2015000050041 | E83: MEJORAMIENTO DE LA VA UBALA - PALOMAS - MAMBITA - MEDINA (K0+000 UBICADO EN EL SITIO PROFESIONALES MUNICIPIO DE UBALA, DEPARTAMENTO DE CUNDINAMARCA | F83: TRANSPORTE | G83: 13663491451 | I83: 42180 | J83: 2015 | K83: 037 DE 2015 | L83: CERRADO | AA83: 44607 | AB83: 44607 | AC83: -146 | AD83: -146 | AE83: 0
A84: 75 | B84: CUNDINAMARCA | C84: SECRETARIA DE DESARROLLO E INCLUSIÓN SOCIAL | D84: 2015000050048 | E84: IMPLEMENTACIÓN DEL PROGRAMA DE COMPLEMENTACION ALIMENTARIA Y NUTRICIONAL PARA MENORES DE 5 AÑOS, MADRES GESTANTES Y LACTANTES EN TODO EL DEPARTAMENTO DE CUNDINAMARCA 2015 | F84: SALUD Y PROTECCIÓN SOCIAL | G84: 2900000000 | I84: 42348 | J84: 2015 | K84: 044 de 2015 | L84: CERRADO | AA84: 44607 | AB84: 44607 | AC84: -146 | AD84: -146 | AE84: 0
A85: 76 | B85: CUNDINAMARCA | C85: SECRETARIA DE EDUCACIÓN | D85: 2016000050005 | E85: FORTALECIMIENTO DE LA PERMANENCIA DE LOS ESTUDIANTES EN LOS MUNICIPIOS DEL DEPARTAMENTO DE CUNDINAMARCA, CENTRO ORIENTE - 2016 | F85: EDUCACIÓN | G85: 14963757156 | I85: 42605 | J85: 2016 | K85: 054 DE 2016 | L85: CERRADO | Z85: 44740 | AA85: 44607 | AB85: 44607 | AC85: -146 | AD85: -146 | AE85: -13
A86: 77 | B86: CUNDINAMARCA | C86: SECRETARIA DE EDUCACIÓN | D86: 2016000050014 | E86: FORTALECIMIENTO A LA ESTRATEGIA DE ALIMENTACION ESCOLAR PARA MUNICIPIOS NO CERTIFICADOS DEL DEPARTAMENTO DE CUNDINAMARCA, SGR 2016. | F86: EDUCACIÓN | G86: 12339894658 | I86: 42625 | J86: 2016 | K86: 055 de 2016 | L86: CERRADO | Z86: 44740 | AA86: 44607 | AB86: 44706 | AC86: -146 | AD86: -47 | AE86: -13
A87: 78 | B87: ENTIDAD APORTANTE RECURSOS | C87: ICCU - GESPROY GB | D87: 2016000050023 | E87: MANTENIMIENTO DE LA RED VIAL EN AFIRMADO A TRAVS DE LA ADQUISICION DE MAQUINARIA PESADA Y EQUIPO DE TRANSPORTE EN EL DEPARTAMENTO DE CUNDINAMARCA | F87: TRANSPORTE | G87: 24179817530 | I87: 43066 | J87: 2017 | K87: 068 de 2017 | L87: CERRADO | AA87: 44607 | AB87: 44740 | AC87: -146 | AD87: -13 | AE87: 0
A88: 79 | B88: ENTIDAD APORTANTE RECURSOS | C88: ICCU - GESPROY GB | D88: 2016000050025 | E88: REHABILITACIÓN DE LA VIA BOQUERON - PANDI DEL DEPARTAMENTO DE CUNDINAMARCA | F88: TRANSPORTE | G88: 4991550669 | I88: 42825 | J88: 2017 | K88: 061 DE 2017 | L88: CERRADO | AA88: 44607 | AB88: 44607 | AC88: -146 | AD88: -146 | AE88: 0
A89: 80 | B89: ENTIDAD APORTANTE RECURSOS | C89: ICCU - GESPROY GB | D89: 2016000050029 | E89: REHABILITACIÓN DE LA VIA LA QUINTA - REPRESA DEL NEUSA, MUNICIPIO DE COGUA, DEPARTAMENTO DE CUNDINAMARCA | F89: TRANSPORTE | G89: 6798676732 | I89: 42846 | J89: 2017 | K89: 061 de 2017 | L89: CERRADO | Z89: 44740 | AA89: 44635 | AB89: 44607 | AC89: -118 | AD89: -146 | AE89: -13
A90: 81 | B90: ENTIDAD APORTANTE RECURSOS | C90: ICCU - GESPROY GB | D90: 2016000050032 | E90: REHABILITACIÓN DE LA VIA CLUB EL BOSQUE - TIBACUY - CUMACA DEL DEPARTAMENTO DE CUNDINAMARCA | F90: TRANSPORTE | G90: 4022150134 | I90: 42825 | J90: 2017 | K90: 061 DE 2017 | L90: CERRADO | AA90: 44607 | AB90: 44607 | AC90: -146 | AD90: -146 | AE90: 0
A91: 82 | B91: ENTIDAD APORTANTE RECURSOS | C91: ALCALDIA MAYOR DE BOGOTA | D91: 2016000050033 | E91: ELABORACIÓN DE LA ENCUESTA MULTIPROPOSITO 2017 : BOGOTA - CUNDINAMARCA | F91: VIVIENDA, CIUDAD Y TERRITORIO | G91: 17282722269 | I91: 42825 | J91: 2017 | K91: 061 DE 2017 | L91: CERRADO | AA91: 44607 | AB91: 44607 | AC91: -146 | AD91: -146 | AE91: 0
A92: 83 | B92: CUNDINAMARCA | C92: SECRETARIA DE HABITAT Y VIVIENDA | D92: 2016000050052 | E92: CONSTRUCCIÓN DE VIVIENDAS NUEVAS RURALES EN EL DEPARTAMENTO DE CUNDINAMARCA | F92: AGRICULTURA | G92: 5983779025 | I92: 43090 | J92: 2017 | K92: 069 de 2017 | L92: CONTRATADO EN EJECUCIÓN | AA92: 44607 | AB92: 44635 | AC92: -146 | AD92: -118 | AE92: 0
A93: 84 | B93: CUNDINAMARCA | C93: SECRETARIA DE CIENCIA, TECNOLOGIA E INNOVACIÓN | D93: 2016000100027 | E93: ANLISIS DE FACTORES GENETICOS, SANITARIOS Y MEDIOAMBIENTALES QUE AFECTAN LAS TASAS DE PREÑEZ A PARTIR DE EMBRIONES IN VITRO EN EL DEPARTAMENTO DE CUNDINAMARCA | F93: CTEL | G93: 6401358633 | I93: 43098 | J93: 2017 | K93: 063 DE 2017 | L93: CONTRATADO EN EJECUCIÓN | AA93: 44607 | AB93: 44607 | AC93: -146 | AD93: -146 | AE93: 0
A94: 85 | B94: CUNDINAMARCA | C94: ENTIDAD DESIGNADA PARA LA SUPERVISIÓN DEL PROYECTO O PARA CONTRATAR LA INTERVENTORÍA RAPE - INTERVENTORIA SECRETARIA DE PLANEACIÓN | D94: 2016000050012 | E94: IMPLEMENTACIÓN DE ACCIONES DE CONSERVACION Y RESTAURACION DE LOS COMPLEJOS DE PARAMO, BOSQUE ALTO-ANDINO Y SERVICIOS ECOSISTEMICOS DE LA REGION CENTRAL | F94: AMBIENTE Y DESARROLLO SOSTENIBLE | G94: 32499987282 | I94: 42829 | J94: 2017 | K94: 058 DE 2016 | L94: CONTRATADO EN EJECUCIÓN | AA94: 44741 | AB94: 44607 | AC94: -12 | AD94: -146 | AE94: 0
A95: 86 | B95: CUNDINAMARCA | C95: SECRETARIA DE DESARROLLO E INCLUSIÓN SOCIAL | D95: 2017000050017 | E95: FORTALECIMIENTO DEL PROGRAMA DE COMPLEMENTACIÓN ALIMENTARIA Y NUTRICIONAL PARA NIÑAS, NIÑOS MENORES DE 5 AÑOS Y MADRES GESTANTES Y LACTANTES EN RIESGO DE DESNUTRICIÓN DEL DEPARTAMENTO DE CUNDINAMARCA | F95: INCLUSIÓN SOCIAL Y RECONCILIACIÓN | G95: 8199993544 | I95: 42915 | J95: 2017 | K95: 062 de 2017 | L95: CERRADO | AA95: 44607 | AB95: 44607 | AC95: -146 | AD95: -146 | AE95: 0
A96: 87 | B96: CUNDINAMARCA | C96: SECRETARIA DE EDUCACIÓN | D96: 2017000050027 | E96: FORTALECIMIENTO DE LA PERMANENCIA DE LOS ESTUDIANTES EN LOS MUNICIPIOS DEL DEPARTAMENTO DE CUNDINAMARCA , CENTRO ORIENTE 2017 CUNDINAMARCA | F96: EDUCACIÓN | G96: 14995289800 | I96: 42961 | J96: 2017 | K96: 064 de 2017 | L96: TERMINADO | AA96: 44607 | AB96: 44607 | AC96: -146 | AD96: -146 | AE96: 0
A97: 88 | B97: ENTIDAD APORTANTE RECURSOS | C97: MUNICIPIO DE ZIPAQUIRA | D97: 2017000050029 | E97: CONSERVACIÓN Y GESTIÓN INTEGRAL DEL RECURSO HÍDRICO MEDIANTE LA ADQUISICIÓN Y RESTAURACIÓN DE PREDIOS DE INTERÉS ECOSISTÉMICO EN ELDEPARTAMENTO DE CUNDINAMARCA | F97: AMBIENTE Y DESARROLLO SOSTENIBLE | G97: 900000000 | I97: 43340 | J97: 2018 | K97: 077 DE 2018 | L97: CONTRATADO EN EJECUCIÓN | AA97: 44607 | AB97: 44607 | AC97: -146 | AD97: -146 | AE97: 0
A98: 89 | B98: CUNDINAMARCA | C98: SECRETARIA DE EDUCACIÓN | D98: 2017000050033 | E98: FORTALECIMIENTO A LA ESTRATEGIA DE ALIMENTACIÓN ESCOLAR PARA MUNICIPIOS NO CERTIFICADOS DEL DEPARTAMENTO DE CUNDINAMARCA | F98: EDUCACIÓN | G98: 14000000000 | I98: 42977 | J98: 2017 | K98: 065 de 2017 | L98: CERRADO | Z98: 44740 | AA98: 44607 | AB98: 44706 | AC98: -146 | AD98: -47 | AE98: -13
A99: 90 | B99: CUNDINAMARCA | C99: SECRETARIA DE MINAS, ENERGIA Y GAS | D99: 2017000050036 | E99: IMPLEMENTACIÓN Y EXPANSIÓN DEL SERVICIO DE GAS COMBUSTIBLE POR REDES PARA VEREDAS Y CENTROS POBLADOS DEL DEPARTAMENTO DE CUNDINAMARCA | F99: MINAS Y ENERGÍA | G99: 4751658472 | I99: 43356 | J99: 2018 | K99: 077 DE 2018 | L99: CONTRATADO EN EJECUCIÓN | Z99: 44740 | AA99: 44607 | AB99: 44706 | AC99: -146 | AD99: -47 | AE99: -13
A100: 91 | B100: CUNDINAMARCA | C100: SECRETARIA DE PLANEACIÓN | D100: 2017000050039 | E100: MEJORAMIENTO DE VÍAS TERCIARIAS MEDIANTE EL USO DE PLACA HUELLA EN LOS MUNICIPIOS DE GUATAVITA, PACHO, SAN JUAN DE RIOSECO, SUBACHOQUE, TENA Y ZIPAQUIRÁ, DEPARTAMENTO DE CUNDINAMARCA | F100: TRANSPORTE | G100: 6791102422 | I100: 43124 | J100: 2017 | K100: 067 DE 2017 | L100: CONTRATADO EN EJECUCIÓN | AA100: 44607 | AB100: 44706 | AC100: -146 | AD100: -47 | AE100: 0
A101: 92 | B101: CUNDINAMARCA | C101: SECRETARIA DE HABITAT Y VIVIENDA | D101: 2017000050042 | E101: MEJORAMIENTO DE VIVIENDAS RURALES DE LA PROVINCIA DE UBATÉ - CUNDINAMARCA | F101: AGRICULTURA | G101: 2354318125 | I101: 43096 | J101: 2017 | K101: 069 de 2017 | L101: TERMINADO | Z101: 44669 | AA101: 44706 | AB101: 44669 | AC101: -47 | AD101: -84 | AE101: -84
A102: 93 | B102: CUNDINAMARCA | C102: SECRETARIA DE SALUD | D102: 2017000050061 | E102: ADQUISICIÓN AMBULANCIAS DE TRANSPORTE ASISTENCIAL BÁSICO (TAB) Y TRANSPORTE ASISTENCIAL MEDICALIZADA (TAM), PARA EL APOYO DEL SISTEMA DE REFERENCIA Y CONTRA REFERENCIA DE LA RED HOSPITALARIA DEL DEPARTAMENTO DE CUNDINAMARCA | F102: SALUD Y PROTECCIÓN SOCIAL | G102: 3764666699 | I102: 43081 | J102: 2017 | K102: 069 de 2017 | L102: CERRADO | Z102: 44706 | AA102: 44607 | AB102: 44740 | AC102: -146 | AD102: -13 | AE102: -47
A103: 94 | B103: CUNDINAMARCA | C103: SECRETARIA DE AGRICULTURA | D103: 2017000050062 | E103: FORTALECIMIENTO DE LAS CADENAS PRODUCTIVAS DE MANGO, AGUACATE Y CÍTRICOS EN EL DEPARTAMENTO DE CUNDINAMARCA | F103: AGRICULTURA | G103: 3000129600 | I103: 43124 | J103: 2018 | K103: 072 DE 2018 | L103: CERRADO | Z103: 44740 | AA103: 44607 | AB103: 44740 | AC103: -146 | AD103: -13 | AE103: -13
A104: 95 | B104: CUNDINAMARCA | C104: SECRETARIA DE MINAS, ENERGIA Y GAS | D104: 2017000050064 | E104: CONSTRUCCIÓN DE REDES ELÉCTRICAS EN ZONA RURAL DE 13 MUNICIPIOS, EN EL MARCO DEL PROYECTO ILUMINANDO VIDAS DEL DEPARTAMENTO DE CUNDINAMARCA | F104: MINAS Y ENERGÍA | G104: 2972842689 | I104: 43273 | J104: 2018 | K104: 076 DE 2018 | L104: CERRADO | Z104: 44740 | AA104: 44607 | AB104: 44740 | AC104: -146 | AD104: -13 | AE104: -13
A105: 96 | B105: CUNDINAMARCA | C105: SECRETARIA DE AGRICULTURA | D105: 2017000050065 | E105: MEJORAMIENTO DE LA PRODUCTIVIDAD Y RENTABILIDAD DE LOS CAFICULTORES DEL DEPARTAMENTO DE CUNDINAMARCA | F105: AGRICULTURA | G105: 6523880054 | I105: 43096 | J105: 2017 | K105: 069 DE 2017 | L105: CONTRATADO EN EJECUCIÓN | AA105: 44607 | AB105: 44607 | AC105: -146 | AD105: -146 | AE105: 0
A106: 97 | B106: CUNDINAMARCA | C106: SECRETARIA DE CIENCIA, TECNOLOGIA E INNOVACIÓN | D106: 2017000100016 | E106: IMPLEMENTACIÓN PROGRAMA DE INNOVACIÓN PARA LA VALIDACIÓN Y GENERACIÓN DE PRODUCTOS DERIVADOS DE LA BIODIVERSIDAD EN EL DEPARTAMENTO DE CUNDINAMARCA | F106: CTEL | G106: 4486653319 | I106: 42941 | J106: 2017 | K106: 058 DE 2017 | L106: CONTRATADO EN EJECUCIÓN | Z106: 44740 | AA106: 44635 | AB106: 44740 | AC106: -118 | AD106: -13 | AE106: -13
A107: 98 | B107: CUNDINAMARCA | C107: SECRETARIA DE CIENCIA, TECNOLOGIA E INNOVACIÓN | D107: 2017000100034 | E107: IMPLEMENTACIÓN DE UN SISTEMA DE GESTIÓN DE INNOVACIÓN PARA LA INDUSTRIA DE CUNDINAMARCA | F107: CTEL | G107: 3925471448 | I107: 42941 | J107: 2017 | K107: 058 DE 2017 | L107: CONTRATADO EN EJECUCIÓN | AA107: 44607 | AB107: 44607 | AC107: -146 | AD107: -146 | AE107: 0
A108: 99 | B108: CUNDINAMARCA | C108: SECRETARIA DE CIENCIA, TECNOLOGIA E INNOVACIÓN | D108: 2017000100074 | E108: IMPLEMENTACIÓN DE ESTRATEGIAS DE FOMENTO A LA CULTURA Y SERVICIOS DE INNOVACIÓN EN LAS PROVINCIAS SABANA OCCIDENTE, SABANA CENTRAL, SOACHA Y SUMAPAZ CUNDINAMARCA | F108: CTEL | G108: 6183633276 | I108: 43098 | J108: 2017 | K108: 063 DE 2017 | L108: TERMINADO | AA108: 44607 | AB108: 44607 | AC108: -146 | AD108: -146 | AE108: 0
A109: 100 | B109: CUNDINAMARCA | C109: SECRETARIA DE CIENCIA, TECNOLOGIA E INNOVACIÓN | D109: 2017000100076 | E109: FORTALECIMIENTO DE CAPACIDADES DE GESTIÓN DEL RIESGO A TRAVÉS DE APROPIACIÓN SOCIAL DE LA CIENCIA, LA TECNOLOGÍA Y LA INNOVACIÓN EN EL DEPARTAMENTO DE CUNDINAMARCA | F109: CTEL | G109: 4404970720 | I109: 43322 | J109: 2018 | K109: 068 DE 2018 | L109: CONTRATADO EN EJECUCIÓN | Z109: 44740 | AA109: 44607 | AB109: 44607 | AC109: -146 | AD109: -146 | AE109: -13
A110: 101 | B110: CUNDINAMARCA | C110: SECRETARIA DE CIENCIA, TECNOLOGIA E INNOVACIÓN | D110: 2017000100087 | E110: FORMACIÓN DE TALENTO HUMANO DE ALTO NIVEL EN MAESTRÍAS EN EL DEPARTAMENTO DE CUNDINAMARCA | F110: CTEL | G110: 5148022960 | I110: 43698 | J110: 2019 | K110: 078 DE 2019 | L110: CONTRATADO EN EJECUCIÓN | AA110: 44607 | AB110: 44607 | AC110: -146 | AD110: -146 | AE110: 0
A111: 102 | B111: CUNDINAMARCA | C111: SECRETARIA DE CIENCIA, TECNOLOGIA E INNOVACIÓN | D111: 2017000100104 | E111: FORTALECIMIENTO DE LA CULTURA DE LA GESTIÓN Y UTILIZACIÓN DEL CONOCIMIENTO EN CTEI EN NIÑOS, JÓVENES Y COMUNIDADES DEL DEPARTAMENTO DE CUNDINAMARCA | F111: CTEL | G111: 9498967749 | I111: 43565 | J111: 2019 | K111: 074 DE 2019 | L111: CONTRATADO EN EJECUCIÓN | Z111: 44706 | AA111: 44706 | AB111: 44607 | AC111: -47 | AD111: -146 | AE111: -47
A112: 103 | B112: CUNDINAMARCA | C112: UNIDAD ADMINISTRATIVA DE GESTIÓN DEL RIESGO. | D112: 20172401060022 | E112: ESTUDIOS DETALLADOS PARA LA INCORPORACIÓN DE LA GESTIÓN DEL RIESGO PARA LOS MUNICIPIOS DE GIRARDOT, RICAURTE | F112: AMBIENTE Y DESARROLLO SOSTENIBLE | G112: 3084907873 | I112: 43802 | J112: 2019 | K112: 033 DE 2019 | L112: CONTRATADO EN EJECUCIÓN | AA112: 44607 | AB112: 44607 | AC112: -146 | AD112: -146 | AE112: 0
A113: 104 | B113: CUNDINAMARCA | C113: SECRETARIA DE CIENCIA, TECNOLOGIA E INNOVACIÓN | D113: 20170000100012 | E113: CONFORMACIÓN DE UNA CONVOCATORIA REGIONAL DE PROYECTOS I+D EN FOCOS PRIORIZADOS CTEI PARA EL FORTALECIMIENTO DE LOS GRUPOS DE INVESTIGACIÓN CUNDINAMARCA | F113: CTEL | G113: 7321934035 | I113: 42941 | J113: 2017 | K113: 058 DE 2017 | L113: CONTRATADO EN EJECUCIÓN | AA113: 44607 | AB113: 44607 | AC113: -146 | AD113: -146 | AE113: 0
A114: 105 | B114: ENTIDAD APORTANTE RECURSOS | C114: CAR | D114: 2017000050063 | E114: RECUPERACIÓN HIDRÁULICA Y AMBIENTAL DEL COMPLEJO LAGUNAR FÚQUENE | F114: AMBIENTE Y DESARROLLO SOSTENIBLE | G114: 18000000000 | I114: 43364 | J114: 2018 | K114: 081 DE 2018 | L114: CONTRATADO EN EJECUCIÓN | AA114: 44607 | AB114: 44607 | AC114: -146 | AD114: -146 | AE114: 0
A115: 106 | B115: ENTIDAD APORTANTE RECURSOS | C115: CAR | D115: 2017000050070 | E115: CONSTRUCCIÓN DE OBRAS DE MITIGACIÓN DEL RIESGO POR EVENTOS CLIMÁTICOS EN LA CUENCA DE LA QUEBRADA LA PARROQUIA EN EL CERRO DE FUSACATÁN DEL MUNICIPIO DE FUSAGASUGÁ, CUNDINAMARCA | F115: AMBIENTE Y DESARROLLO SOSTENIBLE | G115: 1976558725 | I115: 43417 | J115: 2018 | K115: 082 DE 2018 | L115: DESAPROBADO | AA115: 44607 | AB115: 44671 | AC115: -146 | AD115: -82 | AE115: 0
A116: 107 | B116: ENTIDAD APORTANTE RECURSOS | C116: MUNICIPIO DE UTICA | D116: 2017000050087 | E116: MEJORAMIENTO DEL SENDERO TURÍSTICO DE LA PROVINCIA DEL GUALIVÁ – ÚTICA CUNDINAMARCA | F116: COMERCIO, INDUSTRIA Y TURISMO | G116: 2347004868 | I116: 43211 | J116: 2018 | K116: 075 de 2018 | L116: CONTRATADO EN EJECUCIÓN | Z116: 44706 | AA116: 44706 | AB116: 44740 | AC116: -47 | AD116: -13 | AE116: -47
A117: 108 | B117: CUNDINAMARCA | C117: SECRETARIA DE EDUCACIÓN | D117: 2018000050019 | E117: FORTALECIMIENTO DE LA PERMANENCIA DE LOS ESTUDIANTES EN LOS MUNICIPIOS DEL DEPARTAMENTO DE CUNDINAMARCA, CENTRO ORIENTE 2018 CUNDINAMARCA | F117: EDUCACIÓN | G117: 19395559645 | I117: 43336 | J117: 2018 | K117: 080 DE 2018 | L117: CERRADO | AA117: 44740 | AB117: 44607 | AC117: -13 | AD117: -146 | AE117: 0
A118: 109 | B118: ENTIDAD APORTANTE RECURSOS | C118: ICCU - GESPROY GB | D118: 2018000050022 | E118: MEJORAMIENTO Y REHABILITACIÓN DE VÍAS SECUNDARIAS EN LA PROVINCIA DE UBATÉ, DEPARTAMENTO DE CUNDINAMARCA | F118: TRANSPORTE | G118: 7524876363 | I118: 43320 | J118: 2018 | K118: 078 de 2018 | L118: PARA CIERRE | AA118: 44607 | AB118: 44607 | AC118: -146 | AD118: -146 | AE118: 0
A119: 110 | B119: ENTIDAD APORTANTE RECURSOS | C119: ICCU - GESPROY GB | D119: 2018000050024 | E119: MEJORAMIENTO Y REHABILITACIÓN DE LA VÍA LA MARÍA – TOBIA - PASO EL REJO - LA PEÑA, DEPARTAMENTO DE CUNDINAMARCA | F119: TRANSPORTE | G119: 9149162991 | I119: 43417 | J119: 2018 | K119: 082 de 2018 | L119: TERMINADO | AA119: 44607 | AB119: 44607 | AC119: -146 | AD119: -146 | AE119: 0
A120: 111 | B120: ENTIDAD APORTANTE RECURSOS | C120: ICCU - GESPROY GB | D120: 2018000050026 | E120: MEJORAMIENTO DE VÍAS EN LA PROVINCIA DE SUMAPAZ PARA LA CONSOLIDACIÓN DE UNA PAZ ESTABLE Y DURADERA EN EL DEPARTAMENTO DE CUNDINAMARCA | F120: TRANSPORTE | G120: 11457047617 | I120: 43462 | J120: 2018 | K120: 011 de 2018 - OCAD PAZ | L120: CONTRATADO EN EJECUCIÓN | Z120: 44740 | AA120: 44607 | AB120: 44740 | AC120: -146 | AD120: -13 | AE120: -13
A121: 112 | B121: CUNDINAMARCA | C121: UNIDAD ADMINISTRATIVA DE GESTIÓN DEL RIESGO. | D121: 2018000050036 | E121: CONSTRUCCIÓN DE OBRAS PARA LA MITIGACIÓN DEL RIESGO EN EL MUNICIPIO DE SAN BERNARDO, BENEFICIANDO A COMUNIDADES DE LOS MUNICIPIOS DE ARBELAEZ, PANDI Y VENECIA CUNDINAMARCA | F121: AMBIENTE Y DESARROLLO SOSTENIBLE | G121: 2305788182 | I121: 43629 | J121: 2019 | K121: 089 de 2019 | L121: DESAPROBADO | Z121: 44671 | AA121: 44607 | AB121: 44706 | AC121: -146 | AD121: -47 | AE121: -82
A122: 113 | B122: CUNDINAMARCA | C122: SECRETARIA DE HABITAT Y VIVIENDA | D122: 2018000050039 | E122: MEJORAMIENTO DE VIVIENDA RURAL EN LOS MUNICIPIOS DE CUCUNUBÁ, JERUSALEN, QUEBRADANEGRA Y VIOTÁ - DEPARTAMENTO DE CUNDINAMARCA | F122: AGRICULTURA | G122: 4024793625 | I122: 43571 | J122: 2019 | K122: 009 DE 2019 | L122: CONTRATADO EN EJECUCIÓN | AA122: 44607 | AB122: 44607 | AC122: -146 | AD122: -146 | AE122: 0
A123: 114 | B123: ENTIDAD APORTANTE RECURSOS | C123: ICCU - GESPROY GB | D123: 2018000050049 | E123: MEJORAMIENTO DE LA VÍA SESQUILÉ – GUATAVITA - GACHETÁ, DEPARTAMENTO DE CUNDINAMARCA | F123: TRANSPORTE | G123: 3997714045 | I123: 43455 | J123: 2018 | K123: 084 de 2018 | L123: PARA CIERRE | AA123: 44740 | AB123: 44607 | AC123: -13 | AD123: -146 | AE123: 0
A124: 115 | B124: ENTIDAD APORTANTE RECURSOS | C124: ICCU - GESPROY GB | D124: 2018000050055 | E124: MEJORAMIENTO DE LA TRONCAL DE RIONEGRO, SECTOR LA PALMA CHARCO LARGO PARA LA CONSOLIDACIÓN DE UNA PAZ ESTABLE Y DURADERA EN EL DEPARTAMENTO DE CUNDINAMARCA | F124: TRANSPORTE | G124: 17928531277 | I124: 43532 | J124: 2019 | K124: 086 de 2019 | L124: CERRADO | AA124: 44740 | AB124: 44607 | AC124: -13 | AD124: -146 | AE124: 0
A125: 116 | B125: ENTIDAD APORTANTE RECURSOS | C125: ICCU - GESPROY GB | D125: 2018000050059 | E125: MEJORAMIENTO DE LA VÍA GUSBITA - TIBIRITA DEL DEPARTAMENTO DE CUNDINAMARCA | F125: TRANSPORTE | G125: 5500531740 | I125: 43532 | J125: 2019 | K125: 086 de 2019 | L125: TERMINADO | AA125: 44607 | AB125: 44607 | AC125: -146 | AD125: -146 | AE125: 0
A126: 117 | B126: CUNDINAMARCA | C126: SECRETARIA DE CIENCIA, TECNOLOGIA E INNOVACIÓN | D126: 2018000100106 | E126: INNOVACIÓN EN EL MODELO DE GESTIÓN DEL MEDICAMENTO FASE III EN EL DEPARTAMENTO DE CUNDINAMARCA | F126: CTEL | G126: 3452890062 | I126: 43830 | J126: 2019 | K126: 087 DE 2019 | L126: NO HA MIGRADO A GESPROY | Z126: 44740 | AA126: 44635 | AB126: 44740 | AC126: -118 | AD126: -13 | AE126: -13
A127: 118 | B127: CUNDINAMARCA | C127: SECRETARIA DE CIENCIA, TECNOLOGIA E INNOVACIÓN | D127: 2018000100160 | E127: FORMACIÓN DE CAPITAL HUMANO DE ALTO NIVEL PARA LA INVESTIGACIÓN, EL DESARROLLO TECNOLÓGICO Y LA INNOVACIÓN MAESTRÍAS DE INVESTIGACIÓN PARA DOCENTES DEL DEPARTAMENTO DE CUNDINAMARCA | F127: CTEL | G127: 5217415747 | I127: 43731 | J127: 2019 | K127: 080 DE 2019 | L127: CONTRATADO EN EJECUCIÓN | Z127: 44740 | AA127: 44607 | AB127: 44607 | AC127: -146 | AD127: -146 | AE127: -13
A128: 119 | B128: CUNDINAMARCA | C128: ENTIDAD DESIGNADA PARA LA SUPERVISIÓN DEL PROYECTO O PARA CONTRATAR LA INTERVENTORÍA-EMPRESAS PUBLICAS DE CUNDINAMARCA -EPC | D128: 20181301010555 | E128: CONSTRUCCIÓN DE UNIDADES SANITARIAS EN EL ÁREA RURAL DEL DEPARTAMENTO DE CUNDINAMARCA | F128: VIVIENDA, CIUDAD Y TERRITORIO | G128: 4999900475 | I128: 43378 | J128: 2018 | K128: 010 DE 2018 - OCAD PAZ | L128: CONTRATADO EN EJECUCIÓN | Z128: 44740 | AA128: 44607 | AB128: 44607 | AC128: -146 | AD128: -146 | AE128: -13
A129: 120 | B129: ENTIDAD APORTANTE RECURSOS | C129: ICCU - GESPROY GB | D129: 2019000050002 | E129: MEJORAMIENTO DE LA VÍA DEPARTAMENTAL LA VICTORIA (EL COLEGIO) SAN GABRIEL (VIOTÁ), TRAMO LA VICTORIA ALTO DE LA MULA, DEPARTAMENTO DE CUNDINAMARCA | F129: TRANSPORTE | G129: 5745879373 | I129: 43532 | J129: 2019 | K129: 086 de 2019 | L129: CERRADO | AA129: 44607 | AB129: 44607 | AC129: -146 | AD129: -146 | AE129: 0
A130: 121 | B130: ENTIDAD APORTANTE RECURSOS | C130: ICCU - GESPROY GB | D130: 2019000050003 | E130: MEJORAMIENTO DE LA VÍA CÁQUEZA FOSCA, DEPARTAMENTO DE CUNDINAMARCA | F130: TRANSPORTE | G130: 4049029755 | I130: 43585 | J130: 2019 | K130: 088 de 2019 | L130: CERRADO | Z130: 44740 | AA130: 44607 | AB130: 44706 | AC130: -146 | AD130: -47 | AE130: -13
A131: 122 | B131: ENTIDAD APORTANTE RECURSOS | C131: ICCU - GESPROY GB | D131: 2019000050005 | E131: MEJORAMIENTO DE LA VÍA FÓMEQUE UBAQUE, DEPARTAMENTO DE CUNDINAMARCA | F131: TRANSPORTE | G131: 16514204213 | I131: 43629 | J131: 2019 | K131: 089 DE 2019 | L131: CERRADO | Z131: 44706 | AA131: 44671 | AB131: 44607 | AC131: -82 | AD131: -146 | AE131: -47
A132: 123 | B132: ENTIDAD APORTANTE RECURSOS | C132: ICCU - GESPROY GB | D132: 2019000050011 | E132: MEJORAMIENTO DE LA VÍA SUPATÁ - PACHO, DEPARTAMENTO DE CUNDINAMARCA | F132: TRANSPORTE | G132: 7339441010 | I132: 43585 | J132: 2019 | K132: 088 DE 2019 | L132: CONTRATADO EN EJECUCIÓN | AA132: 44607 | AB132: 44607 | AC132: =IF(AA132=0,0,_xlfn.DAYS(AA132,TODAY())) -> -146 | AD132: -146 | AE132: 0
A133: 124 | B133: ENTIDAD APORTANTE RECURSOS | C133: ICCU - GESPROY GB | D133: 2019000050013 | E133: CONSTRUCCIÓN DE LA PLAZA DE MERCADO DEL MUNICIPIO DE CHOACHÍ CUNDINAMARCA | F133: AGRICULTURA | G133: 3152125044 | I133: 43687 | J133: 2019 | K133: 090 DE 2019 | L133: CONTRATADO EN EJECUCIÓN | AA133: 44607 | AB133: 44607 | AC133: -146 | AD133: -146 | AE133: =IF(Z133=0,0,_xlfn.DAYS(Z133,TODAY())) -> 0
A134: 125 | B134: ENTIDAD APORTANTE RECURSOS | C134: ICCU - GESPROY GB | D134: 2019000050016 | E134: MEJORAMIENTO DE LA VÍA ANOLAIMA CORRALEJAS (INSPECCIÓN DE CORRALEJAS), DEPARTAMENTO DE CUNDINAMARCA | F134: TRANSPORTE | G134: 6898362469 | I134: 43629 | J134: 2019 | K134: 089 DE 2019 | L134: TERMINADO | Z134: 44740 | AA134: 44607 | AB134: 44740 | AC134: -146 | AD134: -13 | AE134: -13
A135: 126 | B135: CUNDINAMARCA | C135: SECRETARIA DE EDUCACIÓN | D135: 2019000050020 | E135: FORTALECIMIENTO DE LA PERMANENCIA DE LOS ESTUDIANTES PARA EL AÑO 2019 EN LOS MUNICIPIOS DEL DEPARTAMENTO DE CUNDINAMARCA | F135: EDUCACIÓN | G135: 20536293937 | I135: 43629 | J135: 2019 | K135: 089 DE 2019 | L135: TERMINADO | AA135: 44607 | AB135: 44607 | AC135: -146 | AD135: -146 | AE135: 0
A136: 127 | B136: ENTIDAD APORTANTE RECURSOS | C136: ICCU - GESPROY GB | D136: 2019000050023 | E136: MEJORAMIENTO DE LA VÍA LENGUAZAQUE - VILLAPINZÓN, DEPARTAMENTO DE CUNDINAMARCA | F136: TRANSPORTE | G136: 8636278689 | I136: 43629 | J136: 2019 | K136: 089 DE 2019 | L136: TERMINADO | AA136: 44607 | AB136: 44607 | AC136: -146 | AD136: -146 | AE136: 0
A137: 128 | B137: CUNDINAMARCA | C137: SECRETARIA DE AGRICULTURA | D137: 2019000050027 | E137: MEJORAMIENTO DE LA COMPETITIVIDAD DE LA CADENA PRODUCTIVA DE CACAO EN EL DEPARTAMENTO DE CUNDINAMARCA | F137: AGRICULTURA | G137: 5862983962 | I137: 43819 | J137: 2019 | K137: 098 DE 2019 | L137: CONTRATADO EN EJECUCIÓN | AA137: 44607 | AB137: 44607 | AC137: -146 | AD137: -146 | AE137: 0
A138: 129 | B138: ENTIDAD APORTANTE RECURSOS | C138: ICCU - GESPROY GB | D138: 2019000050029 | E138: MEJORAMIENTO DE LA VÍA GACHETÁ - GAMA, DEPARTAMENTO DE CUNDINAMARCA | F138: TRANSPORTE | G138: $ 5.477.582.208 | H138: =F138-G138 ->  | I138: 43629 | J138: 2019 | K138: 089 DE 2019 | L138: TERMINADO | AA138: 44706 | AB138: 44607 | AC138: -47 | AD138: -146 | AE138: 0
A139: 130 | B139: CUNDINAMARCA | C139: SECRETARIA DE SALUD | D139: 2019000050036 | E139: ADQUISICIÓN DE AMBULANCIAS PARA EL FORTALECIMIENTO DE LA RED HOSPITALARIA DEL DEPARTAMENTO CUNDINAMARCA | F139: SALUD Y PROTECCIÓN SOCIAL | G139: 2385000000 | I139: 43656 | J139: 2019 | K139: 090 DE 2019 | L139: CERRADO | AA139: 44706 | AB139: 44706 | AC139: -47 | AD139: -47 | AE139: 0
A140: 131 | B140: CUNDINAMARCA | C140: UNIDAD ADMINISTRATIVA DE GESTIÓN DEL RIESGO. | D140: 2019000050037 | E140: FORTALECIMIENTO DEL SISTEMA DEPARTAMENTAL PARA LA GESTIÓN DEL RIESGO DE DESASTRES DEL DEPARTAMENTO DE CUNDINAMARCA | F140: PRESIDENCIA DE LA REPÚBLICA | G140: 4936307506 | I140: 43748 | J140: 2019 | K140: 094 DE 2019 | L140: DESAPROBADO | Z140: 44740 | AA140: 44607 | AB140: 44607 | AC140: -146 | AD140: -146 | AE140: -13
A141: 132 | B141: ENTIDAD APORTANTE RECURSOS | C141: MEDICINA LEGAL Y CIENCIAS FORENSES | D141: 2019000050025 | E141: ESTUDIOS Y DISEÑOS PARA LA CONSTRUCCIÓN DE LA SEDE DE MEDICINA LEGAL EN EL DEPARTAMENTO DE CUNDINAMARCA | F141: FISCALIA | G141: 904521100 | I141: 43677 | J141: 2019 | K141: 091 DE 2019 | L141: CONTRATADO EN EJECUCIÓN | Z141: 44740 | AA141: 44607 | AB141: 44607 | AC141: -146 | AD141: -146 | AE141: -13
A142: 133 | B142: CUNDINAMARCA | C142: SECRETARIA DE MINAS, ENERGIA Y GAS | D142: 2019000050039 | E142: ESTUDIO Y DISEÑO PARA LA CONSTRUCCIÓN DE REDES ELÉCTRICAS AÉREAS EN ZONAS RURALES DEL DEPARTAMENTO DE CUNDINAMARCA | F142: MINAS Y ENERGÍA | G142: 1616407501 | I142: 43714 | J142: 2019 | K142: 092 DE 2019 | L142: DESAPROBADO | Z142: 44706 | AA142: 44607 | AB142: 44706 | AC142: -146 | AD142: -47 | AE142: -47
A143: 134 | B143: CUNDINAMARCA | C143: SECRETARIA DE EDUCACIÓN | D143: 2019000050044 | E143: FORTALECIMIENTO A LA ESTRATEGIA DE ALIMENTACIÓN ESCOLAR PARA MUNICIPIOS NO CERTIFICADOS, VIGENCIA 2019 DEL DEPARTAMENTO DE CUNDINAMARCA | F143: EDUCACIÓN | G143: 18301749135 | I143: 43656 | J143: 2019 | K143: 090 DE 2019 | L143: CERRADO | AA143: 44607 | AB143: 44607 | AC143: -146 | AD143: -146 | AE143: 0
A144: 135 | B144: ENTIDAD APORTANTE RECURSOS | C144: ICCU - GESPROY GB | D144: 2019000050047 | E144: MEJORAMIENTO DE LA VÍA SUSA - CARMEN DE CARUPA, DEPARTAMENTO DE CUNDINAMARCA | F144: TRANSPORTE | G144: 4131178258 | I144: 43677 | J144: 2019 | K144: 091 DE 2019 | L144: TERMINADO | AA144: 44607 | AB144: 44607 | AC144: -146 | AD144: -146 | AE144: 0
A145: 136 | B145: ENTIDAD APORTANTE RECURSOS | C145: ICCU - GESPROY GB | D145: 2019000050056 | E145: MEJORAMIENTO DE LA VÍA QUE CONDUCE DEL MUNICIPIO DE NIMAIMA AL MUNICIPIO DE NOCAIMA, DEPARTAMENTO DE CUNDINAMARCA | F145: TRANSPORTE | G145: 5082491570 | I145: 43748 | J145: 2019 | K145: 094 DE 2019 | L145: TERMINADO | AA145: 44706 | AB145: 44607 | AC145: -47 | AD145: -146 | AE145: 0
A146: 137 | B146: ENTIDAD APORTANTE RECURSOS | C146: IDECUT | D146: 2019000050059 | E146: FORTALECIMIENTO A LAS ESCUELAS MUNICIPALES DE MÚSICA, DANZA, TEATRO Y ARTES PLÁSTICAS Y VISUALES EN EL DEPARTAMENTO DE CUNDINAMARCA | F146: CULTURA | G146: 1972606058 | I146: 43748 | J146: 2019 | K146: 094 DE 2019 | L146: TERMINADO | AA146: 44607 | AB146: 44607 | AC146: -146 | AD146: -146 | AE146: 0
A147: 138 | B147: ENTIDAD APORTANTE RECURSOS | C147: ICCU - GESPROY GB | D147: 2019000050060 | E147: ESTUDIOS Y DISEÑOS DE VÍAS PARA MEJORAR LA COMPETITIVIDAD DEL DEPARTAMENTO DE CUNDINAMARCA | F147: TRANSPORTE | G147: 7089369627 | I147: 43714 | J147: 2019 | K147: 092 DE 2019 | L147: TERMINADO | Z147: 44706 | AA147: 44635 | AB147: 44706 | AC147: -118 | AD147: -47 | AE147: -47
A148: 139 | B148: CUNDINAMARCA | C148: SECRETARIA DE MINAS, ENERGIA Y GAS | D148: 2019000050073 | E148: AMPLIACIÓN DE LA COBERTURA DEL SERVICIO DE GAS COMBUSTIBLE DOMICILIARIO A TRAVÉS DE LA FINANCIACIÓN DE LA CONEXIÓN Y LA RED INTERNA PARA USUARIOS DE BARRIOS PERIFÉRICOS, VEREDAS Y CENTROS POBLADOS DEL DEPARTAMENTO DE CUNDINAMARCA | F148: MINAS Y ENERGÍA | G148: 12461377100 | I148: 43805 | J148: 2019 | K148: 097 DE 2019 | L148: CONTRATADO EN EJECUCIÓN | Z148: 44706 | AA148: 44635 | AB148: 44706 | AC148: -118 | AD148: -47 | AE148: -47
A149: 140 | B149: ENTIDAD APORTANTE RECURSOS | C149: ICCU - GESPROY GB | D149: 2019000050075 | E149: MEJORAMIENTO DE LA VÍA QUE CONDUCE DEL MUNICIPIO DE VIANI AL MUNICIPIO DE CHAGUANI, (DE LA Y DE SAN VICENTE A CHAGUANI), DEPARTAMENTO DE CUNDINAMARCA | F149: TRANSPORTE | G149: 7504443091 | I149: 43819 | J149: 2019 | K149: 098 DE 2019 | L149: CONTRATADO EN EJECUCIÓN | Z149: 44706 | AA149: 44607 | AB149: 44671 | AC149: -146 | AD149: -82 | AE149: -47
A150: 141 | B150: ENTIDAD APORTANTE RECURSOS | C150: ICCU - GESPROY GB | D150: 2019000050079 | E150: MEJORAMIENTO DE LA VÍA SERREZUELA - EL TRIUNFO, MUNICIPIO DE LA CALERA, DEPARTAMENTO DE CUNDINAMARCA | F150: TRANSPORTE | G150: 7614258187 | I150: 43748 | J150: 2019 | K150: 094 DE 2019 | L150: TERMINADO | Z150: 44706 | AA150: 44635 | AB150: 44706 | AC150: -118 | AD150: -47 | AE150: -47
A151: 142 | B151: ENTIDAD APORTANTE RECURSOS | C151: ICCU - GESPROY GB | D151: 2019000050085 | E151: MEJORAMIENTO DE LA VÍA QUE CONDUCE DEL MUNICIPIO DE LA MESA AL MUNICIPIO DE CACHIPAY, (DE LA INSPECCIÓN DE PEÑA NEGRA AL MUNICIPIO DE CACHIPAY), DEPARTAMENTO DE CUNDINAMARCA | F151: TRANSPORTE | G151: 7019896083 | I151: 43852 | J151: 2019 | K151: 96 DE 2019 | L151: CONTRATADO EN EJECUCIÓN | Z151: 44706 | AA151: 44635 | AB151: 44706 | AC151: -118 | AD151: -47 | AE151: -47
A152: 143 | B152: ENTIDAD APORTANTE RECURSOS | C152: TV ANDINA | D152: 2019000050064 | E152: PROTECCIÓN Y PRESERVACIÓN DEL PATRIMONIO AUDIOVISUAL COLOMBIANO QUE SE ENCUENTRA EN EL CANAL PÚBLICO TEVEANDINA LOCALIZADO EN EL DEPARTAMENTO DE CUNDINAMARCA | F152: CULTURA | G152: 5923285198 | I152: 43774 | J152: 2019 | K152: 095 DE 2019 | L152: CERRADO | Z152: 44706 | AA152: 44607 | AB152: 44706 | AC152: -146 | AD152: -47 | AE152: -47
A153: 144 | B153: ENTIDAD APORTANTE RECURSOS | C153: UNAD | D153: 2019000050069 | E153: MEJORAMIENTO DE INFRAESTRUCTURA FÍSICA, DOTACIÓN DE MOBILIARIO Y EQUIPAMIENTO TECNOLÓGICO DE LA UNIVERSIDAD NACIONAL ABIERTA Y A DISTANCIA EN MUNICIPIOS DEL DEPARTAMENTO DE CUNDINAMARCA | F153: EDUCACIÓN | G153: 16011115461 | I153: 43774 | J153: 2019 | K153: 095 DE 2019 | L153: TERMINADO | Z153: 44706 | AA153: 44607 | AB153: 44671 | AC153: -146 | AD153: -82 | AE153: -47
A154: 145 | B154: ENTIDAD APORTANTE RECURSOS | C154: U TECNOLOGICA DE PEREIRA | D154: 2019000100009 | E154: FORMACIÓN DE CAPITAL HUMANO DE ALTO NIVEL UNIVERSIDAD TECNOLÓGICA DE PEREIRA NACIONAL | F154: CTEL | G154: 4360028215 | I154: 43781 | J154: 2019 | K154: 083 DE 2019 | L154: CONTRATADO EN EJECUCIÓN | Z154: 44671 | AA154: 44635 | AB154: 44706 | AC154: -118 | AD154: -47 | AE154: -82
A155: 146 | B155: ENTIDAD APORTANTE RECURSOS | C155: U EAN | D155: 2019000100015 | E155: FORMACIÓN DE CAPITAL HUMANO DE ALTO NIVEL - UNIVERSIDAD EAN - NACIONAL | F155: CTEL | G155: 1294375000 | I155: 43830 | J155: 2019 | K155: 087 DE 2019 | L155: CONTRATADO EN EJECUCIÓN | Z155: 44706 | AA155: 44635 | AB155: 44706 | AC155: -118 | AD155: -47 | AE155: -47 | AG155: 2019000100061
A156: 147 | B156: ENTIDAD APORTANTE RECURSOS | C156: U CATOLICA | D156: 2019000100022 | E156: FORMACIÓN DE CAPITAL HUMANO DE ALTO NIVEL - UNIVERSIDAD CATÓLICA DE COLOMBIA - NACIONAL | F156: CTEL | G156: 343595000 | I156: 43812 | J156: 2019 | K156: 086 DE 2019 | L156: CONTRATADO EN EJECUCIÓN | Z156: 44740 | AA156: 44636 | AB156: 44706 | AC156: -117 | AD156: -47 | AE156: -13 | AG156: 2020000100137
A157: 148 | B157: ENTIDAD APORTANTE RECURSOS | C157: UNIVERSIDAD MILITAR NUEVA GRANADA | D157: 2019000100025 | E157: FORMACIÓN DE CAPITAL HUMANO DE ALTO NIVEL UNIVERSIDAD MILITAR NUEVA GRANADA NACIONAL | F157: CTEL | G157: 294375000 | I157: 43812 | J157: 2019 | K157: 086 DE 2019 | L157: CONTRATADO EN EJECUCIÓN | Z157: 44740 | AA157: 44637 | AB157: 44607 | AC157: -116 | AD157: -146 | AE157: -13 | AG157: 2020000050003
A158: 149 | B158: ENTIDAD APORTANTE RECURSOS | C158: UNIVERSIDAD NACIONAL DE COLOMBIA | D158: 2019000100026 | E158: FORMACIÓN DE CAPITAL HUMANO DE ALTO NIVEL UNIVERSIDAD NACIONAL DE COLOMBIA NACIONAL | F158: CTEL | G158: 21162064500 | I158: 43781 | J158: 2019 | K158: 083 DE 2019 | L158: CONTRATADO EN EJECUCIÓN | AA158: 44607 | AB158: 44607 | AC158: -146 | AD158: -146 | AE158: 0 | AG158: 2020000050012
A159: 150 | B159: ENTIDAD APORTANTE RECURSOS | C159: U DISTRITAL | D159: 2019000100027 | E159: FORMACIÓN DE CAPITAL HUMANO DE ALTO NIVEL EN DOCTORADO PARA EL DESARROLLO REGIONAL, UNIVERSIDAD DISTRITAL FRANCISCO JOSÉ DE CALDAS, A NIVEL NACIONAL | F159: CTEL | G159: 1218668841 | I159: 43798 | J159: 2019 | K159: 085 DE 2019 | L159: CONTRATADO EN EJECUCIÓN | AA159: 44607 | AB159: 44607 | AC159: -146 | AD159: -146 | AE159: 0 | AG159: 2020000050019
A160: 151 | B160: ENTIDAD APORTANTE RECURSOS | C160: U JAVERIANA | D160: 2019000100028 | E160: FORMACIÓN DE CAPITAL HUMANO DE ALTO NIVEL PONTIFICIA UNIVERSIDAD JAVERIANA SEDE CENTRAL NACIONAL | F160: CTEL | G160: 6524500000 | I160: 43781 | J160: 2019 | K160: 083 DE 2019 | L160: CONTRATADO EN EJECUCIÓN | Z160: 44740 | AA160: 44607 | AB160: 44740 | AC160: -146 | AD160: -13 | AE160: -13 | AG160: 2020000100266
A161: 152 | B161: ENTIDAD APORTANTE RECURSOS | C161: U DE LOS ANDES | D161: 2019000100036 | E161: FORMACIÓN DE CAPITAL HUMANO DE ALTO NIVEL UNIVERSIDAD DE LOS ANDES NACIONAL | F161: CTEL | G161: 2814671307 | I161: 43798 | J161: 2019 | K161: 085 DE 2019 | L161: CONTRATADO EN EJECUCIÓN | Z161: 44740 | AA161: 44635 | AB161: 44740 | AC161: -118 | AD161: -13 | AE161: -13 | AG161: 2020000100246
A162: 153 | B162: ENTIDAD APORTANTE RECURSOS | C162: UNIVERSIDAD NACIONAL DE COLOMBIA | D162: 2019000100061 | E162: FORTALECIMIENTO DE LA CAPACIDAD TECNOLÓGICA INSTALADA EN EL CENTRO AGROPECUARIO MARENGO PARA LA INVESTIGACIÓN EN LOS SISTEMAS AGROPRODUCTIVOS DEL TRÓPICO ALTO, BAJO EL EFECTO DE LA VARIABILIDAD Y CAMBIO CLIMÁTICO - CUNDINAMARCA | F162: CTEL | G162: 2386591598 | I162: 43830 | J162: 2019 | K162: 087 DE 2019 | L162: CONTRATADO EN EJECUCIÓN | Z162: 44671 | AA162: 44741 | AB162: 44671 | AC162: -12 | AD162: -82 | AE162: -82 | AG162: 2020000100078
A163: 154 | B163: CUNDINAMARCA | C163: SECRETARIA DE CIENCIA, TECNOLOGIA E INNOVACIÓN | D163: 2020000100137 | E163: FORTALECIMIENTO DE LAS CAPACIDADES DE INVESTIGACIÓN Y DESARROLLO PARA ATENDER PROBLEMÁTICAS ASOCIADAS CON AGENTES BIOLÓGICOS PARA LA SALUD PÚBLICA, A TRAVÉS DEL MEJORAMIENTO DEL LABORATORIO DE SALUD PÚBLICA DE CUNDINAMARCA | F163: CTEL | G163: 4506359274 | I163: 43966 | J163: 2020 | K163: 093 DE 2020 | L163: CONTRATADO EN EJECUCIÓN | AA163: 44635 | AB163: 44635 | AC163: -118 | AD163: -118 | AE163: 0 | AG163: 2020000100205
A164: 155 | B164: CUNDINAMARCA | C164: SECRETARIA DE SALUD | D164: 2020000050003 | E164: ADQUISICIÓN DE AMBULANCIAS,EQUIPOS BIOMÉDICOS, ELEMENTOS DE PROTECCIÓN PERSONAL, ASEO Y DESINFECCIÓN PARA LA ATENCIÓN DE LA CALAMIDAD SANITARIA POR COVID-19 EN LAS E.S.E DEL DEPARTAMENTO DE CUNDINAMARCA | F164: SALUD Y PROTECCIÓN SOCIAL | G164: 43433295564 | I164: 43986 | J164: 2020 | K164: 102 de 2020 | L164: CONTRATADO EN EJECUCIÓN | Z164: 44671 | AA164: 44635 | AB164: 44671 | AC164: -118 | AD164: -82 | AE164: -82 | AG164: 2020000100197
A165: 156 | B165: CUNDINAMARCA | C165: UNIDAD ADMINISTRATIVA DE GESTIÓN DEL RIESGO. | D165: 2020000050012 | E165: ADQUISICIÓN DE ELEMENTOS DE PROTECCIÓN DE CONTAGIO DEL VIRUS COVID-19 PARA LOS CUERPOS OPERATIVOS DE EMERGENCIA, EN ATENCIÓN DE LA CALAMIDAD SANITARIA EN EL DEPARTAMENTO DE CUNDINAMARCA | F165: GOBIERNO TERRITORIAL | G165: 5419592232 | I165: 43986 | J165: 2020 | K165: 102 DE 2020 | L165: CERRADO | Z165: 44671 | AA165: 44635 | AB165: 44671 | AC165: -118 | AD165: -82 | AE165: -82 | AG165: 2020000100240
A166: 157 | B166: CUNDINAMARCA | C166: SECRETARIA DE EDUCACIÓN | D166: 2020000050019 | E166: FORTALECIMIENTO A LA ESTRATEGIA DE ALIMENTACIÓN ESCOLAR PARA EL AÑO 2020, EN LOS MUNICIPIOS DEL DEPARTAMENTO DE CUNDINAMARCA | F166: EDUCACIÓN | G166: 26240955000 | I166: 44040 | J166: 2020 | K166: 105 DE 2020 | L166: TERMINADO | AA166: 44607 | AB166: 44607 | AC166: -146 | AD166: -146 | AE166: 0 | AG166: 2020000100158
A167: 158 | B167: CUNDINAMARCA | C167: SECRETARIA DE CIENCIA, TECNOLOGIA E INNOVACIÓN | D167: 2020000100266 | E167: GENERACIÓN DE ESPACIOS DE ENCUENTRO DE LA SOCIEDAD CON LA CIENCIA Y LA TECNOLOGÍA - UN VIAJE CON LA CIENCIA EN EL DEPARTAMENTO DE CUNDINAMARCA | F167: CTEL | G167: 2241429590 | I167: 44111 | J167: 2020 | K167: 098 DE 2020 | L167: CONTRATADO EN EJECUCIÓN | AA167: 44635 | AB167: 44635 | AC167: -118 | AD167: -118 | AE167: 0 | AG167: 2020000050013
A168: 159 | B168: CUNDINAMARCA | C168: SECRETARIA DE CIENCIA, TECNOLOGIA E INNOVACIÓN | D168: 2020000100246 | E168: FORTALECIMIENTO DE LA COMPETITIVIDAD DE LA CADENA PRODUCTIVA DE LA GUADUA POR MEDIO DEL DESARROLLO E IMPLEMENTACIÓN DE DOS (2) PAQUETES TECNOLÓGICOS PARA LA GENERACIÓN DE PRODUCTOS CON VALOR AGREGADO EN EL DEPARTAMENTO DE CUNDINAMARCA | F168: CTEL | G168: 3144525520 | I168: 44111 | J168: 2020 | K168: 098 DE 2020 | L168: CONTRATADO EN EJECUCIÓN | AA168: 44740 | AB168: 44607 | AC168: -13 | AD168: -146 | AE168: 0 | AG168: 2020000050015
A169: 160 | B169: ENTIDAD APORTANTE RECURSOS | C169: CONNECT BOGOTA REGIÓN | D169: 2020000100078 | E169: DISEÑO E IMPLEMENTACIÓN DE UN MODELO DE GESTIÓN DE CONOCIMIENTO, INNOVACIÓN Y TRANSFERENCIA DE TECNOLOGÍA CON APLICACIÓN EN EL SECTOR AGROPECUARIO Y AGROINDUSTRIAL EN EL DEPARTAMENTO DE CUNDINAMARCA | F169: CTEL | G169: 3309848753 | I169: 44111 | J169: 2020 | K169: 098 DE 2020 | L169: CONTRATADO EN EJECUCIÓN | Z169: 44740 | AA169: 44607 | AB169: 44740 | AC169: -146 | AD169: -13 | AE169: -13 | AG169: 2020000100695
A170: 161 | B170: ENTIDAD APORTANTE RECURSOS | C170: FEDERACIÓN NACIONAL DE CAFETEROS | D170: 2020000100205 | E170: TRASLADO DE TECNOLOGÍAS INNOVADORAS A CAFICULTORES CON IMPACTO SOBRE LA CALIDAD DEL CAFÉ Y LA GESTIÓN DEL RECURSO HÍDRICO DURANTE EL PROCESO DE BENEFICIO EN ZONA CAFETERA DEL DEPARTAMENTO DE CUNDINAMARCA | F170: CTEL | G170: 13783557324 | I170: 44111 | J170: 2020 | K170: 098 DE 2020 | L170: CONTRATADO EN EJECUCIÓN | Z170: 44740 | AA170: 44635 | AB170: 44740 | AC170: -118 | AD170: -13 | AE170: -13
A171: 162 | B171: ENTIDAD APORTANTE RECURSOS | C171: AGROSAVIA | D171: 2020000100197 | E171: DESARROLLO DE BIOPLAGUICIDAS POTENCIADOS DE NUEVA GENERACIÓN PARA EL MEJORAMIENTO DE LA PRODUCTIVIDAD E INOCUIDAD DEL CULTIVO DE TOMATE Y CRUCÍFERAS EN EL DEPARTAMENTO DE CUNDINAMARCA | F171: CTEL | G171: 4583970033 | I171: 44111 | J171: 2020 | K171: 098 DE 2020 | L171: CONTRATADO EN EJECUCIÓN | Z171: 44740 | AA171: 44607 | AB171: 44740 | AC171: -146 | AD171: -13 | AE171: -13 | AG171: 2020000100696
A172: 163 | B172: ENTIDAD APORTANTE RECURSOS | C172: UNIVERSIDAD NACIONAL DE COLOMBIA | D172: 2020000100240 | E172: ESTUDIO DE PREFACTIBILIDAD PARA LA CREACIÓN DE UN CENTRO DE INNOVACIÓN Y DE PRODUCTIVIDAD PARA EL SECTOR AGROPECUARIO DE SABANA OCCIDENTE DE CUNDINAMARCA | F172: CTEL | G172: 1896154229 | I172: 44111 | J172: 2020 | K172: 098 DE 2020 | L172: CONTRATADO EN EJECUCIÓN | Z172: 44740 | AA172: 44607 | AB172: 44740 | AC172: -146 | AD172: -13 | AE172: -13 | AG172: 2020000100649
A173: 164 | B173: ENTIDAD APORTANTE RECURSOS | C173: UNIVERSIDAD DE CUNDINAMARCA | D173: 2020000100158 | E173: FORTALECIMIENTO DE LA INFRAESTRUCTURA FÍSICA Y TECNOLÓGICA DEL CENTRO DE ESTUDIOS AGROAMBIENTALES DE LA UNIVERSIDAD DE CUNDINAMARCA AGROU CUNDINAMARCA | F173: CTEL | G173: 2024433669 | I173: 44111 | J173: 2020 | K173: 098 DE 2020 | L173: SIN CONTRATAR | AA173: 44635 | AB173: 44635 | AC173: -118 | AD173: -118 | AE173: 0
A174: 165 | B174: ENTIDAD APORTANTE RECURSOS | C174: ZIPAQUIRA | D174: 2020000050013 | E174: MEJORAMIENTO DE LA VÍA QUE COMUNICA A LOS MUNICIPIOS DE ZIPAQUIRÁ Y TOCANCIPÁ, TRAMO BARANDILLAS - LA FUENTE, DEPARTAMENTO DE CUNDINAMARCA | F174: TRANSPORTE | G174: 6.788.620.869,00 | I174: 44152 | J174: 2020 | K174: 107 del 2020 | L174: CONTRATADO EN EJECUCIÓN | Z174: 44671 | AA174: 44635 | AB174: 44671 | AC174: -118 | AD174: -82 | AE174: -82
A175: 166 | B175: ENTIDAD APORTANTE RECURSOS | C175: ZIPAQUIRA | D175: 2020000050015 | E175: MEJORAMIENTO DE LA VÍA ZIPAQUIRÁ - SAN JORGE - TABIO DEPARTAMENTO DE CUNDINAMARCA | F175: TRANSPORTE | G175: 7458735075 | I175: 44152 | J175: 2020 | K175: 107 del 2020 | L175: CONTRATADO EN EJECUCIÓN | Z175: 44671 | AA175: 44635 | AB175: 44671 | AC175: -118 | AD175: -82 | AE175: -82
A176: 167 | B176: CUNDINAMARCA | C176: SECRETARIA DE CIENCIA, TECNOLOGIA E INNOVACIÓN | D176: 2020000100695 | E176: DESARROLLO, TRANSFERENCIA DE TECNOLOGÍA Y CONOCIMIENTO PARA LA INNOVACIÓN QUE FORTALEZCAN CAPACIDADES COMUNITARIAS EN LA COMPRENSIÓN Y/O MITIGACIÓN DE LOS PROBLEMAS DE VIOLENCIAS BASADAS EN GÉNERO, DERIVADAS DE LA EMERGENCIA POR COVID 19, EN CUNDINAMARCA | F176: CTEL | G176: 3100000000 | I176: 44183 | J176: 2020 | K176: 103 DE 2020 | L176: CONTRATADO EN EJECUCIÓN | Z176: 44671 | AA176: 44635 | AB176: 44671 | AC176: -118 | AD176: -82 | AE176: -82
A177: 168 | B177: CUNDINAMARCA | C177: SECRETARIA DE CIENCIA, TECNOLOGIA E INNOVACIÓN | D177: 2020000100650 | E177: FORTALECIMIENTO DE CAPACIDADES DE CTEI PARALA INNOVACION EDUCATIVA EN LOS NIVELES DE BÁSICA Y MEDIA, MEDIANTE USO DE TICS EN INSTITUCIONES EDUCATIVAS OFICIALES DE LOS MUNICIPIOS NO CERTIFICADOS DEL DEPARTAMENTO DE CUNDINAMARCA | F177: CTEL | G177: 10804663122 | I177: 44183 | J177: 2020 | K177: 103 DE 2020 | L177: CONTRATADO EN EJECUCIÓN | Z177: 44671 | AA177: 44607 | AB177: 44671 | AC177: -146 | AD177: -82 | AE177: -82 | AG177: 2020000100351
A178: 169 | B178: CUNDINAMARCA | C178: SECRETARIA DE CIENCIA, TECNOLOGIA E INNOVACIÓN | D178: 2020000100696 | E178: FORTALECIMIENTO DE CAPACIDADES DE CTEI PARA LA REACTIVACIÓN ECONÓMICA Y LA TRANSFORMACIÓN PRODUCTIVA EN CUNDINAMARCA | F178: CTEL | G178: 7370634083 | I178: 44183 | J178: 2020 | K178: 103 DE 2020 | L178: CONTRATADO EN EJECUCIÓN | Z178: 44740 | AA178: 44740 | AB178: 44740 | AC178: -13 | AD178: -13 | AE178: -13 | AG178: 2020000100343
A179: 170 | B179: CUNDINAMARCA | C179: SECRETARIA DE CIENCIA, TECNOLOGIA E INNOVACIÓN | D179: 2020000100649 | E179: FORTALECIMIENTO DE CAPACIDADES DE CTEI PARA EL RELACIONAMIENTO ESCUELA - CONTEXTO RURAL MEDIANTE LA APROPIACIÓN Y USO DE LAS TIC EN EL MUNICIPIO DE SIBATÉ, DEPARTAMENTO DE CUNDINAMARCA | F179: CTEL | G179: 4292464018 | I179: 44183 | J179: 2020 | K179: 103 DE 2020 | L179: CONTRATADO EN EJECUCIÓN | AA179: 44635 | AB179: 44635 | AC179: -118 | AD179: -118 | AE179: 0
A180: 171 | B180: ENTIDAD APORTANTE RECURSOS | C180: FUNDACION UNIVERSIDAD DEL VALLE | D180: 2020000050044 | E180: FORTALECIMIENTO DE LAS COMPETENCIAS COMUNICATIVAS EN INGLÉS DE LOS ESTUDIANTES DE LOS ESTABLECIMIENTOS EDUCATIVOS NO OFICIALES DE CUNDINAMARCA | F180: EDUCACIÓN | G180: $ 10.468.961.978 | I180: 44195 | J180: 2020 | K180: 110 DE 2020 | L180: CONTRATADO EN EJECUCIÓN | Z180: 44671 | AA180: 44635 | AB180: 44671 | AC180: -118 | AD180: -82 | AE180: -82
A181: 172 | B181: ENTIDAD APORTANTE RECURSOS | C181: UNAD | D181: 2020000100433 | E181: INVESTIGACIÓN DE LOS COMPUESTOS VOLÁTILES ORGÁNICOS E INDUCIDOS PARA EL MANEJO DE MOSCAS PLAGAS EN GULUPA Y GRANADILLA EN EL DEPARTAMENTO DE CUNDINAMARCA | F181: CTEL | G181: 3412874201 | I181: 44159 | J181: 2020 | K181: 100 DE 2020 | L181: CONTRATADO EN EJECUCIÓN | Z181: 44671 | AA181: 44607 | AB181: 44671 | AC181: -146 | AD181: -82 | AE181: -82 | AG181: 2020000100339
A182: 173 | B182: ENTIDAD APORTANTE RECURSOS | C182: UNIVERSIDAD INDUSTRIAL DE SANTANDER | D182: 2020000100415 | E182: DESARROLLO DE UN SISTEMA ÓPTICO COMPUTACIONAL PARA ESTIMAR EL CONTENIDO DE CARBONO ORGÁNICO DE SUELOS AGRÍCOLAS A TRAVÉS DE IMÁGENES ESPECTRALES E INTELIGENCIA ARTIFICIAL EN CULTIVOS DE CÍTRICOS DE SANTANDER | F182: CTEL | G182: 2184125885 | I182: 44160 | J182: 2020 | K182: 100 DE 2020 | L182: CONTRATADO EN EJECUCIÓN | Z182: 44671 | AA182: 44635 | AB182: 44635 | AC182: -118 | AD182: -118 | AE182: -82
A183: 174 | B183: ENTIDAD APORTANTE RECURSOS | C183: UNIVERSIDAD INDUSTRIAL DE SANTANDER | D183: 2020000100375 | E183: CONFORMACIÓN DE UNA PLATAFORMA PARA ESTUDIOS CELULARES AVANZADOS IN VIVO EN TIEMPO REAL PARA EL ANÁLISIS DE LA RESPUESTA INMUNOMETABÓLICA ANTE LA REEXPRESIÓN DE INTERFERÓN TIPO I KAPPA EN ESFEROIDES DE CÉLULAS TUMORALES DE CUELLO UTERINO EN SANTANDER | F183: CTEL | G183: 3123997801 | I183: 44159 | J183: 2020 | K183: 100 DE 2020 | L183: CONTRATADO EN EJECUCIÓN | Z183: 44740 | AA183: 44740 | AB183: 44607 | AC183: -13 | AD183: -146 | AE183: -13 | AG183: 2019000050026
A184: 175 | B184: ENTIDAD APORTANTE RECURSOS | C184: UNIVERSIDAD INDUSTRIAL DE SANTANDER | D184: 2020000100351 | E184: DESARROLLO DE UN PROTOTIPO SELECTIVO Y SENSIBLE PARA MONITOREAR CONTENIDO DE CADMIO IN SITU EN DIVERSAS MATRICES ASOCIADAS A LA PRODUCCIÓN DE GRANOS DE CACAO EN EL DEPARTAMENTO DE SANTANDER | F184: CTEL | G184: 2585800000 | I184: 44159 | J184: 2020 | K184: 100 DE 2020 | L184: CONTRATADO EN EJECUCIÓN | Z184: 44671 | AA184: 44740 | AB184: 44671 | AC184: -13 | AD184: -82 | AE184: -82
A185: 176 | B185: ENTIDAD APORTANTE RECURSOS | C185: INSTITUTO SUPERIOR DE EDUCACION RURAL DE PAMPLONA | D185: 2020000100343 | E185: IMPLEMENTACIÓN LABORATORIO DE CALIDAD FISICOQUÍMICA DE ALIMENTOS PARA EL FORTALECIMIENTO COMPETITIVO Y SOSTENIBLE DE LASCADENAS AGROALIMENTARIAS DEL DEPARTAMENTO DE NORTE DE SANTANDER | F185: CTEL | G185: 1097306327 | I185: 44159 | J185: 2020 | K185: 100 DE 2020 | L185: CONTRATADO SIN ACTA DE INICIO | Z185: 44671 | AA185: 44635 | AB185: 44671 | AC185: -118 | AD185: -82 | AE185: -82
A186: 177 | B186: ENTIDAD APORTANTE RECURSOS | C186: UNIVERSIDAD NACIONAL DE COLOMBIA | D186: 2020000100342 | E186: ESTUDIO DE POTENCIALES INSECTICIDAS EN MATRICES POLIMÉRICAS PARA EL CONTROL DE PLAGAS DE GRANOS ALMACENADOS BASADOS EN ACEITES ESENCIALES PROVENIENTES DE LA BIODIVERSIDADFLORÍSTICA DEL DEPARTAMENTO DE CUNDINAMARCA | F186: CTEL | G186: 2748237104 | I186: 44159 | J186: 2020 | K186: 100 DE 2020 | L186: CONTRATADO EN EJECUCIÓN | Z186: 44671 | AA186: 44635 | AB186: 44671 | AC186: -118 | AD186: -82 | AE186: -82
A187: 178 | B187: ENTIDAD APORTANTE RECURSOS | C187: UNIVERSIDAD MILITAR NUEVA GRANADA | D187: 2020000100728 | E187: GENERACIÓN Y TRANSFERENCIA DE CONOCIMIENTOS Y TECNOLOGÍAS PARA ELEVAR CAPACIDADES DE CTEL DE PEQUEÑOS PRODUCTORES DE TOMATE PARA AFRONTAR PROBLEMAS DERIVADOS DEL COVID-19 ASOCIADAS A LA SEG. ALIMENTARIA EN LAS SAB. CENTRO Y ORIENTE CUNDINAMARCA | F187: CTEL | G187: 4162541452 | I187: 44183 | J187: 2020 | K187: 103 DE 2020 | L187: CONTRATADO EN EJECUCIÓN | AA187: 44607 | AB187: 44607 | AC187: -146 | AD187: -146 | AE187: 0 | AG187: 2020000100075
A188: 179 | B188: ENTIDAD APORTANTE RECURSOS | C188: UNIVERSIDAD NACIONAL DE COLOMBIA | D188: 2020000100339 | E188: DESARROLLO DE NUEVOS MÉTODOS NO DESTRUCTIVOS PARA MONITOREO IN SITU DE PROBABILIDAD DE OCURRENCIA DE FALLA EN TUBERÍAS EN EL SECTOR DE HIDROCARBUROS EN LOS DEPARTAMENTOS DE BOGOTÁ BOYACÁ SANTANDER | F188: CTEL | G188: 2412084140 | I188: 44159 | J188: 2020 | K188: 100 DE 2020 | L188: CONTRATADO EN EJECUCIÓN | AA188: 44607 | AB188: 44607 | AC188: -146 | AD188: -146 | AE188: 0 | AG188: 2020000100019
A189: 180 | B189: ENTIDAD APORTANTE RECURSOS | C189: UNIVERSIDAD MILITAR NUEVA GRANADA | D189: 2020000100216 | E189: INNOVACIÓN Y TRANSFERENCIA TECNOLÓGICA DE UMNGBIO A PRODUCTORES DE FLORES PARA EL CONTROL BIOLÓGICO DE TETRANYCHUS URTICAE (ACARI: TETRANYCHIIDAE) EN CULTIVOS DE INVERNADERO CON EL ÁCARO BENÉFICO NEOSEIULUS CALIFORNICUS (ACARI: PHYTOSEIIDAE) CUNDINAMARCA | F189: CTEL | G189: 2431580000 | I189: 44159 | J189: 2020 | K189: 100 DE 2020 | L189: CONTRATADO EN EJECUCIÓN | AA189: 44607 | AB189: 44607 | AC189: -146 | AD189: -146 | AE189: 0 | AG189: 2020000100017
A190: 181 | B190: CUNDINAMARCA | C190: SECRETARIA DE COMPETITIVIDAD | D190: 2019000050026 | E190: DESARROLLO DE UN PROGRAMA PRODUCTIVO, AMIGABLE CON EL MEDIO AMBIENTE DEL SECTOR GANADERO EN EL DEPARTAMENTO DE CUNDINAMARCA CUNDINAMARCA | F190: AGRICULTURA | G190: 9757143522 | I190: 44187 | J190: 2020 | K190: 109 DE 2020 | L190: CONTRATADO EN EJECUCIÓN | Z190: 44671 | AA190: 44635 | AB190: 44635 | AC190: -118 | AD190: -118 | AE190: -82
A191: 182 | B191: ENTIDAD APORTANTE RECURSOS | C191: UNIVERSIDAD NACIONAL DE COLOMBIA | D191: 2020000100169 | E191: INVESTIGACIÓN DESARROLLO, INNOVACIÓN Y TRANSFERENCIA DE CONOCIMIENTO PARA EL PROCESAMIENTO DE LA SEMILLA DE SACHA INCHI EN PRODUCTOS DE VALOR AGREGADO, COMO ESTRATEGIA PARA MEJORAR LA PRODUCTIVIDAD DEL SECTOR AGROINDUSTRIAL DE LA REGIÓN CUNDINAMARCA | F191: CTEL | G191: 2757697312 | I191: 44078 | J191: 2020 | K191: 97 DE 2020 | L191: CONTRATADO EN EJECUCIÓN | Z191: 44671 | AA191: 44635 | AB191: 44671 | AC191: -118 | AD191: -82 | AE191: -82
A192: 183 | B192: ENTIDAD APORTANTE RECURSOS | C192: UPTC | D192: 2020000100114 | E192: FORTALECIMIENTO DEL ECOSISTEMA DE INVESTIGACIÓN CIENTÍFICA PARA CTEI EN LA UNIVERSIDAD PEDAGÓGICA Y TECNOLÓGICA DE COLOMBIA UPTC, I-SPACIO SOGAMOSO | F192: CTEL | G192: 2310634882 | I192: 44078 | J192: 2020 | K192: 97 DE 2020 | L192: CONTRATADO EN EJECUCIÓN | AA192: 44635 | AB192: 44635 | AC192: -118 | AD192: -118 | AE192: 0
A193: 184 | B193: ENTIDAD APORTANTE RECURSOS | C193: UNIVERSIDAD DE ANTIOQUIA | D193: 2020000100079 | E193: FORTALECIMIENTO DE LA INFRAESTRUCTURA TECNOLÓGICA Y EQUIPAMIENTO DEL AMBIENTE DE FORMACIÓN INDUSTRIAL PARA EL AUMENTO DE LAS CAPACIDADES INSTITUCIONALES EN CTEI DE LA ETITC BOGOTÁ | F193: CTEL | G193: 1090608306 | I193: 44078 | J193: 2020 | K193: 97 DE 2020 | L193: CONTRATADO EN EJECUCIÓN | AA193: 44635 | AB193: 44671 | AC193: -118 | AD193: -82 | AE193: 0
A194: 185 | B194: ENTIDAD APORTANTE RECURSOS | C194: UNIVERSIDAD NACIONAL DE COLOMBIA | D194: 2020000100075 | E194: APROVECHAMIENTO DE LA BIODIVERSIDAD EN AGRAZ Y PAPA PARA EL DESARROLLO DE CULTIVOS PROMISORIOS EN EL DEPARTAMENTO DE SANTANDER | F194: CTEL | G194: 3177259696 | I194: 44078 | J194: 2020 | K194: 97 DE 2020 | L194: CONTRATADO EN EJECUCIÓN | AA194: 44607 | AB194: 44740 | AC194: -146 | AD194: -13 | AE194: 0 | AG194: 2020000050037
A195: 186 | B195: ENTIDAD APORTANTE RECURSOS | C195: UNIVERSIDAD NACIONAL DE COLOMBIA | D195: 2020000100019 | E195: FORTALECIMIENTO DE CAPACIDADES DE INVESTIGACIÓN Y DESARROLLO TECNOLÓGICO DE LA UNIVERSIDAD COLEGIO MAYOR DE CUNDINAMARCA A PARTIR DE TECNOLOGÍAS INDUSTRIA 4.0 PARA EL DISEÑO Y CONSTRUCCIÓN EN BOGOTÁ | F195: CTEL | G195: 2077571214 | I195: 44078 | J195: 2020 | K195: 97 DE 2020 | L195: CONTRATADO EN EJECUCIÓN | Z195: 44740 | AA195: 44607 | AB195: 44740 | AC195: -146 | AD195: -13 | AE195: -13 | AG195: 2020000100287
A196: 187 | B196: ENTIDAD APORTANTE RECURSOS | C196: UNIVERSIDAD INDUSTRIAL DE SANTANDER | D196: 2020000100017 | E196: FORTALECIMIENTO DE LA CAPACIDAD INSTITUCIONAL DE INVESTIGACIÓN DE LA UNIVERSIDAD INDUSTRIAL DESANTANDER NACIONAL | F196: CTEL | G196: 2808520000 | I196: 44078 | J196: 2020 | L196: CONTRATADO EN EJECUCIÓN | Z196: 44671 | AA196: 44635 | AB196: 44635 | AC196: =IF(AA196=0,0,_xlfn.DAYS(AA196,TODAY())) -> -118 | AD196: -118 | AE196: -82
A197: 188 | B197: ENTIDAD APORTANTE RECURSOS | C197: UNIVERSIDAD MILITAR NUEVA GRANADA | D197: 2020000100103 | E197: FORTALECIMIENTO DE CAPACIDADES INSTALADAS DE CIENCIA Y TECNOLOGÍA DEL LABORATORIO DE DIAGNÓSTICO EN EL CAMPUS DE LA UNIV MILITAR NUEVA GRANADA, PARA ATENDER PROBLEMÁTICAS ASOCIADAS CON AGENTES BIOLÓGICOS DE ALTO RIESGO PARA LA SALUD HUMANA, CUNDINAMARCA | F197: CTEL | G197: 5162742977 | I197: 43966 | J197: 2020 | K197: 93 DE 2020 | L197: CONTRATADO EN EJECUCIÓN | Z197: 44671 | AA197: 44607 | AB197: 44671 | AC197: -146 | AD197: -82 | AE197: =IF(Z197=0,0,_xlfn.DAYS(Z197,TODAY())) -> -82 | AG197: 2021000100003
A198: 189 | B198: ENTIDAD APORTANTE RECURSOS | C198: INSTITUTO UNIVERSITARIO DE LA PAZ – UNIPAZ | D198: 2020000100042 | E198: FORTALECIMIENTO DE LOS PROCESOS ACADÉMICOS EN LOS PROGRAMAS OFRECIDOS POR EL INSTITUTO UNIVERSITARIO DE LA PAZ, UNIPAZ, BARRANCABERMEJA | F198: CTEL | G198: 1178749590 | I198: 43998 | J198: 2020 | K198: 94 DE 2020 | L198: CONTRATADO EN EJECUCIÓN | AA198: 44635 | AB198: 44635 | AC198: -118 | AD198: -118 | AE198: 0
A199: 190 | B199: ENTIDAD APORTANTE RECURSOS | C199: INSTITUTO UNIVERSITARIO DE LA PAZ – UNIPAZ | D199: 2020000100016 | E199: ADECUACIÓN , DOTACIÓN E IMPLEMENTACIÓN DE UN LABORATORIO DE FABRICACIÓN DIGITAL PARA PROMOVER EL DESARROLLO DE LA CIENCIA, LAINNOVACIÓN Y EL EMPRENDIMIENTO EN LA UNIVERSIDAD FRANCISCO DE PAULA SANTANDER. CÚCUTA | F199: CTEL | G199: 2921057589 | I199: 43950 | J199: 2020 | K199: 92 DE 2020 | L199: CONTRATADO EN EJECUCIÓN | Z199: 44671 | AA199: 44607 | AB199: 44671 | AC199: -146 | AD199: -82 | AE199: -82 | AG199: 2021000100014
A200: 191 | B200: ENTIDAD APORTANTE RECURSOS | C200: UNIVERSIDAD TECNOLOGICA DE SANTANDER | D200: 2020000100004 | E200: FORTALECIMIENTO Y ADECUACIÓN DE EQUIPOS E INFRAESTRUCTURA DEL LABORATORIO DE FÍSICA DEL DEPARTAMENTO DE CIENCIAS BÁSICAS, PARA EL MEJORAMIENTO DE LAS CAPACIDADES INSTITUCIONALES Y LA INVESTIGACIÓN EN LAS UNIDADES TECNOLÓGICAS DE SANTANDER - BUCARAMANGA | F200: CTEL | G200: 1016752702 | I200: 43950 | J200: 2020 | K200: 92 DE 2020 | L200: CONTRATADO EN EJECUCIÓN | AA200: 44635 | AB200: 44635 | AC200: -118 | AD200: -118 | AE200: 0
... 1451 more rows
